,Date ,TT,Transaction Number,Amount,Supplier No,Supplier Name,Period,Expense Area,Cipfa(T)
INSERTED DETAIL,02/10/2017,GI,2448543,520.08,HC111399,Weobley County Primary School Imprest,201807,Schools,Supplies & Services
INSERTED DETAIL,02/10/2017,GI,2448544,678.4,HC108165,REDACTED,201807,Safeguarding and Family Support,Employees
INSERTED DETAIL,02/10/2017,GI,2448545,"1,350.00",HC113961,Burghill Community Academy,201807,Dedicated Schools Grant,Support Services
INSERTED DETAIL,05/10/2017,GI,2449600,"9,111.58",HC121175,Matrix SCM Ltd,201807,Adults Operations,Employees
INSERTED DETAIL,05/10/2017,GI,2449600,623.45,HC121175,Matrix SCM Ltd,201807,Mental Health,Employees
INSERTED DETAIL,05/10/2017,GI,2449600,"1,352.16",HC121175,Matrix SCM Ltd,201807,Safeguarding and Family Support,Employees
INSERTED DETAIL,05/10/2017,GI,2449600,"1,244.52",HC121175,REDACTED,201807,Safeguarding and Family Support,Employees
INSERTED DETAIL,05/10/2017,GI,2449602,506.73,HC107831,Much Marcle CE Primary School Imprest A/C,201807,Schools,Supplies & Services
INSERTED DETAIL,06/10/2017,GI,2449758,593.52,HC107953,Natwest One Card (Direct Debit A/C),201807,Communities,Supplies & Services
INSERTED DETAIL,06/10/2017,GI,2449759,722.61,HC107953,Natwest One Card (Direct Debit A/C),201807,Education and Commissioning,Supplies & Services
INSERTED DETAIL,09/10/2017,GI,2450622,559.29,HC103506,Goodrich C E Primary Sch Imprest,201807,Schools,Supplies & Services
INSERTED DETAIL,11/10/2017,GI,2451670,"1,394.62",HC111924,Bromyard Community Transport Ltd,201807,Environment and Place,Supplies & Services
INSERTED DETAIL,11/10/2017,GI,2451671,"1,768.13",HC112080,CVS Ledbury & District (Ledbury Ring & Ride)Standing Order,201807,Environment and Place,Supplies & Services
INSERTED DETAIL,11/10/2017,GI,2451672,"1,426.29",HC102478,Dore Community Transport,201807,Environment and Place,Supplies & Services
INSERTED DETAIL,11/10/2017,GI,2451673,684.47,HC101381,Hay & District Dial a Ride,201807,Environment and Place,Supplies & Services
INSERTED DETAIL,11/10/2017,GI,2451674,"3,092.60",HC103982,HVOSS,201807,Environment and Place,Supplies & Services
INSERTED DETAIL,11/10/2017,GI,2451675,792.96,HC101379,Ross Country Cars (Standing Order),201807,Environment and Place,Supplies & Services
INSERTED DETAIL,11/10/2017,GI,2451676,"2,150.83",HC110743,The Plynlimon Trust Community Car Scheme,201807,Environment and Place,Supplies & Services
INSERTED DETAIL,11/10/2017,GI,2451677,"115,806.29",HC107466,Worcestershire Health & Care NHS Trust,201807,Public Health,Third Party Payments
INSERTED DETAIL,11/10/2017,GI,2451678,"147,313.06",HC120328,Addaction,201807,Public Health,Third Party Payments
INSERTED DETAIL,11/10/2017,GI,2451680,"16,524.00",HC122767,"H3 (The Hub, Hospital & Home Teaching Team)",201807,Dedicated Schools Grant,Third Party Payments
INSERTED DETAIL,11/10/2017,GI,2451681,"60,000.00",HC120107,Hereford Integrated Behaviour Outreach Service,201807,Dedicated Schools Grant,Third Party Payments
INSERTED DETAIL,11/10/2017,GI,2451682,"30,875.00",HC120107,Hereford Integrated Behaviour Outreach Service,201807,Dedicated Schools Grant,Third Party Payments
INSERTED DETAIL,11/10/2017,GI,2451683,600,HC106870,REDACTED,201807,Adults Operations,Premises-Related Expenditure
INSERTED DETAIL,11/10/2017,GI,2451684,625,HC106831,REDACTED,201807,Adults Operations,Premises-Related Expenditure
INSERTED DETAIL,11/10/2017,GI,2451685,450,HC109865,REDACTED,201807,Adults Operations,Premises-Related Expenditure
INSERTED DETAIL,11/10/2017,GI,2451686,450,HC109865,REDACTED,201807,Adults Operations,Premises-Related Expenditure
INSERTED DETAIL,11/10/2017,GI,2451688,460,HC112055,REDACTED,201807,Adults Operations,Premises-Related Expenditure
INSERTED DETAIL,11/10/2017,GI,2451689,550,HC108221,REDACTED,201807,Adults Operations,Premises-Related Expenditure
INSERTED DETAIL,11/10/2017,GI,2451690,520,HC108905,REDACTED,201807,Adults Operations,Premises-Related Expenditure
INSERTED DETAIL,11/10/2017,GI,2451691,475,HC109338,REDACTED,201807,Adults Operations,Premises-Related Expenditure
INSERTED DETAIL,11/10/2017,GI,2451694,"4,333.33",HC106816,REDACTED,201807,Adults Operations,Premises-Related Expenditure
INSERTED DETAIL,11/10/2017,GI,2451695,650,HC110272,REDACTED,201807,Adults Operations,Premises-Related Expenditure
INSERTED DETAIL,11/10/2017,GI,2451696,420,HC106104,REDACTED,201807,Adults Operations,Premises-Related Expenditure
INSERTED DETAIL,11/10/2017,GI,2451697,600,HC115622,REDACTED,201807,Adults Operations,Premises-Related Expenditure
INSERTED DETAIL,11/10/2017,GI,2451698,625,HC119280,REDACTED,201807,Adults Operations,Premises-Related Expenditure
INSERTED DETAIL,11/10/2017,GI,2451699,587.43,HC121622,REDACTED,201807,Adults Operations,Premises-Related Expenditure
INSERTED DETAIL,11/10/2017,GI,2451700,600,HC121325,REDACTED,201807,Adults Operations,Premises-Related Expenditure
INSERTED DETAIL,11/10/2017,GI,2451701,525,HC116314,REDACTED,201807,Adults Operations,Premises-Related Expenditure
INSERTED DETAIL,11/10/2017,GI,2451702,550,HC121939,REDACTED,201807,Adults Operations,Premises-Related Expenditure
INSERTED DETAIL,11/10/2017,GI,2451703,650,HC122259,REDACTED,201807,Adults Operations,Premises-Related Expenditure
INSERTED DETAIL,11/10/2017,GI,2451704,550,HC122996,REDACTED,201807,Adults Operations,Premises-Related Expenditure
INSERTED DETAIL,12/10/2017,GI,2452222,475,HC105573,Luston C P School Imprest,201807,Schools,Employees
INSERTED DETAIL,12/10/2017,GI,2452222,441.59,HC105573,Luston C P School Imprest,201807,Schools,Premises-Related Expenditure
INSERTED DETAIL,12/10/2017,GI,2452222,"2,044.90",HC105573,Luston C P School Imprest,201807,Schools,Supplies & Services
INSERTED DETAIL,12/10/2017,GI,2452223,"10,466.22",HC121175,Matrix SCM Ltd,201807,Adults Operations,Employees
INSERTED DETAIL,12/10/2017,GI,2452223,"1,798.56",HC121175,Matrix SCM Ltd,201807,Mental Health,Employees
INSERTED DETAIL,12/10/2017,GI,2452223,"2,664.17",HC121175,Matrix SCM Ltd,201807,Safeguarding and Family Support,Employees
INSERTED DETAIL,12/10/2017,GI,2452223,"2,111.94",HC121175,REDACTED,201807,Safeguarding and Family Support,Employees
INSERTED DETAIL,13/10/2017,GI,2452354,515.81,HC105091,Kington Primary School Imprest A/C,201807,Schools,Supplies & Services
INSERTED DETAIL,13/10/2017,GI,2452355,677.87,HC110073,St Josephs RC Primary School,201807,Schools,Supplies & Services
INSERTED DETAIL,13/10/2017,GI,2452403,426.4,HC107953,Natwest One Card (Direct Debit A/C),201807,Commissioning Capital,Capital Expenditure
INSERTED DETAIL,13/10/2017,GI,2452403,467.65,HC107953,Natwest One Card (Direct Debit A/C),201807,Communities,Supplies & Services
INSERTED DETAIL,13/10/2017,GI,2452405,577.95,HC107953,REDACTED,201807,Adults Operations,Supplies & Services
INSERTED DETAIL,13/10/2017,GI,2452406,"1,345.49",HC107953,REDACTED,201807,Adults Operations,Supplies & Services
INSERTED DETAIL,13/10/2017,GI,2452408,"1,177.10",HC110058,St Francis Xavier School Imprest,201807,Schools,Supplies & Services
INSERTED DETAIL,16/10/2017,GI,2452482,"4,480.70",HC108793,REDACTED,201807,Adults Operations,Supplies & Services
INSERTED DETAIL,18/10/2017,GI,2452779,"22,628.00",HC100109,HM Revenue & Customs,201807,Holding Codes,Holding Codes
INSERTED DETAIL,18/10/2017,GI,2452931,550,HC109679,REDACTED,201807,Safeguarding and Family Support,Supplies & Services
INSERTED DETAIL,18/10/2017,GI,2452933,468.9,HC123711,REDACTED,201807,Safeguarding and Family Support,Third Party Payments
INSERTED DETAIL,18/10/2017,GI,2452938,495.83,HC111312,Walford Primary School Imprest Account,201807,Schools,Employees
INSERTED DETAIL,18/10/2017,GI,2452938,"2,337.10",HC111312,Walford Primary School Imprest Account,201807,Schools,Supplies & Services
INSERTED DETAIL,18/10/2017,WM,2452962,"2,126.21",HC108443,West Mercia Energy,201807,Environment and Place,Premises-Related Expenditure
INSERTED DETAIL,18/10/2017,WM,2452967,663.81,HC108443,West Mercia Energy,201807,Environment and Place,Premises-Related Expenditure
INSERTED DETAIL,18/10/2017,WM,2452973,"2,024.72",HC108443,West Mercia Energy,201807,Environment and Place,Premises-Related Expenditure
INSERTED DETAIL,18/10/2017,WM,2452974,868.1,HC108443,West Mercia Energy,201807,Environment and Place,Premises-Related Expenditure
INSERTED DETAIL,18/10/2017,WM,2452975,"11,103.26",HC108443,West Mercia Energy,201807,Environment and Place,Premises-Related Expenditure
INSERTED DETAIL,18/10/2017,WM,2452976,"1,278.78",HC108443,West Mercia Energy,201807,Schools,Premises-Related Expenditure
INSERTED DETAIL,18/10/2017,WM,2452977,"1,177.00",HC108443,West Mercia Energy,201807,Schools,Premises-Related Expenditure
INSERTED DETAIL,18/10/2017,WM,2452978,828.08,HC108443,West Mercia Energy,201807,Environment and Place,Premises-Related Expenditure
INSERTED DETAIL,18/10/2017,WM,2452979,829.02,HC108443,West Mercia Energy,201807,Environment and Place,Premises-Related Expenditure
INSERTED DETAIL,18/10/2017,WM,2452980,641.97,HC108443,West Mercia Energy,201807,Environment and Place,Premises-Related Expenditure
INSERTED DETAIL,18/10/2017,WM,2452981,"1,200.48",HC108443,West Mercia Energy,201807,Schools,Premises-Related Expenditure
INSERTED DETAIL,18/10/2017,WM,2452983,442.45,HC108443,West Mercia Energy,201807,Environment and Place,Premises-Related Expenditure
INSERTED DETAIL,18/10/2017,WM,2452984,956.28,HC108443,West Mercia Energy,201807,Environment and Place,Premises-Related Expenditure
INSERTED DETAIL,18/10/2017,WM,2452989,553.69,HC108443,West Mercia Energy,201807,Environment and Place,Premises-Related Expenditure
INSERTED DETAIL,18/10/2017,WM,2452990,894.91,HC108443,West Mercia Energy,201807,Environment and Place,Premises-Related Expenditure
INSERTED DETAIL,18/10/2017,WM,2452992,511.42,HC108443,West Mercia Energy,201807,Schools,Premises-Related Expenditure
INSERTED DETAIL,18/10/2017,WM,2452993,561.15,HC108443,West Mercia Energy,201807,Schools,Premises-Related Expenditure
INSERTED DETAIL,18/10/2017,WM,2453010,902.04,HC108443,West Mercia Energy,201807,Environment and Place,Premises-Related Expenditure
INSERTED DETAIL,18/10/2017,WM,2453016,513.89,HC108443,West Mercia Energy,201807,Schools,Premises-Related Expenditure
INSERTED DETAIL,18/10/2017,WM,2453028,687.83,HC108443,West Mercia Energy,201807,Schools,Premises-Related Expenditure
INSERTED DETAIL,18/10/2017,WM,2453043,719.52,HC108443,West Mercia Energy,201807,Environment and Place,Premises-Related Expenditure
INSERTED DETAIL,18/10/2017,WM,2453045,471.87,HC108443,West Mercia Energy,201807,Schools,Premises-Related Expenditure
INSERTED DETAIL,18/10/2017,WM,2453054,444.06,HC108443,West Mercia Energy,201807,Schools,Premises-Related Expenditure
INSERTED DETAIL,18/10/2017,WM,2453064,810.4,HC108443,West Mercia Energy,201807,Schools,Premises-Related Expenditure
INSERTED DETAIL,18/10/2017,WM,2453066,491.5,HC108443,West Mercia Energy,201807,Schools,Premises-Related Expenditure
INSERTED DETAIL,18/10/2017,WM,2453069,466.82,HC108443,West Mercia Energy,201807,Schools,Premises-Related Expenditure
INSERTED DETAIL,18/10/2017,WM,2453072,628.06,HC108443,West Mercia Energy,201807,Environment and Place,Premises-Related Expenditure
INSERTED DETAIL,18/10/2017,WM,2453074,743.02,HC108443,West Mercia Energy,201807,Environment and Place,Premises-Related Expenditure
INSERTED DETAIL,18/10/2017,WM,2453075,433.4,HC108443,West Mercia Energy,201807,Schools,Premises-Related Expenditure
INSERTED DETAIL,18/10/2017,WM,2453076,428.46,HC108443,West Mercia Energy,201807,Environment and Place,Premises-Related Expenditure
INSERTED DETAIL,18/10/2017,WM,2453077,560.08,HC108443,West Mercia Energy,201807,Environment and Place,Premises-Related Expenditure
INSERTED DETAIL,18/10/2017,WM,2453084,560.03,HC108443,West Mercia Energy,201807,Environment and Place,Premises-Related Expenditure
INSERTED DETAIL,18/10/2017,WM,2453088,844.55,HC108443,West Mercia Energy,201807,Schools,Premises-Related Expenditure
INSERTED DETAIL,18/10/2017,WM,2453100,481.32,HC108443,West Mercia Energy,201807,Schools,Premises-Related Expenditure
INSERTED DETAIL,18/10/2017,WM,2453102,594.6,HC108443,West Mercia Energy,201807,Environment and Place,Premises-Related Expenditure
INSERTED DETAIL,18/10/2017,WM,2453103,673.08,HC108443,West Mercia Energy,201807,Environment and Place,Premises-Related Expenditure
INSERTED DETAIL,18/10/2017,WM,2453106,"16,584.93",HC108443,West Mercia Energy,201807,Environment and Place,Premises-Related Expenditure
INSERTED DETAIL,19/10/2017,GI,2453145,"10,784.16",HC121175,Matrix SCM Ltd,201807,Adults Operations,Employees
INSERTED DETAIL,19/10/2017,GI,2453145,"9,576.21",HC121175,Matrix SCM Ltd,201807,Mental Health,Employees
INSERTED DETAIL,19/10/2017,GI,2453145,"5,181.79",HC121175,Matrix SCM Ltd,201807,Safeguarding and Family Support,Employees
INSERTED DETAIL,19/10/2017,GI,2453145,"2,315.26",HC121175,REDACTED,201807,Safeguarding and Family Support,Employees
INSERTED DETAIL,19/10/2017,GI,2453179,"4,003.94",HC111402,Weobley High School Petty Cash,201807,Schools,Supplies & Services
INSERTED DETAIL,19/10/2017,GI,2453180,973.24,HC110093,St Peters C P School Imprest,201807,Schools,Supplies & Services
INSERTED DETAIL,19/10/2017,GI,2453666,"8,818.07",HC105275,Ledbury Primary School Imprest,201807,Schools,Supplies & Services
INSERTED DETAIL,19/10/2017,GI,2453667,"9,515.77",HC111380,Welsh Water,201807,Environment and Place,Premises-Related Expenditure
INSERTED DETAIL,20/10/2017,GI,2453765,480,HC123999,REDACTED,201807,Safeguarding and Family Support,Third Party Payments
INSERTED DETAIL,20/10/2017,GI,2453776,950,HC106103,Holmer C of E Academy,201807,Dedicated Schools Grant,Support Services
INSERTED DETAIL,20/10/2017,GI,2453778,475,HC115716,Mordiford Church of England Primary School,201807,Dedicated Schools Grant,Support Services
INSERTED DETAIL,20/10/2017,GI,2453780,475,HC107656,St Pauls Church of England Primary School,201807,Dedicated Schools Grant,Support Services
INSERTED DETAIL,20/10/2017,GI,2453782,475,HC105572,Lady Hawkins School (Academy),201807,Dedicated Schools Grant,Support Services
INSERTED DETAIL,20/10/2017,GI,2453788,475,HC110794,The Steiner Academy Hereford,201807,Dedicated Schools Grant,Support Services
INSERTED DETAIL,20/10/2017,GI,2453789,"1,079.17",HC113960,Barrs Court Academy,201807,Dedicated Schools Grant,Support Services
INSERTED DETAIL,20/10/2017,GI,2453790,"1,079.17",HC113960,Barrs Court Academy,201807,Dedicated Schools Grant,Support Services
INSERTED DETAIL,20/10/2017,GI,2453791,"1,079.17",HC113960,Barrs Court Academy,201807,Dedicated Schools Grant,Support Services
INSERTED DETAIL,20/10/2017,GI,2453792,475,HC113960,Barrs Court Academy,201807,Dedicated Schools Grant,Support Services
INSERTED DETAIL,20/10/2017,GI,2453793,764.17,HC113960,Barrs Court Academy,201807,Dedicated Schools Grant,Support Services
INSERTED DETAIL,20/10/2017,GI,2453794,764.17,HC113960,Barrs Court Academy,201807,Dedicated Schools Grant,Support Services
INSERTED DETAIL,20/10/2017,GI,2453795,475,HC113960,Barrs Court Academy,201807,Dedicated Schools Grant,Support Services
INSERTED DETAIL,20/10/2017,GI,2453796,764.17,HC113960,Barrs Court Academy,201807,Dedicated Schools Grant,Support Services
INSERTED DETAIL,20/10/2017,GI,2453797,"1,079.17",HC113960,Barrs Court Academy,201807,Dedicated Schools Grant,Support Services
INSERTED DETAIL,20/10/2017,GI,2453798,"1,079.17",HC113960,Barrs Court Academy,201807,Dedicated Schools Grant,Support Services
INSERTED DETAIL,20/10/2017,GI,2453799,764.17,HC113960,Barrs Court Academy,201807,Dedicated Schools Grant,Support Services
INSERTED DETAIL,20/10/2017,GI,2453800,"1,079.17",HC113960,Barrs Court Academy,201807,Dedicated Schools Grant,Support Services
INSERTED DETAIL,20/10/2017,GI,2453801,475,HC113960,Barrs Court Academy,201807,Dedicated Schools Grant,Support Services
INSERTED DETAIL,20/10/2017,GI,2453802,"1,438.33",HC113960,Barrs Court Academy,201807,Dedicated Schools Grant,Support Services
INSERTED DETAIL,20/10/2017,GI,2453803,764.17,HC113960,Barrs Court Academy,201807,Dedicated Schools Grant,Support Services
INSERTED DETAIL,20/10/2017,GI,2453804,764.17,HC113960,Barrs Court Academy,201807,Dedicated Schools Grant,Support Services
INSERTED DETAIL,20/10/2017,GI,2453805,"1,079.17",HC113960,Barrs Court Academy,201807,Dedicated Schools Grant,Support Services
INSERTED DETAIL,20/10/2017,GI,2453806,764.17,HC113960,Barrs Court Academy,201807,Dedicated Schools Grant,Support Services
INSERTED DETAIL,20/10/2017,GI,2453807,764.17,HC113960,Barrs Court Academy,201807,Dedicated Schools Grant,Support Services
INSERTED DETAIL,20/10/2017,GI,2453808,475,HC113960,Barrs Court Academy,201807,Dedicated Schools Grant,Support Services
INSERTED DETAIL,20/10/2017,GI,2453809,"1,079.17",HC113960,Barrs Court Academy,201807,Dedicated Schools Grant,Support Services
INSERTED DETAIL,20/10/2017,GI,2453810,764.17,HC113960,Barrs Court Academy,201807,Dedicated Schools Grant,Support Services
INSERTED DETAIL,20/10/2017,GI,2453811,764.17,HC113960,Barrs Court Academy,201807,Dedicated Schools Grant,Support Services
INSERTED DETAIL,20/10/2017,GI,2453812,"1,079.17",HC113960,Barrs Court Academy,201807,Dedicated Schools Grant,Support Services
INSERTED DETAIL,20/10/2017,GI,2453813,"1,079.17",HC113960,Barrs Court Academy,201807,Dedicated Schools Grant,Support Services
INSERTED DETAIL,20/10/2017,GI,2453814,"1,079.17",HC113960,Barrs Court Academy,201807,Dedicated Schools Grant,Support Services
INSERTED DETAIL,20/10/2017,GI,2453815,764.17,HC113960,Barrs Court Academy,201807,Dedicated Schools Grant,Support Services
INSERTED DETAIL,20/10/2017,GI,2453816,764.17,HC113960,Barrs Court Academy,201807,Dedicated Schools Grant,Support Services
INSERTED DETAIL,20/10/2017,GI,2453817,764.17,HC113960,Barrs Court Academy,201807,Dedicated Schools Grant,Support Services
INSERTED DETAIL,20/10/2017,GI,2453818,"1,079.17",HC113960,Barrs Court Academy,201807,Dedicated Schools Grant,Support Services
INSERTED DETAIL,20/10/2017,GI,2453819,"1,079.17",HC113960,Barrs Court Academy,201807,Dedicated Schools Grant,Support Services
INSERTED DETAIL,20/10/2017,GI,2453820,"1,079.17",HC113960,Barrs Court Academy,201807,Dedicated Schools Grant,Support Services
INSERTED DETAIL,20/10/2017,GI,2453821,"1,079.17",HC113960,Barrs Court Academy,201807,Dedicated Schools Grant,Support Services
INSERTED DETAIL,20/10/2017,GI,2453822,"1,438.33",HC113960,Barrs Court Academy,201807,Dedicated Schools Grant,Support Services
INSERTED DETAIL,20/10/2017,GI,2453823,"1,079.17",HC113960,Barrs Court Academy,201807,Dedicated Schools Grant,Support Services
INSERTED DETAIL,20/10/2017,GI,2453824,"1,079.17",HC113960,Barrs Court Academy,201807,Dedicated Schools Grant,Support Services
INSERTED DETAIL,20/10/2017,GI,2453825,"1,438.33",HC113960,Barrs Court Academy,201807,Dedicated Schools Grant,Support Services
INSERTED DETAIL,20/10/2017,GI,2453826,764.17,HC113960,Barrs Court Academy,201807,Dedicated Schools Grant,Support Services
INSERTED DETAIL,20/10/2017,GI,2453827,764.17,HC113960,Barrs Court Academy,201807,Dedicated Schools Grant,Support Services
INSERTED DETAIL,20/10/2017,GI,2453828,764.17,HC113960,Barrs Court Academy,201807,Dedicated Schools Grant,Support Services
INSERTED DETAIL,20/10/2017,GI,2453829,764.17,HC113960,Barrs Court Academy,201807,Dedicated Schools Grant,Support Services
INSERTED DETAIL,20/10/2017,GI,2453830,764.17,HC117835,The Brookfield School (Academy),201807,Dedicated Schools Grant,Support Services
INSERTED DETAIL,20/10/2017,GI,2453831,764.17,HC117835,The Brookfield School (Academy),201807,Dedicated Schools Grant,Support Services
INSERTED DETAIL,20/10/2017,GI,2453832,475,HC117835,The Brookfield School (Academy),201807,Dedicated Schools Grant,Support Services
INSERTED DETAIL,20/10/2017,GI,2453833,475,HC117835,The Brookfield School (Academy),201807,Dedicated Schools Grant,Support Services
INSERTED DETAIL,20/10/2017,GI,2453834,764.17,HC117835,The Brookfield School (Academy),201807,Dedicated Schools Grant,Support Services
INSERTED DETAIL,20/10/2017,GI,2453835,764.17,HC117835,The Brookfield School (Academy),201807,Dedicated Schools Grant,Support Services
INSERTED DETAIL,20/10/2017,GI,2453836,764.17,HC117835,The Brookfield School (Academy),201807,Dedicated Schools Grant,Support Services
INSERTED DETAIL,20/10/2017,GI,2453837,475,HC117835,The Brookfield School (Academy),201807,Dedicated Schools Grant,Support Services
INSERTED DETAIL,20/10/2017,GI,2453838,764.17,HC117835,The Brookfield School (Academy),201807,Dedicated Schools Grant,Support Services
INSERTED DETAIL,20/10/2017,GI,2453839,475,HC111701,Whitecross Hereford Academy,201807,Dedicated Schools Grant,Support Services
INSERTED DETAIL,20/10/2017,GI,2453847,475,HC110648,BAE Trust T/A The Hereford Academy,201807,Dedicated Schools Grant,Support Services
INSERTED DETAIL,20/10/2017,GI,2453848,764.17,HC117835,The Brookfield School (Academy),201807,Dedicated Schools Grant,Support Services
INSERTED DETAIL,20/10/2017,GI,2453849,764.17,HC117835,The Brookfield School (Academy),201807,Dedicated Schools Grant,Support Services
INSERTED DETAIL,20/10/2017,GI,2453850,475,HC113960,Barrs Court Academy,201807,Dedicated Schools Grant,Support Services
INSERTED DETAIL,20/10/2017,GI,2453851,"1,079.17",HC113960,Barrs Court Academy,201807,Dedicated Schools Grant,Support Services
INSERTED DETAIL,20/10/2017,GI,2453852,"1,438.33",HC113960,Barrs Court Academy,201807,Dedicated Schools Grant,Support Services
INSERTED DETAIL,20/10/2017,GI,2453853,"1,079.17",HC113960,Barrs Court Academy,201807,Dedicated Schools Grant,Support Services
INSERTED DETAIL,20/10/2017,GI,2453854,764.17,HC113960,Barrs Court Academy,201807,Dedicated Schools Grant,Support Services
INSERTED DETAIL,20/10/2017,GI,2453855,764.17,HC113960,Barrs Court Academy,201807,Dedicated Schools Grant,Support Services
INSERTED DETAIL,20/10/2017,GI,2453856,"1,079.17",HC113960,Barrs Court Academy,201807,Dedicated Schools Grant,Support Services
INSERTED DETAIL,20/10/2017,GI,2453857,475,HC113960,Barrs Court Academy,201807,Dedicated Schools Grant,Support Services
INSERTED DETAIL,20/10/2017,GI,2453858,475,HC113960,Barrs Court Academy,201807,Dedicated Schools Grant,Support Services
INSERTED DETAIL,20/10/2017,GI,2453859,475,HC113960,Barrs Court Academy,201807,Dedicated Schools Grant,Support Services
INSERTED DETAIL,20/10/2017,GI,2453860,"1,079.17",HC113960,Barrs Court Academy,201807,Dedicated Schools Grant,Support Services
INSERTED DETAIL,20/10/2017,GI,2453861,"1,079.17",HC113960,Barrs Court Academy,201807,Dedicated Schools Grant,Support Services
INSERTED DETAIL,20/10/2017,GI,2453862,"1,433.33",HC117835,The Brookfield School (Academy),201807,Dedicated Schools Grant,Support Services
INSERTED DETAIL,20/10/2017,GI,2453864,475,HC117835,The Brookfield School (Academy),201807,Dedicated Schools Grant,Support Services
INSERTED DETAIL,20/10/2017,GI,2453866,475,HC113960,Barrs Court Academy,201807,Dedicated Schools Grant,Support Services
INSERTED DETAIL,20/10/2017,GI,2453867,764.17,HC113960,Barrs Court Academy,201807,Dedicated Schools Grant,Support Services
INSERTED DETAIL,20/10/2017,GI,2453868,764.17,HC113960,Barrs Court Academy,201807,Dedicated Schools Grant,Support Services
INSERTED DETAIL,20/10/2017,GI,2453869,475,HC102152,Ashperton Primary Academy,201807,Dedicated Schools Grant,Support Services
INSERTED DETAIL,20/10/2017,GI,2453872,475,HC104761,Herefordshire Marches Federation-Lord Scudamore,201807,Dedicated Schools Grant,Support Services
INSERTED DETAIL,20/10/2017,GI,2453873,475,HC105572,Lady Hawkins School (Academy),201807,Dedicated Schools Grant,Support Services
INSERTED DETAIL,20/10/2017,GI,2453874,475,HC113960,Barrs Court Academy,201807,Dedicated Schools Grant,Support Services
INSERTED DETAIL,20/10/2017,GI,2453876,764.17,HC117835,The Brookfield School (Academy),201807,Dedicated Schools Grant,Support Services
INSERTED DETAIL,20/10/2017,GI,2453877,475,HC117835,The Brookfield School (Academy),201807,Dedicated Schools Grant,Support Services
INSERTED DETAIL,20/10/2017,GI,2453878,475,HC117835,The Brookfield School (Academy),201807,Dedicated Schools Grant,Support Services
INSERTED DETAIL,20/10/2017,GI,2453879,475,HC117835,The Brookfield School (Academy),201807,Dedicated Schools Grant,Support Services
INSERTED DETAIL,20/10/2017,GI,2453880,764.17,HC117835,The Brookfield School (Academy),201807,Dedicated Schools Grant,Support Services
INSERTED DETAIL,20/10/2017,GI,2453881,475,HC110794,The Steiner Academy Hereford,201807,Dedicated Schools Grant,Support Services
INSERTED DETAIL,20/10/2017,GI,2453882,"1,079.17",HC113960,Barrs Court Academy,201807,Dedicated Schools Grant,Support Services
INSERTED DETAIL,20/10/2017,GI,2453884,475,HC102183,Herefordshire Marches Federation-Kings Caple,201807,Dedicated Schools Grant,Support Services
INSERTED DETAIL,20/10/2017,GI,2453886,475,HC115884,St Thomas Cantilupe CE Academy,201807,Dedicated Schools Grant,Support Services
INSERTED DETAIL,20/10/2017,GI,2453894,475,HC113960,Barrs Court Academy,201807,Dedicated Schools Grant,Support Services
INSERTED DETAIL,20/10/2017,GI,2453895,475,HC113960,Barrs Court Academy,201807,Dedicated Schools Grant,Support Services
INSERTED DETAIL,20/10/2017,GI,2453896,475,HC113960,Barrs Court Academy,201807,Dedicated Schools Grant,Support Services
INSERTED DETAIL,20/10/2017,GI,2453897,"1,079.17",HC113960,Barrs Court Academy,201807,Dedicated Schools Grant,Support Services
INSERTED DETAIL,20/10/2017,GI,2453899,475,HC117835,The Brookfield School (Academy),201807,Dedicated Schools Grant,Support Services
INSERTED DETAIL,20/10/2017,GI,2453902,475,HC113960,Barrs Court Academy,201807,Dedicated Schools Grant,Support Services
INSERTED DETAIL,20/10/2017,GI,2453904,"1,079.17",HC113960,Barrs Court Academy,201807,Dedicated Schools Grant,Support Services
INSERTED DETAIL,20/10/2017,GI,2453905,475,HC113960,Barrs Court Academy,201807,Dedicated Schools Grant,Support Services
INSERTED DETAIL,20/10/2017,GI,2453906,475,HC113960,Barrs Court Academy,201807,Dedicated Schools Grant,Support Services
INSERTED DETAIL,20/10/2017,GI,2453907,475,HC117835,The Brookfield School (Academy),201807,Dedicated Schools Grant,Support Services
INSERTED DETAIL,20/10/2017,GI,2453908,475,HC117835,The Brookfield School (Academy),201807,Dedicated Schools Grant,Support Services
INSERTED DETAIL,20/10/2017,GI,2453911,475,HC104739,John Masefield High School (Academy),201807,Dedicated Schools Grant,Support Services
INSERTED DETAIL,20/10/2017,GI,2453912,475,HC113960,Barrs Court Academy,201807,Dedicated Schools Grant,Support Services
INSERTED DETAIL,20/10/2017,GI,2453913,475,HC113960,Barrs Court Academy,201807,Dedicated Schools Grant,Support Services
INSERTED DETAIL,20/10/2017,GI,2453914,475,HC113960,Barrs Court Academy,201807,Dedicated Schools Grant,Support Services
INSERTED DETAIL,20/10/2017,GI,2453918,475,HC111701,Whitecross Hereford Academy,201807,Dedicated Schools Grant,Support Services
INSERTED DETAIL,20/10/2017,GI,2453919,475,HC117835,The Brookfield School (Academy),201807,Dedicated Schools Grant,Support Services
INSERTED DETAIL,20/10/2017,GI,2453921,475,HC102152,Ashperton Primary Academy,201807,Dedicated Schools Grant,Support Services
INSERTED DETAIL,20/10/2017,GI,2453922,475,HC108716,Stretton Sugwas CE Academy,201807,Dedicated Schools Grant,Support Services
INSERTED DETAIL,20/10/2017,GI,2453923,475,HC115716,Mordiford Church of England Primary School,201807,Dedicated Schools Grant,Support Services
INSERTED DETAIL,20/10/2017,GI,2453925,475,HC117835,The Brookfield School (Academy),201807,Dedicated Schools Grant,Support Services
INSERTED DETAIL,20/10/2017,GI,2453926,475,HC117835,The Brookfield School (Academy),201807,Dedicated Schools Grant,Support Services
INSERTED DETAIL,20/10/2017,GI,2453928,475,HC102524,Brockhampton Primary School (Academy),201807,Dedicated Schools Grant,Support Services
INSERTED DETAIL,20/10/2017,GI,2453930,475,HC117835,The Brookfield School (Academy),201807,Dedicated Schools Grant,Support Services
INSERTED DETAIL,20/10/2017,GI,2453931,475,HC117835,The Brookfield School (Academy),201807,Dedicated Schools Grant,Support Services
INSERTED DETAIL,20/10/2017,GI,2453933,475,HC115884,St Thomas Cantilupe CE Academy,201807,Dedicated Schools Grant,Support Services
INSERTED DETAIL,20/10/2017,GI,2453934,"1,079.17",HC117835,The Brookfield School (Academy),201807,Dedicated Schools Grant,Support Services
INSERTED DETAIL,20/10/2017,GI,2453935,764.17,HC117835,The Brookfield School (Academy),201807,Dedicated Schools Grant,Support Services
INSERTED DETAIL,20/10/2017,GI,2453937,764.17,HC117835,The Brookfield School (Academy),201807,Dedicated Schools Grant,Support Services
INSERTED DETAIL,20/10/2017,GI,2453938,764.17,HC117835,The Brookfield School (Academy),201807,Dedicated Schools Grant,Support Services
INSERTED DETAIL,20/10/2017,GI,2453939,764.17,HC117835,The Brookfield School (Academy),201807,Dedicated Schools Grant,Support Services
INSERTED DETAIL,20/10/2017,GI,2453940,764.17,HC117835,The Brookfield School (Academy),201807,Dedicated Schools Grant,Support Services
INSERTED DETAIL,20/10/2017,GI,2453941,475,HC113733,Canon Pyon CE Academy,201807,Dedicated Schools Grant,Support Services
INSERTED DETAIL,20/10/2017,GI,2453942,475,HC113960,Barrs Court Academy,201807,Dedicated Schools Grant,Support Services
INSERTED DETAIL,20/10/2017,GI,2453944,475,HC117835,The Brookfield School (Academy),201807,Dedicated Schools Grant,Support Services
INSERTED DETAIL,20/10/2017,GI,2453946,475,HC104739,John Masefield High School (Academy),201807,Dedicated Schools Grant,Support Services
INSERTED DETAIL,20/10/2017,GI,2453947,475,HC117835,The Brookfield School (Academy),201807,Dedicated Schools Grant,Support Services
INSERTED DETAIL,20/10/2017,GI,2453948,475,HC117835,The Brookfield School (Academy),201807,Dedicated Schools Grant,Support Services
INSERTED DETAIL,20/10/2017,GI,2453949,475,HC117835,The Brookfield School (Academy),201807,Dedicated Schools Grant,Support Services
INSERTED DETAIL,20/10/2017,GI,2453950,475,HC117835,The Brookfield School (Academy),201807,Dedicated Schools Grant,Support Services
INSERTED DETAIL,20/10/2017,GI,2453951,475,HC117835,The Brookfield School (Academy),201807,Dedicated Schools Grant,Support Services
INSERTED DETAIL,20/10/2017,GI,2453952,475,HC113960,Barrs Court Academy,201807,Dedicated Schools Grant,Support Services
INSERTED DETAIL,20/10/2017,GI,2453953,"1,079.17",HC113960,Barrs Court Academy,201807,Dedicated Schools Grant,Support Services
INSERTED DETAIL,20/10/2017,GI,2453954,764.17,HC113960,Barrs Court Academy,201807,Dedicated Schools Grant,Support Services
INSERTED DETAIL,20/10/2017,GI,2453957,475,HC116854,Fairfield High School (Academy),201807,Dedicated Schools Grant,Support Services
INSERTED DETAIL,20/10/2017,GI,2453960,475,HC102152,Ashperton Primary Academy,201807,Dedicated Schools Grant,Support Services
INSERTED DETAIL,20/10/2017,GI,2453963,475,HC117835,The Brookfield School (Academy),201807,Dedicated Schools Grant,Support Services
INSERTED DETAIL,20/10/2017,GI,2453964,475,HC106103,Holmer C of E Academy,201807,Dedicated Schools Grant,Support Services
INSERTED DETAIL,20/10/2017,GI,2453965,475,HC115884,St Thomas Cantilupe CE Academy,201807,Dedicated Schools Grant,Support Services
INSERTED DETAIL,20/10/2017,GI,2453968,764.17,HC110648,BAE Trust T/A The Hereford Academy,201807,Dedicated Schools Grant,Support Services
INSERTED DETAIL,20/10/2017,GI,2453969,764.17,HC117835,The Brookfield School (Academy),201807,Dedicated Schools Grant,Support Services
INSERTED DETAIL,20/10/2017,GI,2453970,764.17,HC117835,The Brookfield School (Academy),201807,Dedicated Schools Grant,Support Services
INSERTED DETAIL,20/10/2017,GI,2453971,764.17,HC111508,Wigmore High School (Academy),201807,Dedicated Schools Grant,Support Services
INSERTED DETAIL,20/10/2017,GI,2453972,475,HC113960,Barrs Court Academy,201807,Dedicated Schools Grant,Support Services
INSERTED DETAIL,20/10/2017,GI,2453973,475,HC117835,The Brookfield School (Academy),201807,Dedicated Schools Grant,Support Services
INSERTED DETAIL,20/10/2017,GI,2453975,475,HC117835,The Brookfield School (Academy),201807,Dedicated Schools Grant,Support Services
INSERTED DETAIL,20/10/2017,GI,2453977,475,HC110648,BAE Trust T/A The Hereford Academy,201807,Dedicated Schools Grant,Support Services
INSERTED DETAIL,20/10/2017,GI,2453979,764.17,HC117835,The Brookfield School (Academy),201807,Dedicated Schools Grant,Support Services
INSERTED DETAIL,20/10/2017,GI,2453980,"1,438.33",HC113960,Barrs Court Academy,201807,Dedicated Schools Grant,Support Services
INSERTED DETAIL,20/10/2017,GI,2453981,475,HC113960,Barrs Court Academy,201807,Dedicated Schools Grant,Support Services
INSERTED DETAIL,20/10/2017,GI,2453985,475,HC117215,Robert Owen Academey,201807,Dedicated Schools Grant,Support Services
INSERTED DETAIL,20/10/2017,GI,2453986,475,HC102076,Herefordshire Marches Federation Sutton Primary Academy,201807,Dedicated Schools Grant,Support Services
INSERTED DETAIL,20/10/2017,GI,2453988,764.17,HC105571,Wigmore Primary School (Academy),201807,Dedicated Schools Grant,Support Services
INSERTED DETAIL,20/10/2017,GI,2453989,475,HC117835,The Brookfield School (Academy),201807,Dedicated Schools Grant,Support Services
INSERTED DETAIL,20/10/2017,GI,2453990,475,HC117835,The Brookfield School (Academy),201807,Dedicated Schools Grant,Support Services
INSERTED DETAIL,20/10/2017,GI,2453991,764.17,HC117835,The Brookfield School (Academy),201807,Dedicated Schools Grant,Support Services
INSERTED DETAIL,20/10/2017,GI,2453992,764.17,HC117835,The Brookfield School (Academy),201807,Dedicated Schools Grant,Support Services
INSERTED DETAIL,20/10/2017,GI,2453993,475,HC104739,John Masefield High School (Academy),201807,Dedicated Schools Grant,Support Services
INSERTED DETAIL,20/10/2017,GI,2453994,764.17,HC117835,The Brookfield School (Academy),201807,Dedicated Schools Grant,Support Services
INSERTED DETAIL,20/10/2017,GI,2453998,764.17,HC113960,Barrs Court Academy,201807,Dedicated Schools Grant,Support Services
INSERTED DETAIL,20/10/2017,GI,2454000,475,HC105572,Lady Hawkins School (Academy),201807,Dedicated Schools Grant,Support Services
INSERTED DETAIL,20/10/2017,GI,2454004,764.17,HC106103,Holmer C of E Academy,201807,Dedicated Schools Grant,Support Services
INSERTED DETAIL,20/10/2017,GI,2454005,475,HC117835,The Brookfield School (Academy),201807,Dedicated Schools Grant,Support Services
INSERTED DETAIL,20/10/2017,GI,2454006,475,HC117835,The Brookfield School (Academy),201807,Dedicated Schools Grant,Support Services
INSERTED DETAIL,20/10/2017,GI,2454007,"1,079.17",HC113960,Barrs Court Academy,201807,Dedicated Schools Grant,Support Services
INSERTED DETAIL,20/10/2017,GI,2454008,475,HC111508,Wigmore High School (Academy),201807,Dedicated Schools Grant,Support Services
INSERTED DETAIL,20/10/2017,GI,2454009,475,HC117835,The Brookfield School (Academy),201807,Dedicated Schools Grant,Support Services
INSERTED DETAIL,20/10/2017,GI,2454010,764.17,HC113960,Barrs Court Academy,201807,Dedicated Schools Grant,Support Services
INSERTED DETAIL,20/10/2017,GI,2454011,764.17,HC113960,Barrs Court Academy,201807,Dedicated Schools Grant,Support Services
INSERTED DETAIL,20/10/2017,GI,2454012,"1,079.17",HC113960,Barrs Court Academy,201807,Dedicated Schools Grant,Support Services
INSERTED DETAIL,20/10/2017,GI,2454013,764.17,HC113960,Barrs Court Academy,201807,Dedicated Schools Grant,Support Services
INSERTED DETAIL,20/10/2017,GI,2454014,"1,079.17",HC113960,Barrs Court Academy,201807,Dedicated Schools Grant,Support Services
INSERTED DETAIL,20/10/2017,GI,2454015,"1,079.17",HC113960,Barrs Court Academy,201807,Dedicated Schools Grant,Support Services
INSERTED DETAIL,20/10/2017,GI,2454016,"1,079.17",HC113960,Barrs Court Academy,201807,Dedicated Schools Grant,Support Services
INSERTED DETAIL,20/10/2017,GI,2454017,764.17,HC113960,Barrs Court Academy,201807,Dedicated Schools Grant,Support Services
INSERTED DETAIL,20/10/2017,GI,2454019,475,HC117835,The Brookfield School (Academy),201807,Dedicated Schools Grant,Support Services
INSERTED DETAIL,20/10/2017,GI,2454020,475,HC117835,The Brookfield School (Academy),201807,Dedicated Schools Grant,Support Services
INSERTED DETAIL,20/10/2017,GI,2454021,475,HC115884,St Thomas Cantilupe CE Academy,201807,Dedicated Schools Grant,Support Services
INSERTED DETAIL,20/10/2017,GI,2454025,764.17,HC110794,The Steiner Academy Hereford,201807,Dedicated Schools Grant,Support Services
INSERTED DETAIL,20/10/2017,GI,2454027,475,HC107656,St Pauls Church of England Primary School,201807,Dedicated Schools Grant,Support Services
INSERTED DETAIL,20/10/2017,GI,2454030,475,HC117835,The Brookfield School (Academy),201807,Dedicated Schools Grant,Support Services
INSERTED DETAIL,20/10/2017,GI,2454031,"1,079.17",HC117835,The Brookfield School (Academy),201807,Dedicated Schools Grant,Support Services
INSERTED DETAIL,20/10/2017,GI,2454032,475,HC117835,The Brookfield School (Academy),201807,Dedicated Schools Grant,Support Services
INSERTED DETAIL,20/10/2017,GI,2454034,764.17,HC117835,The Brookfield School (Academy),201807,Dedicated Schools Grant,Support Services
INSERTED DETAIL,20/10/2017,GI,2454036,475,HC102076,Herefordshire Marches Federation Sutton Primary Academy,201807,Dedicated Schools Grant,Support Services
INSERTED DETAIL,20/10/2017,GI,2454037,475,HC117835,The Brookfield School (Academy),201807,Dedicated Schools Grant,Support Services
INSERTED DETAIL,20/10/2017,GI,2454040,764.17,HC117835,The Brookfield School (Academy),201807,Dedicated Schools Grant,Support Services
INSERTED DETAIL,20/10/2017,GI,2454041,475,HC113961,Burghill Community Academy,201807,Dedicated Schools Grant,Support Services
INSERTED DETAIL,20/10/2017,GI,2454042,475,HC116854,Fairfield High School (Academy),201807,Dedicated Schools Grant,Support Services
INSERTED DETAIL,20/10/2017,GI,2454043,475,HC104727,John Kyrle High School,201807,Dedicated Schools Grant,Support Services
INSERTED DETAIL,20/10/2017,GI,2454045,475,HC117835,The Brookfield School (Academy),201807,Dedicated Schools Grant,Support Services
INSERTED DETAIL,20/10/2017,GI,2454046,"1,438.33",HC113960,Barrs Court Academy,201807,Dedicated Schools Grant,Support Services
INSERTED DETAIL,20/10/2017,GI,2454050,475,HC115716,Mordiford Church of England Primary School,201807,Dedicated Schools Grant,Support Services
INSERTED DETAIL,20/10/2017,GI,2454051,764.17,HC113960,Barrs Court Academy,201807,Dedicated Schools Grant,Support Services
INSERTED DETAIL,20/10/2017,GI,2454052,475,HC105571,Wigmore Primary School (Academy),201807,Dedicated Schools Grant,Support Services
INSERTED DETAIL,20/10/2017,GI,2454053,764.17,HC104727,John Kyrle High School,201807,Dedicated Schools Grant,Support Services
INSERTED DETAIL,20/10/2017,GI,2454054,"1,079.17",HC104739,John Masefield High School (Academy),201807,Dedicated Schools Grant,Support Services
INSERTED DETAIL,20/10/2017,GI,2454055,475,HC111701,Whitecross Hereford Academy,201807,Dedicated Schools Grant,Support Services
INSERTED DETAIL,20/10/2017,GI,2454057,475,HC117835,The Brookfield School (Academy),201807,Dedicated Schools Grant,Support Services
INSERTED DETAIL,20/10/2017,GI,2454058,475,HC105571,Wigmore Primary School (Academy),201807,Dedicated Schools Grant,Support Services
INSERTED DETAIL,20/10/2017,GI,2454059,764.17,HC113960,Barrs Court Academy,201807,Dedicated Schools Grant,Support Services
INSERTED DETAIL,20/10/2017,GI,2454062,475,HC113733,Canon Pyon CE Academy,201807,Dedicated Schools Grant,Support Services
INSERTED DETAIL,20/10/2017,GI,2454067,475,HC113960,Barrs Court Academy,201807,Dedicated Schools Grant,Support Services
INSERTED DETAIL,20/10/2017,GI,2454068,475,HC122135,BAET T/A Bodenham St Michael's CE Primary School,201807,Dedicated Schools Grant,Support Services
INSERTED DETAIL,20/10/2017,GI,2454069,764.17,HC113960,Barrs Court Academy,201807,Dedicated Schools Grant,Support Services
INSERTED DETAIL,20/10/2017,GI,2454071,"1,079.17",HC113960,Barrs Court Academy,201807,Dedicated Schools Grant,Support Services
INSERTED DETAIL,20/10/2017,GI,2454072,"1,079.17",HC113960,Barrs Court Academy,201807,Dedicated Schools Grant,Support Services
INSERTED DETAIL,20/10/2017,GI,2454073,764.17,HC117835,The Brookfield School (Academy),201807,Dedicated Schools Grant,Support Services
INSERTED DETAIL,20/10/2017,GI,2454074,475,HC117835,The Brookfield School (Academy),201807,Dedicated Schools Grant,Support Services
INSERTED DETAIL,20/10/2017,GI,2454077,764.17,HC105714,QEHC Academy Trust T/A Queen Elizabeth Humanities College,201807,Dedicated Schools Grant,Support Services
INSERTED DETAIL,20/10/2017,GI,2454080,764.17,HC104739,John Masefield High School (Academy),201807,Dedicated Schools Grant,Support Services
INSERTED DETAIL,20/10/2017,GI,2454081,475,HC105571,Wigmore Primary School (Academy),201807,Dedicated Schools Grant,Support Services
INSERTED DETAIL,20/10/2017,GI,2454083,"1,079.17",HC113960,Barrs Court Academy,201807,Dedicated Schools Grant,Support Services
INSERTED DETAIL,20/10/2017,GI,2454084,475,HC113961,Burghill Community Academy,201807,Dedicated Schools Grant,Support Services
INSERTED DETAIL,20/10/2017,GI,2454085,475,HC115716,Mordiford Church of England Primary School,201807,Dedicated Schools Grant,Support Services
INSERTED DETAIL,20/10/2017,GI,2454086,475,HC111701,Whitecross Hereford Academy,201807,Dedicated Schools Grant,Support Services
INSERTED DETAIL,20/10/2017,GI,2454087,475,HC116854,Fairfield High School (Academy),201807,Dedicated Schools Grant,Support Services
INSERTED DETAIL,20/10/2017,GI,2454088,475,HC113960,Barrs Court Academy,201807,Dedicated Schools Grant,Support Services
INSERTED DETAIL,20/10/2017,GI,2454089,764.17,HC117835,The Brookfield School (Academy),201807,Dedicated Schools Grant,Support Services
INSERTED DETAIL,20/10/2017,GI,2454090,764.17,HC115884,St Thomas Cantilupe CE Academy,201807,Dedicated Schools Grant,Support Services
INSERTED DETAIL,20/10/2017,GI,2454095,475,HC104739,John Masefield High School (Academy),201807,Dedicated Schools Grant,Support Services
INSERTED DETAIL,20/10/2017,GI,2454096,475,HC110648,BAE Trust T/A The Hereford Academy,201807,Dedicated Schools Grant,Support Services
INSERTED DETAIL,20/10/2017,GI,2454097,475,HC113960,Barrs Court Academy,201807,Dedicated Schools Grant,Support Services
INSERTED DETAIL,20/10/2017,GI,2454098,475,HC104761,Herefordshire Marches Federation-Lord Scudamore,201807,Dedicated Schools Grant,Support Services
INSERTED DETAIL,20/10/2017,GI,2454102,475,HC110648,BAE Trust T/A The Hereford Academy,201807,Dedicated Schools Grant,Support Services
INSERTED DETAIL,20/10/2017,GI,2454104,475,HC104739,John Masefield High School (Academy),201807,Dedicated Schools Grant,Support Services
INSERTED DETAIL,20/10/2017,GI,2454105,475,HC104739,John Masefield High School (Academy),201807,Dedicated Schools Grant,Support Services
INSERTED DETAIL,20/10/2017,GI,2454106,475,HC104739,John Masefield High School (Academy),201807,Dedicated Schools Grant,Support Services
INSERTED DETAIL,20/10/2017,GI,2454109,475,HC113960,Barrs Court Academy,201807,Dedicated Schools Grant,Support Services
INSERTED DETAIL,20/10/2017,GI,2454110,475,HC113960,Barrs Court Academy,201807,Dedicated Schools Grant,Support Services
INSERTED DETAIL,20/10/2017,GI,2454111,475,HC113960,Barrs Court Academy,201807,Dedicated Schools Grant,Support Services
INSERTED DETAIL,20/10/2017,GI,2454112,"1,079.17",HC113960,Barrs Court Academy,201807,Dedicated Schools Grant,Support Services
INSERTED DETAIL,20/10/2017,GI,2454113,"1,079.17",HC113960,Barrs Court Academy,201807,Dedicated Schools Grant,Support Services
INSERTED DETAIL,20/10/2017,GI,2454114,"1,079.17",HC113960,Barrs Court Academy,201807,Dedicated Schools Grant,Support Services
INSERTED DETAIL,20/10/2017,GI,2454115,475,HC113960,Barrs Court Academy,201807,Dedicated Schools Grant,Support Services
INSERTED DETAIL,20/10/2017,GI,2454116,475,HC113960,Barrs Court Academy,201807,Dedicated Schools Grant,Support Services
INSERTED DETAIL,20/10/2017,GI,2454117,764.17,HC113960,Barrs Court Academy,201807,Dedicated Schools Grant,Support Services
INSERTED DETAIL,20/10/2017,GI,2454118,475,HC108716,Stretton Sugwas CE Academy,201807,Dedicated Schools Grant,Support Services
INSERTED DETAIL,20/10/2017,GI,2454119,475,HC122135,BAET T/A Bodenham St Michael's CE Primary School,201807,Dedicated Schools Grant,Support Services
INSERTED DETAIL,20/10/2017,GI,2454121,475,HC105714,QEHC Academy Trust T/A Queen Elizabeth Humanities College,201807,Dedicated Schools Grant,Support Services
INSERTED DETAIL,20/10/2017,GI,2454123,475,HC117835,The Brookfield School (Academy),201807,Dedicated Schools Grant,Support Services
INSERTED DETAIL,20/10/2017,GI,2454124,475,HC117835,The Brookfield School (Academy),201807,Dedicated Schools Grant,Support Services
INSERTED DETAIL,20/10/2017,GI,2454125,475,HC117835,The Brookfield School (Academy),201807,Dedicated Schools Grant,Support Services
INSERTED DETAIL,20/10/2017,GI,2454126,475,HC110794,The Steiner Academy Hereford,201807,Dedicated Schools Grant,Support Services
INSERTED DETAIL,20/10/2017,GI,2454127,475,HC117835,The Brookfield School (Academy),201807,Dedicated Schools Grant,Support Services
INSERTED DETAIL,20/10/2017,GI,2454128,475,HC117835,The Brookfield School (Academy),201807,Dedicated Schools Grant,Support Services
INSERTED DETAIL,20/10/2017,GI,2454129,475,HC105073,Kingstone & Thruxton Primary School (Academy),201807,Dedicated Schools Grant,Support Services
INSERTED DETAIL,20/10/2017,GI,2454130,475,HC102076,Herefordshire Marches Federation Sutton Primary Academy,201807,Dedicated Schools Grant,Support Services
INSERTED DETAIL,20/10/2017,GI,2454131,764.17,HC110648,BAE Trust T/A The Hereford Academy,201807,Dedicated Schools Grant,Support Services
INSERTED DETAIL,20/10/2017,GI,2454133,475,HC113960,Barrs Court Academy,201807,Dedicated Schools Grant,Support Services
INSERTED DETAIL,20/10/2017,GI,2454134,475,HC105073,Kingstone & Thruxton Primary School (Academy),201807,Dedicated Schools Grant,Support Services
INSERTED DETAIL,20/10/2017,GI,2454136,764.17,HC104727,John Kyrle High School,201807,Dedicated Schools Grant,Support Services
INSERTED DETAIL,20/10/2017,GI,2454137,475,HC110648,BAE Trust T/A The Hereford Academy,201807,Dedicated Schools Grant,Support Services
INSERTED DETAIL,20/10/2017,GI,2454138,764.17,HC117835,The Brookfield School (Academy),201807,Dedicated Schools Grant,Support Services
INSERTED DETAIL,20/10/2017,GI,2454139,475,HC117835,The Brookfield School (Academy),201807,Dedicated Schools Grant,Support Services
INSERTED DETAIL,20/10/2017,GI,2454140,764.17,HC117215,Robert Owen Academey,201807,Dedicated Schools Grant,Support Services
INSERTED DETAIL,20/10/2017,GI,2454142,917,HC107656,St Pauls Church of England Primary School,201807,Dedicated Schools Grant,Support Services
INSERTED DETAIL,20/10/2017,GI,2454143,840.59,HC117835,The Brookfield School (Academy),201807,Dedicated Schools Grant,Support Services
INSERTED DETAIL,20/10/2017,GI,2454145,950,HC117835,The Brookfield School (Academy),201807,Dedicated Schools Grant,Support Services
INSERTED DETAIL,20/10/2017,GI,2454146,633.33,HC117835,The Brookfield School (Academy),201807,Dedicated Schools Grant,Support Services
INSERTED DETAIL,20/10/2017,GI,2454147,"5,349.19",HC117835,The Brookfield School (Academy),201807,Dedicated Schools Grant,Support Services
INSERTED DETAIL,20/10/2017,GI,2454149,"5,349.19",HC104739,John Masefield High School (Academy),201807,Dedicated Schools Grant,Support Services
INSERTED DETAIL,20/10/2017,GI,2454150,690.22,HC107656,St Pauls Church of England Primary School,201807,Dedicated Schools Grant,Support Services
INSERTED DETAIL,20/10/2017,GI,2454152,506.7,HC103460,Gloucestershire College,201807,Dedicated Schools Grant,Support Services
INSERTED DETAIL,20/10/2017,GI,2454153,"1,425.00",HC103935,Herefordshire & Ludlow College,201807,Dedicated Schools Grant,Support Services
INSERTED DETAIL,20/10/2017,GI,2454158,"2,292.51",HC103935,Herefordshire & Ludlow College,201807,Dedicated Schools Grant,Support Services
INSERTED DETAIL,20/10/2017,GI,2454159,"1,425.00",HC103935,Herefordshire & Ludlow College,201807,Dedicated Schools Grant,Support Services
INSERTED DETAIL,20/10/2017,GI,2454160,"1,425.00",HC103935,Herefordshire & Ludlow College,201807,Dedicated Schools Grant,Support Services
INSERTED DETAIL,20/10/2017,GI,2454161,"1,425.00",HC103935,Herefordshire & Ludlow College,201807,Dedicated Schools Grant,Support Services
INSERTED DETAIL,20/10/2017,GI,2454163,"1,425.00",HC103935,Herefordshire & Ludlow College,201807,Dedicated Schools Grant,Support Services
INSERTED DETAIL,20/10/2017,GI,2454164,"1,839.99",HC103935,Herefordshire & Ludlow College,201807,Dedicated Schools Grant,Support Services
INSERTED DETAIL,20/10/2017,GI,2454165,"2,925.00",HC103935,Herefordshire & Ludlow College,201807,Dedicated Schools Grant,Support Services
INSERTED DETAIL,20/10/2017,GI,2454166,"2,925.00",HC103935,Herefordshire & Ludlow College,201807,Dedicated Schools Grant,Support Services
INSERTED DETAIL,20/10/2017,GI,2454167,"2,925.00",HC103935,Herefordshire & Ludlow College,201807,Dedicated Schools Grant,Support Services
INSERTED DETAIL,20/10/2017,GI,2454168,"1,839.99",HC103935,Herefordshire & Ludlow College,201807,Dedicated Schools Grant,Support Services
INSERTED DETAIL,20/10/2017,GI,2454169,"2,925.00",HC103935,Herefordshire & Ludlow College,201807,Dedicated Schools Grant,Support Services
INSERTED DETAIL,20/10/2017,GI,2454170,"1,839.99",HC103935,Herefordshire & Ludlow College,201807,Dedicated Schools Grant,Support Services
INSERTED DETAIL,20/10/2017,GI,2454171,"2,925.00",HC103935,Herefordshire & Ludlow College,201807,Dedicated Schools Grant,Support Services
INSERTED DETAIL,20/10/2017,GI,2454172,"2,925.00",HC103935,Herefordshire & Ludlow College,201807,Dedicated Schools Grant,Support Services
INSERTED DETAIL,20/10/2017,GI,2454173,"1,839.99",HC103935,Herefordshire & Ludlow College,201807,Dedicated Schools Grant,Support Services
INSERTED DETAIL,20/10/2017,GI,2454174,"2,334.99",HC103935,Herefordshire & Ludlow College,201807,Dedicated Schools Grant,Support Services
INSERTED DETAIL,20/10/2017,GI,2454175,"2,334.99",HC103935,Herefordshire & Ludlow College,201807,Dedicated Schools Grant,Support Services
INSERTED DETAIL,20/10/2017,GI,2454176,"2,925.00",HC103935,Herefordshire & Ludlow College,201807,Dedicated Schools Grant,Support Services
INSERTED DETAIL,20/10/2017,GI,2454177,"2,925.00",HC103935,Herefordshire & Ludlow College,201807,Dedicated Schools Grant,Support Services
INSERTED DETAIL,20/10/2017,GI,2454178,"1,839.99",HC103935,Herefordshire & Ludlow College,201807,Dedicated Schools Grant,Support Services
INSERTED DETAIL,20/10/2017,GI,2454179,"2,334.99",HC103935,Herefordshire & Ludlow College,201807,Dedicated Schools Grant,Support Services
INSERTED DETAIL,20/10/2017,GI,2454180,"3,237.51",HC106975,Hoople Ltd,201807,Dedicated Schools Grant,Support Services
INSERTED DETAIL,20/10/2017,GI,2454181,834.99,HC106975,Hoople Ltd,201807,Dedicated Schools Grant,Support Services
INSERTED DETAIL,20/10/2017,GI,2454182,"3,792.51",HC106975,Hoople Ltd,201807,Dedicated Schools Grant,Support Services
INSERTED DETAIL,20/10/2017,GI,2454183,"3,792.51",HC106975,Hoople Ltd,201807,Dedicated Schools Grant,Support Services
INSERTED DETAIL,20/10/2017,GI,2454184,"3,792.51",HC106975,Hoople Ltd,201807,Dedicated Schools Grant,Support Services
INSERTED DETAIL,20/10/2017,GI,2454185,"3,792.51",HC106975,Hoople Ltd,201807,Dedicated Schools Grant,Support Services
INSERTED DETAIL,20/10/2017,GI,2454186,"3,792.51",HC106975,Hoople Ltd,201807,Dedicated Schools Grant,Support Services
INSERTED DETAIL,20/10/2017,GI,2454187,"2,925.00",HC106975,Hoople Ltd,201807,Dedicated Schools Grant,Support Services
INSERTED DETAIL,20/10/2017,GI,2454188,"1,425.00",HC106975,Hoople Ltd,201807,Dedicated Schools Grant,Support Services
INSERTED DETAIL,20/10/2017,GI,2454189,"1,425.00",HC106975,Hoople Ltd,201807,Dedicated Schools Grant,Support Services
INSERTED DETAIL,20/10/2017,GI,2454190,"3,792.51",HC120103,The Plylimon Trust-Horizon Training,201807,Dedicated Schools Grant,Support Services
INSERTED DETAIL,20/10/2017,GI,2454191,"1,839.99",HC120103,The Plylimon Trust-Horizon Training,201807,Dedicated Schools Grant,Support Services
INSERTED DETAIL,20/10/2017,GI,2454192,"2,334.99",HC120103,The Plylimon Trust-Horizon Training,201807,Dedicated Schools Grant,Support Services
INSERTED DETAIL,20/10/2017,GI,2454193,"2,334.99",HC120103,The Plylimon Trust-Horizon Training,201807,Dedicated Schools Grant,Support Services
INSERTED DETAIL,20/10/2017,GI,2454194,"2,925.00",HC120103,The Plylimon Trust-Horizon Training,201807,Dedicated Schools Grant,Support Services
INSERTED DETAIL,20/10/2017,GI,2454195,"2,925.00",HC120103,The Plylimon Trust-Horizon Training,201807,Dedicated Schools Grant,Support Services
INSERTED DETAIL,20/10/2017,GI,2454196,"1,166.58",HC122706,Hereford Sixth Form College Academy Trust,201807,Dedicated Schools Grant,Support Services
INSERTED DETAIL,20/10/2017,GI,2454197,525.09,HC122706,Hereford Sixth Form College Academy Trust,201807,Dedicated Schools Grant,Support Services
INSERTED DETAIL,20/10/2017,GI,2454198,"3,792.51",HC122375,Warwickshire College Group,201807,Dedicated Schools Grant,Support Services
INSERTED DETAIL,20/10/2017,GI,2454199,665.56,HC111701,Whitecross Hereford Academy,201807,Dedicated Schools Grant,Support Services
INSERTED DETAIL,20/10/2017,GI,2454200,"1,383.72",HC114613,National Star College,201807,Dedicated Schools Grant,Support Services
INSERTED DETAIL,20/10/2017,GI,2454201,"1,662.72",HC114613,National Star College,201807,Dedicated Schools Grant,Support Services
INSERTED DETAIL,20/10/2017,GI,2454202,460.74,HC114613,National Star College,201807,Dedicated Schools Grant,Support Services
INSERTED DETAIL,20/10/2017,GI,2454203,"2,174.22",HC114613,National Star College,201807,Dedicated Schools Grant,Support Services
INSERTED DETAIL,20/10/2017,GI,2454204,"2,174.07",HC114613,National Star College,201807,Dedicated Schools Grant,Support Services
INSERTED DETAIL,20/10/2017,GI,2454205,"2,405.40",HC114613,National Star College,201807,Dedicated Schools Grant,Support Services
INSERTED DETAIL,20/10/2017,GI,2454208,556.66,HC111701,Whitecross Hereford Academy,201807,Dedicated Schools Grant,Support Services
INSERTED DETAIL,20/10/2017,GI,2454209,"2,651.49",HC112582,Royal National College,201807,Dedicated Schools Grant,Support Services
INSERTED DETAIL,20/10/2017,GI,2454210,"4,950.99",HC112582,Royal National College,201807,Dedicated Schools Grant,Support Services
INSERTED DETAIL,20/10/2017,GI,2454211,"2,883.75",HC112582,Royal National College,201807,Dedicated Schools Grant,Support Services
INSERTED DETAIL,20/10/2017,GI,2454212,"5,976.75",HC112582,Royal National College,201807,Dedicated Schools Grant,Support Services
INSERTED DETAIL,20/10/2017,GI,2454213,"9,287.76",HC114613,National Star College,201807,Dedicated Schools Grant,Support Services
INSERTED DETAIL,20/10/2017,GI,2454214,"2,410.38",HC114613,National Star College,201807,Dedicated Schools Grant,Support Services
INSERTED DETAIL,20/10/2017,GI,2454215,"3,339.81",HC114613,National Star College,201807,Dedicated Schools Grant,Support Services
INSERTED DETAIL,20/10/2017,GI,2454216,834.99,HC103854,Hereford College Of Arts,201807,Dedicated Schools Grant,Support Services
INSERTED DETAIL,20/10/2017,GI,2454217,"3,792.51",HC116830,Nova Training,201807,Dedicated Schools Grant,Support Services
INSERTED DETAIL,20/10/2017,GI,2454218,"2,925.00",HC116830,Nova Training,201807,Dedicated Schools Grant,Support Services
INSERTED DETAIL,20/10/2017,GI,2454219,"2,925.00",HC116830,Nova Training,201807,Dedicated Schools Grant,Support Services
INSERTED DETAIL,20/10/2017,GI,2454220,"1,730.25",HC114595,Derwen College,201807,Dedicated Schools Grant,Support Services
INSERTED DETAIL,20/10/2017,GI,2454221,"1,888.47",HC114595,Derwen College,201807,Dedicated Schools Grant,Support Services
INSERTED DETAIL,20/10/2017,GI,2454222,"3,722.76",HC114595,Derwen College,201807,Dedicated Schools Grant,Support Services
INSERTED DETAIL,20/10/2017,GI,2454223,"4,411.74",HC114595,Derwen College,201807,Dedicated Schools Grant,Support Services
INSERTED DETAIL,20/10/2017,GI,2454224,"2,225.25",HC114595,Derwen College,201807,Dedicated Schools Grant,Support Services
INSERTED DETAIL,20/10/2017,GI,2454225,"1,888.47",HC114595,Derwen College,201807,Dedicated Schools Grant,Support Services
INSERTED DETAIL,20/10/2017,GI,2454226,"1,888.47",HC114595,Derwen College,201807,Dedicated Schools Grant,Support Services
INSERTED DETAIL,20/10/2017,GI,2454227,"1,888.47",HC114595,Derwen College,201807,Dedicated Schools Grant,Support Services
INSERTED DETAIL,20/10/2017,GI,2454228,"3,047.49",HC114595,Derwen College,201807,Dedicated Schools Grant,Support Services
INSERTED DETAIL,20/10/2017,GI,2454229,"1,888.47",HC114595,Derwen College,201807,Dedicated Schools Grant,Support Services
INSERTED DETAIL,20/10/2017,GI,2454230,"5,735.04",HC114596,William Morris Camphill Community,201807,Dedicated Schools Grant,Support Services
INSERTED DETAIL,20/10/2017,GI,2454246,"1,107.00",HC118940,Earl Mortimer College & Sixth Form HCC,201807,Children & Young People Capital,Capital Income
INSERTED DETAIL,20/10/2017,GI,2454252,426,HC107661,Little Dewchurch CE Primary School,201807,Children & Young People Capital,Capital Income
INSERTED DETAIL,20/10/2017,GI,2454258,816,HC105841,Marlbrook  Primary School,201807,Children & Young People Capital,Capital Income
INSERTED DETAIL,20/10/2017,GI,2454264,650,HC100677,Ashfield Park Primary School,201807,Children & Young People Capital,Capital Income
INSERTED DETAIL,20/10/2017,GI,2454270,433,HC116432,Ewyas Harold Primary School-A/C 63712842,201807,Children & Young People Capital,Capital Income
INSERTED DETAIL,20/10/2017,GI,2454276,834,HC118939,Riverside Primary School - HCC,201807,Children & Young People Capital,Capital Income
INSERTED DETAIL,20/10/2017,GI,2454281,483,HC121892,Colwall C of E Primary School,201807,Children & Young People Capital,Capital Income
INSERTED DETAIL,20/10/2017,GI,2454286,663,HC110078,St Martins Primary School,201807,Children & Young People Capital,Capital Income
INSERTED DETAIL,23/10/2017,GI,2454386,535,HC108278,Orleton C.E. Primary School Imprest,201807,Schools,Employees
INSERTED DETAIL,23/10/2017,GI,2454386,907.02,HC108278,Orleton C.E. Primary School Imprest,201807,Schools,Premises-Related Expenditure
INSERTED DETAIL,23/10/2017,GI,2454386,"4,086.39",HC108278,Orleton C.E. Primary School Imprest,201807,Schools,Supplies & Services
INSERTED DETAIL,23/10/2017,WM,2454437,"1,869.71",HC108443,West Mercia Energy,201807,Environment and Place,Premises-Related Expenditure
INSERTED DETAIL,23/10/2017,WM,2454451,"1,004.57",HC108443,West Mercia Energy,201807,Schools,Premises-Related Expenditure
INSERTED DETAIL,23/10/2017,WM,2454455,"1,123.53",HC108443,West Mercia Energy,201807,Schools,Premises-Related Expenditure
INSERTED DETAIL,23/10/2017,WM,2454465,906.19,HC108443,West Mercia Energy,201807,Environment and Place,Premises-Related Expenditure
INSERTED DETAIL,24/10/2017,GI,2454608,495,HC105069,Kingsland School Imprest,201807,Schools,Employees
INSERTED DETAIL,24/10/2017,GI,2454608,"3,973.41",HC105069,Kingsland School Imprest,201807,Schools,Supplies & Services
INSERTED DETAIL,26/10/2017,GI,2458104,"15,116.03",HC121175,Matrix SCM Ltd,201807,Adults Operations,Employees
INSERTED DETAIL,26/10/2017,GI,2458104,"1,159.20",HC121175,Matrix SCM Ltd,201807,Mental Health,Employees
INSERTED DETAIL,26/10/2017,GI,2458104,"2,776.87",HC121175,Matrix SCM Ltd,201807,Safeguarding and Family Support,Employees
INSERTED DETAIL,26/10/2017,GI,2458104,"2,302.04",HC121175,REDACTED,201807,Safeguarding and Family Support,Employees
INSERTED DETAIL,26/10/2017,GI,2458105,425,HC123294,REDACTED,201807,Safeguarding and Family Support,Supplies & Services
INSERTED DETAIL,26/10/2017,GI,2458106,433.33,HC121017,REDACTED,201807,Safeguarding and Family Support,Supplies & Services
INSERTED DETAIL,26/10/2017,GI,2458108,433.33,HC103959,REDACTED,201807,Safeguarding and Family Support,Supplies & Services
INSERTED DETAIL,26/10/2017,GI,2458109,460,HC123322,REDACTED,201807,Safeguarding and Family Support,Supplies & Services
INSERTED DETAIL,26/10/2017,GI,2458110,433.33,HC123323,REDACTED,201807,Safeguarding and Family Support,Supplies & Services
INSERTED DETAIL,26/10/2017,GI,2458140,484.17,HC107953,Natwest One Card (Direct Debit A/C),201807,Education and Commissioning,Supplies & Services
INSERTED DETAIL,26/10/2017,GI,2458140,888.13,HC107953,REDACTED,201807,Safeguarding and Family Support,Supplies & Services
INSERTED DETAIL,26/10/2017,GI,2458141,888.13,HC107953,REDACTED,201807,Safeguarding and Family Support,Supplies & Services
INSERTED DETAIL,26/10/2017,GI,2458142,"1,709.51",HC107953,REDACTED,201807,Safeguarding and Family Support,Supplies & Services
INSERTED DETAIL,27/10/2017,GI,2458201,460.93,HC123900,REDACTED,201807,Dedicated Schools Grant,Third Party Payments
INSERTED DETAIL,27/10/2017,GI,2458252,"1,303.42",HC107953,REDACTED,201807,Adults Operations,Supplies & Services
INSERTED DETAIL,30/10/2017,GI,2458357,506.53,HC108165,NYS Corporate,201807,Safeguarding and Family Support,Transport-Related Expenditure
INSERTED DETAIL,30/10/2017,GI,2458357,418.97,HC108165,REDACTED,201807,Safeguarding and Family Support,Transport-Related Expenditure
INSERTED DETAIL,30/10/2017,GI,2458358,"6,349.73",HC118939,Riverside Primary School - HCC,201807,Dedicated Schools Grant,Support Services
INSERTED DETAIL,31/10/2017,GI,2458431,908.02,HC111399,Weobley County Primary School Imprest,201807,Schools,Supplies & Services
INSERTED DETAIL,31/10/2017,GI,2458482,512.23,HC110101,St Weonards CP School Imprest,201807,Schools,Supplies & Services
INSERTED DETAIL,31/10/2017,GI,2458483,525,HC103627,H C Westfield School Imprest,201807,Schools,Employees
INSERTED DETAIL,31/10/2017,GI,2458483,622.39,HC103627,H C Westfield School Imprest,201807,Schools,Supplies & Services
INSERTED DETAIL,31/10/2017,GI,2458489,423.02,HC119027,Benefits Immediate Payments,201807,Corporate,Transfer Payments
INSERTED DETAIL,31/10/2017,GI,2458491,"1,470.00",HC119137,REDACTED,201807,Communities,Supplies & Services
INSERTED DETAIL,31/10/2017,GI,2458510,887.06,HC107953,REDACTED,201807,Safeguarding and Family Support,Supplies & Services
INSERTED DETAIL,02/11/2017,GI,2459159,"11,258.74",HC111380,Welsh Water,201808,Environment and Place,Premises-Related Expenditure
INSERTED DETAIL,02/11/2017,GI,2459161,"1,430.00",HC104709,Staunton-on-Wye Primary School,201808,Schools,Premises-Related Expenditure
INSERTED DETAIL,02/11/2017,GI,2459161,663.28,HC104709,Staunton-on-Wye Primary School,201808,Schools,Supplies & Services
INSERTED DETAIL,02/11/2017,GI,2459162,"7,599.65",HC121175,Matrix SCM Ltd,201808,Adults Operations,Employees
INSERTED DETAIL,02/11/2017,GI,2459162,"1,153.32",HC121175,Matrix SCM Ltd,201808,Mental Health,Employees
INSERTED DETAIL,02/11/2017,GI,2459162,"6,586.20",HC121175,Matrix SCM Ltd,201808,Safeguarding and Family Support,Employees
INSERTED DETAIL,02/11/2017,GI,2459162,"1,640.21",HC121175,REDACTED,201808,Safeguarding and Family Support,Employees
INSERTED DETAIL,06/11/2017,WM,2459939,"1,475.80",HC108443,West Mercia Energy,201808,Environment and Place,Premises-Related Expenditure
INSERTED DETAIL,06/11/2017,WM,2459945,437.18,HC108443,West Mercia Energy,201808,Schools,Premises-Related Expenditure
INSERTED DETAIL,06/11/2017,WM,2459947,"2,020.04",HC108443,West Mercia Energy,201808,Environment and Place,Premises-Related Expenditure
INSERTED DETAIL,06/11/2017,WM,2459953,447.21,HC108443,West Mercia Energy,201808,Environment and Place,Premises-Related Expenditure
INSERTED DETAIL,06/11/2017,WM,2459954,458.48,HC108443,West Mercia Energy,201808,Environment and Place,Premises-Related Expenditure
INSERTED DETAIL,06/11/2017,WM,2459968,426.31,HC108443,West Mercia Energy,201808,Environment and Place,Premises-Related Expenditure
INSERTED DETAIL,06/11/2017,WM,2459973,813.52,HC108443,West Mercia Energy,201808,Environment and Place,Premises-Related Expenditure
INSERTED DETAIL,08/11/2017,GI,2461714,"1,285.38",HC109809,Shobdon CP School Imprest A/C,201808,Schools,Supplies & Services
INSERTED DETAIL,08/11/2017,GI,2461792,"1,394.62",HC111924,Bromyard Community Transport Ltd,201808,Environment and Place,Supplies & Services
INSERTED DETAIL,08/11/2017,GI,2461793,"1,768.13",HC112080,CVS Ledbury & District (Ledbury Ring & Ride)Standing Order,201808,Environment and Place,Supplies & Services
INSERTED DETAIL,08/11/2017,GI,2461794,"1,426.29",HC102478,Dore Community Transport,201808,Environment and Place,Supplies & Services
INSERTED DETAIL,08/11/2017,GI,2461795,684.47,HC101381,Hay & District Dial a Ride,201808,Environment and Place,Supplies & Services
INSERTED DETAIL,08/11/2017,GI,2461796,"3,092.60",HC103982,HVOSS,201808,Environment and Place,Supplies & Services
INSERTED DETAIL,08/11/2017,GI,2461797,792.96,HC101379,Ross Country Cars (Standing Order),201808,Environment and Place,Supplies & Services
INSERTED DETAIL,08/11/2017,GI,2461798,"2,150.83",HC110743,The Plynlimon Trust Community Car Scheme,201808,Environment and Place,Supplies & Services
INSERTED DETAIL,08/11/2017,GI,2461799,"115,806.29",HC107466,Worcestershire Health & Care NHS Trust,201808,Public Health,Third Party Payments
INSERTED DETAIL,08/11/2017,GI,2461800,"147,313.06",HC120328,Addaction,201808,Public Health,Third Party Payments
INSERTED DETAIL,08/11/2017,GI,2461802,"16,524.00",HC122767,"H3 (The Hub, Hospital & Home Teaching Team)",201808,Dedicated Schools Grant,Third Party Payments
INSERTED DETAIL,08/11/2017,GI,2461803,"60,000.00",HC120107,Hereford Integrated Behaviour Outreach Service,201808,Dedicated Schools Grant,Third Party Payments
INSERTED DETAIL,08/11/2017,GI,2461804,"30,875.00",HC120107,Hereford Integrated Behaviour Outreach Service,201808,Dedicated Schools Grant,Third Party Payments
INSERTED DETAIL,08/11/2017,GI,2461805,630,HC106870,REDACTED,201808,Adults Operations,Premises-Related Expenditure
INSERTED DETAIL,08/11/2017,GI,2461806,625,HC106831,REDACTED,201808,Adults Operations,Premises-Related Expenditure
INSERTED DETAIL,08/11/2017,GI,2461807,450,HC109865,REDACTED,201808,Adults Operations,Premises-Related Expenditure
INSERTED DETAIL,08/11/2017,GI,2461808,450,HC109865,REDACTED,201808,Adults Operations,Premises-Related Expenditure
INSERTED DETAIL,08/11/2017,GI,2461810,460,HC112055,REDACTED,201808,Adults Operations,Premises-Related Expenditure
INSERTED DETAIL,08/11/2017,GI,2461811,550,HC108221,REDACTED,201808,Adults Operations,Premises-Related Expenditure
INSERTED DETAIL,08/11/2017,GI,2461812,520,HC108905,REDACTED,201808,Adults Operations,Premises-Related Expenditure
INSERTED DETAIL,08/11/2017,GI,2461813,475,HC109338,REDACTED,201808,Adults Operations,Premises-Related Expenditure
INSERTED DETAIL,08/11/2017,GI,2461816,"4,333.33",HC106816,REDACTED,201808,Adults Operations,Premises-Related Expenditure
INSERTED DETAIL,08/11/2017,GI,2461817,650,HC110272,REDACTED,201808,Adults Operations,Premises-Related Expenditure
INSERTED DETAIL,08/11/2017,GI,2461818,420,HC106104,REDACTED,201808,Adults Operations,Premises-Related Expenditure
INSERTED DETAIL,08/11/2017,GI,2461819,600,HC115622,REDACTED,201808,Adults Operations,Premises-Related Expenditure
INSERTED DETAIL,08/11/2017,GI,2461820,625,HC119280,REDACTED,201808,Adults Operations,Premises-Related Expenditure
INSERTED DETAIL,08/11/2017,GI,2461821,587.43,HC121622,REDACTED,201808,Adults Operations,Premises-Related Expenditure
INSERTED DETAIL,08/11/2017,GI,2461822,600,HC121325,REDACTED,201808,Adults Operations,Premises-Related Expenditure
INSERTED DETAIL,08/11/2017,GI,2461823,525,HC116314,REDACTED,201808,Adults Operations,Premises-Related Expenditure
INSERTED DETAIL,08/11/2017,GI,2461824,550,HC121939,REDACTED,201808,Adults Operations,Premises-Related Expenditure
INSERTED DETAIL,08/11/2017,GI,2461825,650,HC122259,REDACTED,201808,Adults Operations,Premises-Related Expenditure
INSERTED DETAIL,08/11/2017,GI,2461826,550,HC122996,REDACTED,201808,Adults Operations,Premises-Related Expenditure
INSERTED DETAIL,08/11/2017,GI,2461829,"7,635.29",HC121175,Matrix SCM Ltd,201808,Adults Operations,Employees
INSERTED DETAIL,08/11/2017,GI,2461829,"1,517.31",HC121175,Matrix SCM Ltd,201808,Mental Health,Employees
INSERTED DETAIL,08/11/2017,GI,2461829,"3,972.58",HC121175,Matrix SCM Ltd,201808,Safeguarding and Family Support,Employees
INSERTED DETAIL,08/11/2017,GI,2461829,"2,502.10",HC121175,REDACTED,201808,Safeguarding and Family Support,Employees
INSERTED DETAIL,09/11/2017,GI,2462464,"5,417.82",HC108793,REDACTED,201808,Adults Operations,Supplies & Services
INSERTED DETAIL,10/11/2017,GI,2462628,"1,227.80",HC105573,Luston C P School Imprest,201808,Schools,Supplies & Services
INSERTED DETAIL,10/11/2017,GI,2462631,"1,033.07",HC102369,Madley Primary School Imprest A/C,201808,Schools,Supplies & Services
INSERTED DETAIL,13/11/2017,GI,2462726,551.65,HC103911,Hereford Trading Standards Imprest,201808,Environment and Place,Supplies & Services
INSERTED DETAIL,15/11/2017,GI,2463039,894.46,HC101143,Brampton Abbotts CE School Imprest,201808,Schools,Premises-Related Expenditure
INSERTED DETAIL,15/11/2017,GI,2463039,841.09,HC101143,Brampton Abbotts CE School Imprest,201808,Schools,Supplies & Services
INSERTED DETAIL,15/11/2017,GI,2463087,524.76,HC100786,Aylestone School Imprest A/C,201808,Schools,Premises-Related Expenditure
INSERTED DETAIL,15/11/2017,GI,2463087,766.03,HC100786,Aylestone School Imprest A/C,201808,Schools,Supplies & Services
INSERTED DETAIL,15/11/2017,GI,2463088,487.93,HC100786,Aylestone School Imprest A/C,201808,Schools,Employees
INSERTED DETAIL,15/11/2017,GI,2463088,"5,641.86",HC100786,Aylestone School Imprest A/C,201808,Schools,Supplies & Services
INSERTED DETAIL,15/11/2017,GI,2463088,581.84,HC100786,Aylestone School Imprest A/C,201808,Schools,Transport-Related Expenditure
INSERTED DETAIL,15/11/2017,GI,2463089,"3,348.22",HC100786,Aylestone School Imprest A/C,201808,Schools,Supplies & Services
INSERTED DETAIL,15/11/2017,GI,2463160,"8,691.79",HC121175,Matrix SCM Ltd,201808,Adults Operations,Employees
INSERTED DETAIL,15/11/2017,GI,2463160,"1,260.05",HC121175,Matrix SCM Ltd,201808,Mental Health,Employees
INSERTED DETAIL,15/11/2017,GI,2463160,"7,324.16",HC121175,Matrix SCM Ltd,201808,Safeguarding and Family Support,Employees
INSERTED DETAIL,15/11/2017,GI,2463160,"1,807.17",HC121175,REDACTED,201808,Safeguarding and Family Support,Employees
INSERTED DETAIL,20/11/2017,GI,2463821,475,HC106103,Holmer C of E Academy,201808,Dedicated Schools Grant,Support Services
INSERTED DETAIL,20/11/2017,GI,2463823,475,HC115716,Mordiford Church of England Primary School,201808,Dedicated Schools Grant,Support Services
INSERTED DETAIL,20/11/2017,GI,2463824,475,HC107656,St Pauls Church of England Primary School,201808,Dedicated Schools Grant,Support Services
INSERTED DETAIL,20/11/2017,GI,2463826,475,HC105572,Lady Hawkins School (Academy),201808,Dedicated Schools Grant,Support Services
INSERTED DETAIL,20/11/2017,GI,2463832,475,HC110794,The Steiner Academy Hereford,201808,Dedicated Schools Grant,Support Services
INSERTED DETAIL,20/11/2017,GI,2463833,"1,079.17",HC113960,Barrs Court Academy,201808,Dedicated Schools Grant,Support Services
INSERTED DETAIL,20/11/2017,GI,2463834,"1,079.17",HC113960,Barrs Court Academy,201808,Dedicated Schools Grant,Support Services
INSERTED DETAIL,20/11/2017,GI,2463835,"1,079.17",HC113960,Barrs Court Academy,201808,Dedicated Schools Grant,Support Services
INSERTED DETAIL,20/11/2017,GI,2463836,475,HC113960,Barrs Court Academy,201808,Dedicated Schools Grant,Support Services
INSERTED DETAIL,20/11/2017,GI,2463837,764.17,HC113960,Barrs Court Academy,201808,Dedicated Schools Grant,Support Services
INSERTED DETAIL,20/11/2017,GI,2463838,764.17,HC113960,Barrs Court Academy,201808,Dedicated Schools Grant,Support Services
INSERTED DETAIL,20/11/2017,GI,2463839,475,HC113960,Barrs Court Academy,201808,Dedicated Schools Grant,Support Services
INSERTED DETAIL,20/11/2017,GI,2463840,764.17,HC113960,Barrs Court Academy,201808,Dedicated Schools Grant,Support Services
INSERTED DETAIL,20/11/2017,GI,2463841,"1,079.17",HC113960,Barrs Court Academy,201808,Dedicated Schools Grant,Support Services
INSERTED DETAIL,20/11/2017,GI,2463842,"1,079.17",HC113960,Barrs Court Academy,201808,Dedicated Schools Grant,Support Services
INSERTED DETAIL,20/11/2017,GI,2463843,764.17,HC113960,Barrs Court Academy,201808,Dedicated Schools Grant,Support Services
INSERTED DETAIL,20/11/2017,GI,2463844,"1,079.17",HC113960,Barrs Court Academy,201808,Dedicated Schools Grant,Support Services
INSERTED DETAIL,20/11/2017,GI,2463845,475,HC113960,Barrs Court Academy,201808,Dedicated Schools Grant,Support Services
INSERTED DETAIL,20/11/2017,GI,2463846,"1,438.33",HC113960,Barrs Court Academy,201808,Dedicated Schools Grant,Support Services
INSERTED DETAIL,20/11/2017,GI,2463847,764.17,HC113960,Barrs Court Academy,201808,Dedicated Schools Grant,Support Services
INSERTED DETAIL,20/11/2017,GI,2463848,764.17,HC113960,Barrs Court Academy,201808,Dedicated Schools Grant,Support Services
INSERTED DETAIL,20/11/2017,GI,2463849,"1,079.17",HC113960,Barrs Court Academy,201808,Dedicated Schools Grant,Support Services
INSERTED DETAIL,20/11/2017,GI,2463850,764.17,HC113960,Barrs Court Academy,201808,Dedicated Schools Grant,Support Services
INSERTED DETAIL,20/11/2017,GI,2463851,764.17,HC113960,Barrs Court Academy,201808,Dedicated Schools Grant,Support Services
INSERTED DETAIL,20/11/2017,GI,2463852,475,HC113960,Barrs Court Academy,201808,Dedicated Schools Grant,Support Services
INSERTED DETAIL,20/11/2017,GI,2463853,"1,079.17",HC113960,Barrs Court Academy,201808,Dedicated Schools Grant,Support Services
INSERTED DETAIL,20/11/2017,GI,2463854,764.17,HC113960,Barrs Court Academy,201808,Dedicated Schools Grant,Support Services
INSERTED DETAIL,20/11/2017,GI,2463855,764.17,HC113960,Barrs Court Academy,201808,Dedicated Schools Grant,Support Services
INSERTED DETAIL,20/11/2017,GI,2463856,"1,079.17",HC113960,Barrs Court Academy,201808,Dedicated Schools Grant,Support Services
INSERTED DETAIL,20/11/2017,GI,2463857,"1,079.17",HC113960,Barrs Court Academy,201808,Dedicated Schools Grant,Support Services
INSERTED DETAIL,20/11/2017,GI,2463858,"1,079.17",HC113960,Barrs Court Academy,201808,Dedicated Schools Grant,Support Services
INSERTED DETAIL,20/11/2017,GI,2463859,764.17,HC113960,Barrs Court Academy,201808,Dedicated Schools Grant,Support Services
INSERTED DETAIL,20/11/2017,GI,2463860,764.17,HC113960,Barrs Court Academy,201808,Dedicated Schools Grant,Support Services
INSERTED DETAIL,20/11/2017,GI,2463861,764.17,HC113960,Barrs Court Academy,201808,Dedicated Schools Grant,Support Services
INSERTED DETAIL,20/11/2017,GI,2463862,"1,079.17",HC113960,Barrs Court Academy,201808,Dedicated Schools Grant,Support Services
INSERTED DETAIL,20/11/2017,GI,2463863,"1,079.17",HC113960,Barrs Court Academy,201808,Dedicated Schools Grant,Support Services
INSERTED DETAIL,20/11/2017,GI,2463864,"1,079.17",HC113960,Barrs Court Academy,201808,Dedicated Schools Grant,Support Services
INSERTED DETAIL,20/11/2017,GI,2463865,"1,079.17",HC113960,Barrs Court Academy,201808,Dedicated Schools Grant,Support Services
INSERTED DETAIL,20/11/2017,GI,2463866,"1,438.33",HC113960,Barrs Court Academy,201808,Dedicated Schools Grant,Support Services
INSERTED DETAIL,20/11/2017,GI,2463867,"1,079.17",HC113960,Barrs Court Academy,201808,Dedicated Schools Grant,Support Services
INSERTED DETAIL,20/11/2017,GI,2463868,"1,079.17",HC113960,Barrs Court Academy,201808,Dedicated Schools Grant,Support Services
INSERTED DETAIL,20/11/2017,GI,2463869,"1,438.33",HC113960,Barrs Court Academy,201808,Dedicated Schools Grant,Support Services
INSERTED DETAIL,20/11/2017,GI,2463870,764.17,HC113960,Barrs Court Academy,201808,Dedicated Schools Grant,Support Services
INSERTED DETAIL,20/11/2017,GI,2463871,764.17,HC113960,Barrs Court Academy,201808,Dedicated Schools Grant,Support Services
INSERTED DETAIL,20/11/2017,GI,2463872,764.17,HC113960,Barrs Court Academy,201808,Dedicated Schools Grant,Support Services
INSERTED DETAIL,20/11/2017,GI,2463873,764.17,HC113960,Barrs Court Academy,201808,Dedicated Schools Grant,Support Services
INSERTED DETAIL,20/11/2017,GI,2463874,764.17,HC117835,The Brookfield School (Academy),201808,Dedicated Schools Grant,Support Services
INSERTED DETAIL,20/11/2017,GI,2463875,764.17,HC117835,The Brookfield School (Academy),201808,Dedicated Schools Grant,Support Services
INSERTED DETAIL,20/11/2017,GI,2463876,475,HC117835,The Brookfield School (Academy),201808,Dedicated Schools Grant,Support Services
INSERTED DETAIL,20/11/2017,GI,2463877,475,HC117835,The Brookfield School (Academy),201808,Dedicated Schools Grant,Support Services
INSERTED DETAIL,20/11/2017,GI,2463878,764.17,HC117835,The Brookfield School (Academy),201808,Dedicated Schools Grant,Support Services
INSERTED DETAIL,20/11/2017,GI,2463879,764.17,HC117835,The Brookfield School (Academy),201808,Dedicated Schools Grant,Support Services
INSERTED DETAIL,20/11/2017,GI,2463880,764.17,HC117835,The Brookfield School (Academy),201808,Dedicated Schools Grant,Support Services
INSERTED DETAIL,20/11/2017,GI,2463881,475,HC117835,The Brookfield School (Academy),201808,Dedicated Schools Grant,Support Services
INSERTED DETAIL,20/11/2017,GI,2463882,764.17,HC117835,The Brookfield School (Academy),201808,Dedicated Schools Grant,Support Services
INSERTED DETAIL,20/11/2017,GI,2463883,475,HC111701,Whitecross Hereford Academy,201808,Dedicated Schools Grant,Support Services
INSERTED DETAIL,20/11/2017,GI,2463890,475,HC110648,BAE Trust T/A The Hereford Academy,201808,Dedicated Schools Grant,Support Services
INSERTED DETAIL,20/11/2017,GI,2463891,764.17,HC117835,The Brookfield School (Academy),201808,Dedicated Schools Grant,Support Services
INSERTED DETAIL,20/11/2017,GI,2463892,764.17,HC117835,The Brookfield School (Academy),201808,Dedicated Schools Grant,Support Services
INSERTED DETAIL,20/11/2017,GI,2463893,475,HC113960,Barrs Court Academy,201808,Dedicated Schools Grant,Support Services
INSERTED DETAIL,20/11/2017,GI,2463894,"1,079.17",HC113960,Barrs Court Academy,201808,Dedicated Schools Grant,Support Services
INSERTED DETAIL,20/11/2017,GI,2463895,"1,438.33",HC113960,Barrs Court Academy,201808,Dedicated Schools Grant,Support Services
INSERTED DETAIL,20/11/2017,GI,2463896,"1,079.17",HC113960,Barrs Court Academy,201808,Dedicated Schools Grant,Support Services
INSERTED DETAIL,20/11/2017,GI,2463897,764.17,HC113960,Barrs Court Academy,201808,Dedicated Schools Grant,Support Services
INSERTED DETAIL,20/11/2017,GI,2463898,764.17,HC113960,Barrs Court Academy,201808,Dedicated Schools Grant,Support Services
INSERTED DETAIL,20/11/2017,GI,2463899,"1,079.17",HC113960,Barrs Court Academy,201808,Dedicated Schools Grant,Support Services
INSERTED DETAIL,20/11/2017,GI,2463900,475,HC113960,Barrs Court Academy,201808,Dedicated Schools Grant,Support Services
INSERTED DETAIL,20/11/2017,GI,2463901,475,HC113960,Barrs Court Academy,201808,Dedicated Schools Grant,Support Services
INSERTED DETAIL,20/11/2017,GI,2463902,475,HC113960,Barrs Court Academy,201808,Dedicated Schools Grant,Support Services
INSERTED DETAIL,20/11/2017,GI,2463903,"1,079.17",HC113960,Barrs Court Academy,201808,Dedicated Schools Grant,Support Services
INSERTED DETAIL,20/11/2017,GI,2463904,"1,079.17",HC113960,Barrs Court Academy,201808,Dedicated Schools Grant,Support Services
INSERTED DETAIL,20/11/2017,GI,2463905,"1,433.33",HC117835,The Brookfield School (Academy),201808,Dedicated Schools Grant,Support Services
INSERTED DETAIL,20/11/2017,GI,2463907,475,HC117835,The Brookfield School (Academy),201808,Dedicated Schools Grant,Support Services
INSERTED DETAIL,20/11/2017,GI,2463908,475,HC113960,Barrs Court Academy,201808,Dedicated Schools Grant,Support Services
INSERTED DETAIL,20/11/2017,GI,2463909,764.17,HC113960,Barrs Court Academy,201808,Dedicated Schools Grant,Support Services
INSERTED DETAIL,20/11/2017,GI,2463910,764.17,HC113960,Barrs Court Academy,201808,Dedicated Schools Grant,Support Services
INSERTED DETAIL,20/11/2017,GI,2463911,475,HC102152,Ashperton Primary Academy,201808,Dedicated Schools Grant,Support Services
INSERTED DETAIL,20/11/2017,GI,2463914,475,HC104761,Herefordshire Marches Federation-Lord Scudamore,201808,Dedicated Schools Grant,Support Services
INSERTED DETAIL,20/11/2017,GI,2463915,475,HC105572,Lady Hawkins School (Academy),201808,Dedicated Schools Grant,Support Services
INSERTED DETAIL,20/11/2017,GI,2463916,475,HC113960,Barrs Court Academy,201808,Dedicated Schools Grant,Support Services
INSERTED DETAIL,20/11/2017,GI,2463918,764.17,HC117835,The Brookfield School (Academy),201808,Dedicated Schools Grant,Support Services
INSERTED DETAIL,20/11/2017,GI,2463919,475,HC117835,The Brookfield School (Academy),201808,Dedicated Schools Grant,Support Services
INSERTED DETAIL,20/11/2017,GI,2463920,475,HC117835,The Brookfield School (Academy),201808,Dedicated Schools Grant,Support Services
INSERTED DETAIL,20/11/2017,GI,2463921,475,HC117835,The Brookfield School (Academy),201808,Dedicated Schools Grant,Support Services
INSERTED DETAIL,20/11/2017,GI,2463922,764.17,HC117835,The Brookfield School (Academy),201808,Dedicated Schools Grant,Support Services
INSERTED DETAIL,20/11/2017,GI,2463923,475,HC110794,The Steiner Academy Hereford,201808,Dedicated Schools Grant,Support Services
INSERTED DETAIL,20/11/2017,GI,2463924,"1,079.17",HC113960,Barrs Court Academy,201808,Dedicated Schools Grant,Support Services
INSERTED DETAIL,20/11/2017,GI,2463926,475,HC102183,Herefordshire Marches Federation-Kings Caple,201808,Dedicated Schools Grant,Support Services
INSERTED DETAIL,20/11/2017,GI,2463928,475,HC115884,St Thomas Cantilupe CE Academy,201808,Dedicated Schools Grant,Support Services
INSERTED DETAIL,20/11/2017,GI,2463934,475,HC113960,Barrs Court Academy,201808,Dedicated Schools Grant,Support Services
INSERTED DETAIL,20/11/2017,GI,2463935,475,HC113960,Barrs Court Academy,201808,Dedicated Schools Grant,Support Services
INSERTED DETAIL,20/11/2017,GI,2463936,475,HC113960,Barrs Court Academy,201808,Dedicated Schools Grant,Support Services
INSERTED DETAIL,20/11/2017,GI,2463937,"1,079.17",HC113960,Barrs Court Academy,201808,Dedicated Schools Grant,Support Services
INSERTED DETAIL,20/11/2017,GI,2463939,475,HC117835,The Brookfield School (Academy),201808,Dedicated Schools Grant,Support Services
INSERTED DETAIL,20/11/2017,GI,2463942,475,HC113960,Barrs Court Academy,201808,Dedicated Schools Grant,Support Services
INSERTED DETAIL,20/11/2017,GI,2463944,"1,079.17",HC113960,Barrs Court Academy,201808,Dedicated Schools Grant,Support Services
INSERTED DETAIL,20/11/2017,GI,2463945,475,HC113960,Barrs Court Academy,201808,Dedicated Schools Grant,Support Services
INSERTED DETAIL,20/11/2017,GI,2463946,475,HC113960,Barrs Court Academy,201808,Dedicated Schools Grant,Support Services
INSERTED DETAIL,20/11/2017,GI,2463947,475,HC117835,The Brookfield School (Academy),201808,Dedicated Schools Grant,Support Services
INSERTED DETAIL,20/11/2017,GI,2463948,475,HC117835,The Brookfield School (Academy),201808,Dedicated Schools Grant,Support Services
INSERTED DETAIL,20/11/2017,GI,2463951,475,HC104739,John Masefield High School (Academy),201808,Dedicated Schools Grant,Support Services
INSERTED DETAIL,20/11/2017,GI,2463952,475,HC113960,Barrs Court Academy,201808,Dedicated Schools Grant,Support Services
INSERTED DETAIL,20/11/2017,GI,2463953,475,HC113960,Barrs Court Academy,201808,Dedicated Schools Grant,Support Services
INSERTED DETAIL,20/11/2017,GI,2463954,475,HC113960,Barrs Court Academy,201808,Dedicated Schools Grant,Support Services
INSERTED DETAIL,20/11/2017,GI,2463957,475,HC111701,Whitecross Hereford Academy,201808,Dedicated Schools Grant,Support Services
INSERTED DETAIL,20/11/2017,GI,2463958,475,HC117835,The Brookfield School (Academy),201808,Dedicated Schools Grant,Support Services
INSERTED DETAIL,20/11/2017,GI,2463959,475,HC102152,Ashperton Primary Academy,201808,Dedicated Schools Grant,Support Services
INSERTED DETAIL,20/11/2017,GI,2463960,475,HC108716,Stretton Sugwas CE Academy,201808,Dedicated Schools Grant,Support Services
INSERTED DETAIL,20/11/2017,GI,2463961,475,HC115716,Mordiford Church of England Primary School,201808,Dedicated Schools Grant,Support Services
INSERTED DETAIL,20/11/2017,GI,2463963,475,HC117835,The Brookfield School (Academy),201808,Dedicated Schools Grant,Support Services
INSERTED DETAIL,20/11/2017,GI,2463964,475,HC117835,The Brookfield School (Academy),201808,Dedicated Schools Grant,Support Services
INSERTED DETAIL,20/11/2017,GI,2463966,475,HC102524,Brockhampton Primary School (Academy),201808,Dedicated Schools Grant,Support Services
INSERTED DETAIL,20/11/2017,GI,2463967,475,HC117835,The Brookfield School (Academy),201808,Dedicated Schools Grant,Support Services
INSERTED DETAIL,20/11/2017,GI,2463968,475,HC117835,The Brookfield School (Academy),201808,Dedicated Schools Grant,Support Services
INSERTED DETAIL,20/11/2017,GI,2463969,475,HC115884,St Thomas Cantilupe CE Academy,201808,Dedicated Schools Grant,Support Services
INSERTED DETAIL,20/11/2017,GI,2463970,"1,079.17",HC117835,The Brookfield School (Academy),201808,Dedicated Schools Grant,Support Services
INSERTED DETAIL,20/11/2017,GI,2463971,764.17,HC117835,The Brookfield School (Academy),201808,Dedicated Schools Grant,Support Services
INSERTED DETAIL,20/11/2017,GI,2463972,764.17,HC117835,The Brookfield School (Academy),201808,Dedicated Schools Grant,Support Services
INSERTED DETAIL,20/11/2017,GI,2463973,764.17,HC117835,The Brookfield School (Academy),201808,Dedicated Schools Grant,Support Services
INSERTED DETAIL,20/11/2017,GI,2463974,764.17,HC117835,The Brookfield School (Academy),201808,Dedicated Schools Grant,Support Services
INSERTED DETAIL,20/11/2017,GI,2463975,764.17,HC117835,The Brookfield School (Academy),201808,Dedicated Schools Grant,Support Services
INSERTED DETAIL,20/11/2017,GI,2463976,475,HC113733,Canon Pyon CE Academy,201808,Dedicated Schools Grant,Support Services
INSERTED DETAIL,20/11/2017,GI,2463977,475,HC113960,Barrs Court Academy,201808,Dedicated Schools Grant,Support Services
INSERTED DETAIL,20/11/2017,GI,2463978,475,HC117835,The Brookfield School (Academy),201808,Dedicated Schools Grant,Support Services
INSERTED DETAIL,20/11/2017,GI,2463980,475,HC104739,John Masefield High School (Academy),201808,Dedicated Schools Grant,Support Services
INSERTED DETAIL,20/11/2017,GI,2463981,475,HC117835,The Brookfield School (Academy),201808,Dedicated Schools Grant,Support Services
INSERTED DETAIL,20/11/2017,GI,2463982,475,HC117835,The Brookfield School (Academy),201808,Dedicated Schools Grant,Support Services
INSERTED DETAIL,20/11/2017,GI,2463983,475,HC117835,The Brookfield School (Academy),201808,Dedicated Schools Grant,Support Services
INSERTED DETAIL,20/11/2017,GI,2463984,475,HC117835,The Brookfield School (Academy),201808,Dedicated Schools Grant,Support Services
INSERTED DETAIL,20/11/2017,GI,2463985,475,HC117835,The Brookfield School (Academy),201808,Dedicated Schools Grant,Support Services
INSERTED DETAIL,20/11/2017,GI,2463986,475,HC113960,Barrs Court Academy,201808,Dedicated Schools Grant,Support Services
INSERTED DETAIL,20/11/2017,GI,2463987,"1,079.17",HC113960,Barrs Court Academy,201808,Dedicated Schools Grant,Support Services
INSERTED DETAIL,20/11/2017,GI,2463988,764.17,HC113960,Barrs Court Academy,201808,Dedicated Schools Grant,Support Services
INSERTED DETAIL,20/11/2017,GI,2463990,475,HC116854,Fairfield High School (Academy),201808,Dedicated Schools Grant,Support Services
INSERTED DETAIL,20/11/2017,GI,2463993,475,HC102152,Ashperton Primary Academy,201808,Dedicated Schools Grant,Support Services
INSERTED DETAIL,20/11/2017,GI,2463996,475,HC117835,The Brookfield School (Academy),201808,Dedicated Schools Grant,Support Services
INSERTED DETAIL,20/11/2017,GI,2463997,475,HC106103,Holmer C of E Academy,201808,Dedicated Schools Grant,Support Services
INSERTED DETAIL,20/11/2017,GI,2463998,475,HC115884,St Thomas Cantilupe CE Academy,201808,Dedicated Schools Grant,Support Services
INSERTED DETAIL,20/11/2017,GI,2464001,764.17,HC110648,BAE Trust T/A The Hereford Academy,201808,Dedicated Schools Grant,Support Services
INSERTED DETAIL,20/11/2017,GI,2464002,764.17,HC117835,The Brookfield School (Academy),201808,Dedicated Schools Grant,Support Services
INSERTED DETAIL,20/11/2017,GI,2464003,764.17,HC117835,The Brookfield School (Academy),201808,Dedicated Schools Grant,Support Services
INSERTED DETAIL,20/11/2017,GI,2464004,764.17,HC111508,Wigmore High School (Academy),201808,Dedicated Schools Grant,Support Services
INSERTED DETAIL,20/11/2017,GI,2464005,475,HC113960,Barrs Court Academy,201808,Dedicated Schools Grant,Support Services
INSERTED DETAIL,20/11/2017,GI,2464006,475,HC117835,The Brookfield School (Academy),201808,Dedicated Schools Grant,Support Services
INSERTED DETAIL,20/11/2017,GI,2464008,475,HC117835,The Brookfield School (Academy),201808,Dedicated Schools Grant,Support Services
INSERTED DETAIL,20/11/2017,GI,2464010,475,HC110648,BAE Trust T/A The Hereford Academy,201808,Dedicated Schools Grant,Support Services
INSERTED DETAIL,20/11/2017,GI,2464011,764.17,HC117835,The Brookfield School (Academy),201808,Dedicated Schools Grant,Support Services
INSERTED DETAIL,20/11/2017,GI,2464012,"1,438.33",HC113960,Barrs Court Academy,201808,Dedicated Schools Grant,Support Services
INSERTED DETAIL,20/11/2017,GI,2464013,475,HC113960,Barrs Court Academy,201808,Dedicated Schools Grant,Support Services
INSERTED DETAIL,20/11/2017,GI,2464016,475,HC117215,Robert Owen Academey,201808,Dedicated Schools Grant,Support Services
INSERTED DETAIL,20/11/2017,GI,2464017,475,HC102076,Herefordshire Marches Federation Sutton Primary Academy,201808,Dedicated Schools Grant,Support Services
INSERTED DETAIL,20/11/2017,GI,2464019,764.17,HC105571,Wigmore Primary School (Academy),201808,Dedicated Schools Grant,Support Services
INSERTED DETAIL,20/11/2017,GI,2464020,475,HC117835,The Brookfield School (Academy),201808,Dedicated Schools Grant,Support Services
INSERTED DETAIL,20/11/2017,GI,2464021,475,HC117835,The Brookfield School (Academy),201808,Dedicated Schools Grant,Support Services
INSERTED DETAIL,20/11/2017,GI,2464022,764.17,HC117835,The Brookfield School (Academy),201808,Dedicated Schools Grant,Support Services
INSERTED DETAIL,20/11/2017,GI,2464023,764.17,HC117835,The Brookfield School (Academy),201808,Dedicated Schools Grant,Support Services
INSERTED DETAIL,20/11/2017,GI,2464024,475,HC104739,John Masefield High School (Academy),201808,Dedicated Schools Grant,Support Services
INSERTED DETAIL,20/11/2017,GI,2464025,764.17,HC117835,The Brookfield School (Academy),201808,Dedicated Schools Grant,Support Services
INSERTED DETAIL,20/11/2017,GI,2464029,764.17,HC113960,Barrs Court Academy,201808,Dedicated Schools Grant,Support Services
INSERTED DETAIL,20/11/2017,GI,2464031,475,HC105572,Lady Hawkins School (Academy),201808,Dedicated Schools Grant,Support Services
INSERTED DETAIL,20/11/2017,GI,2464035,764.17,HC106103,Holmer C of E Academy,201808,Dedicated Schools Grant,Support Services
INSERTED DETAIL,20/11/2017,GI,2464036,475,HC117835,The Brookfield School (Academy),201808,Dedicated Schools Grant,Support Services
INSERTED DETAIL,20/11/2017,GI,2464037,475,HC117835,The Brookfield School (Academy),201808,Dedicated Schools Grant,Support Services
INSERTED DETAIL,20/11/2017,GI,2464038,"1,079.17",HC113960,Barrs Court Academy,201808,Dedicated Schools Grant,Support Services
INSERTED DETAIL,20/11/2017,GI,2464039,475,HC111508,Wigmore High School (Academy),201808,Dedicated Schools Grant,Support Services
INSERTED DETAIL,20/11/2017,GI,2464040,475,HC117835,The Brookfield School (Academy),201808,Dedicated Schools Grant,Support Services
INSERTED DETAIL,20/11/2017,GI,2464041,764.17,HC113960,Barrs Court Academy,201808,Dedicated Schools Grant,Support Services
INSERTED DETAIL,20/11/2017,GI,2464042,764.17,HC113960,Barrs Court Academy,201808,Dedicated Schools Grant,Support Services
INSERTED DETAIL,20/11/2017,GI,2464043,"1,079.17",HC113960,Barrs Court Academy,201808,Dedicated Schools Grant,Support Services
INSERTED DETAIL,20/11/2017,GI,2464044,764.17,HC113960,Barrs Court Academy,201808,Dedicated Schools Grant,Support Services
INSERTED DETAIL,20/11/2017,GI,2464045,"1,079.17",HC113960,Barrs Court Academy,201808,Dedicated Schools Grant,Support Services
INSERTED DETAIL,20/11/2017,GI,2464046,"1,079.17",HC113960,Barrs Court Academy,201808,Dedicated Schools Grant,Support Services
INSERTED DETAIL,20/11/2017,GI,2464047,"1,079.17",HC113960,Barrs Court Academy,201808,Dedicated Schools Grant,Support Services
INSERTED DETAIL,20/11/2017,GI,2464048,764.17,HC113960,Barrs Court Academy,201808,Dedicated Schools Grant,Support Services
INSERTED DETAIL,20/11/2017,GI,2464050,475,HC117835,The Brookfield School (Academy),201808,Dedicated Schools Grant,Support Services
INSERTED DETAIL,20/11/2017,GI,2464051,475,HC117835,The Brookfield School (Academy),201808,Dedicated Schools Grant,Support Services
INSERTED DETAIL,20/11/2017,GI,2464052,475,HC115884,St Thomas Cantilupe CE Academy,201808,Dedicated Schools Grant,Support Services
INSERTED DETAIL,20/11/2017,GI,2464056,764.17,HC110794,The Steiner Academy Hereford,201808,Dedicated Schools Grant,Support Services
INSERTED DETAIL,20/11/2017,GI,2464058,475,HC107656,St Pauls Church of England Primary School,201808,Dedicated Schools Grant,Support Services
INSERTED DETAIL,20/11/2017,GI,2464060,475,HC117835,The Brookfield School (Academy),201808,Dedicated Schools Grant,Support Services
INSERTED DETAIL,20/11/2017,GI,2464061,"1,079.17",HC117835,The Brookfield School (Academy),201808,Dedicated Schools Grant,Support Services
INSERTED DETAIL,20/11/2017,GI,2464062,475,HC117835,The Brookfield School (Academy),201808,Dedicated Schools Grant,Support Services
INSERTED DETAIL,20/11/2017,GI,2464064,764.17,HC117835,The Brookfield School (Academy),201808,Dedicated Schools Grant,Support Services
INSERTED DETAIL,20/11/2017,GI,2464066,475,HC102076,Herefordshire Marches Federation Sutton Primary Academy,201808,Dedicated Schools Grant,Support Services
INSERTED DETAIL,20/11/2017,GI,2464067,475,HC117835,The Brookfield School (Academy),201808,Dedicated Schools Grant,Support Services
INSERTED DETAIL,20/11/2017,GI,2464070,764.17,HC117835,The Brookfield School (Academy),201808,Dedicated Schools Grant,Support Services
INSERTED DETAIL,20/11/2017,GI,2464071,475,HC113961,Burghill Community Academy,201808,Dedicated Schools Grant,Support Services
INSERTED DETAIL,20/11/2017,GI,2464072,475,HC116854,Fairfield High School (Academy),201808,Dedicated Schools Grant,Support Services
INSERTED DETAIL,20/11/2017,GI,2464073,475,HC104727,John Kyrle High School,201808,Dedicated Schools Grant,Support Services
INSERTED DETAIL,20/11/2017,GI,2464075,475,HC117835,The Brookfield School (Academy),201808,Dedicated Schools Grant,Support Services
INSERTED DETAIL,20/11/2017,GI,2464076,"1,438.33",HC113960,Barrs Court Academy,201808,Dedicated Schools Grant,Support Services
INSERTED DETAIL,20/11/2017,GI,2464080,475,HC115716,Mordiford Church of England Primary School,201808,Dedicated Schools Grant,Support Services
INSERTED DETAIL,20/11/2017,GI,2464081,764.17,HC113960,Barrs Court Academy,201808,Dedicated Schools Grant,Support Services
INSERTED DETAIL,20/11/2017,GI,2464082,475,HC105571,Wigmore Primary School (Academy),201808,Dedicated Schools Grant,Support Services
INSERTED DETAIL,20/11/2017,GI,2464083,764.17,HC104727,John Kyrle High School,201808,Dedicated Schools Grant,Support Services
INSERTED DETAIL,20/11/2017,GI,2464084,"1,079.17",HC104739,John Masefield High School (Academy),201808,Dedicated Schools Grant,Support Services
INSERTED DETAIL,20/11/2017,GI,2464085,475,HC111701,Whitecross Hereford Academy,201808,Dedicated Schools Grant,Support Services
INSERTED DETAIL,20/11/2017,GI,2464087,475,HC117835,The Brookfield School (Academy),201808,Dedicated Schools Grant,Support Services
INSERTED DETAIL,20/11/2017,GI,2464088,475,HC105571,Wigmore Primary School (Academy),201808,Dedicated Schools Grant,Support Services
INSERTED DETAIL,20/11/2017,GI,2464089,764.17,HC113960,Barrs Court Academy,201808,Dedicated Schools Grant,Support Services
INSERTED DETAIL,20/11/2017,GI,2464092,475,HC113733,Canon Pyon CE Academy,201808,Dedicated Schools Grant,Support Services
INSERTED DETAIL,20/11/2017,GI,2464097,475,HC113960,Barrs Court Academy,201808,Dedicated Schools Grant,Support Services
INSERTED DETAIL,20/11/2017,GI,2464098,475,HC122135,BAET T/A Bodenham St Michael's CE Primary School,201808,Dedicated Schools Grant,Support Services
INSERTED DETAIL,20/11/2017,GI,2464099,764.17,HC113960,Barrs Court Academy,201808,Dedicated Schools Grant,Support Services
INSERTED DETAIL,20/11/2017,GI,2464101,"1,079.17",HC113960,Barrs Court Academy,201808,Dedicated Schools Grant,Support Services
INSERTED DETAIL,20/11/2017,GI,2464102,"1,079.17",HC113960,Barrs Court Academy,201808,Dedicated Schools Grant,Support Services
INSERTED DETAIL,20/11/2017,GI,2464103,764.17,HC117835,The Brookfield School (Academy),201808,Dedicated Schools Grant,Support Services
INSERTED DETAIL,20/11/2017,GI,2464104,475,HC117835,The Brookfield School (Academy),201808,Dedicated Schools Grant,Support Services
INSERTED DETAIL,20/11/2017,GI,2464107,764.17,HC105714,QEHC Academy Trust T/A Queen Elizabeth Humanities College,201808,Dedicated Schools Grant,Support Services
INSERTED DETAIL,20/11/2017,GI,2464110,764.17,HC104739,John Masefield High School (Academy),201808,Dedicated Schools Grant,Support Services
INSERTED DETAIL,20/11/2017,GI,2464111,475,HC105571,Wigmore Primary School (Academy),201808,Dedicated Schools Grant,Support Services
INSERTED DETAIL,20/11/2017,GI,2464113,"1,079.17",HC113960,Barrs Court Academy,201808,Dedicated Schools Grant,Support Services
INSERTED DETAIL,20/11/2017,GI,2464114,475,HC113961,Burghill Community Academy,201808,Dedicated Schools Grant,Support Services
INSERTED DETAIL,20/11/2017,GI,2464115,475,HC115716,Mordiford Church of England Primary School,201808,Dedicated Schools Grant,Support Services
INSERTED DETAIL,20/11/2017,GI,2464116,475,HC111701,Whitecross Hereford Academy,201808,Dedicated Schools Grant,Support Services
INSERTED DETAIL,20/11/2017,GI,2464117,475,HC116854,Fairfield High School (Academy),201808,Dedicated Schools Grant,Support Services
INSERTED DETAIL,20/11/2017,GI,2464118,475,HC113960,Barrs Court Academy,201808,Dedicated Schools Grant,Support Services
INSERTED DETAIL,20/11/2017,GI,2464119,764.17,HC117835,The Brookfield School (Academy),201808,Dedicated Schools Grant,Support Services
INSERTED DETAIL,20/11/2017,GI,2464120,764.17,HC115884,St Thomas Cantilupe CE Academy,201808,Dedicated Schools Grant,Support Services
INSERTED DETAIL,20/11/2017,GI,2464125,475,HC104739,John Masefield High School (Academy),201808,Dedicated Schools Grant,Support Services
INSERTED DETAIL,20/11/2017,GI,2464126,475,HC110648,BAE Trust T/A The Hereford Academy,201808,Dedicated Schools Grant,Support Services
INSERTED DETAIL,20/11/2017,GI,2464127,475,HC113960,Barrs Court Academy,201808,Dedicated Schools Grant,Support Services
INSERTED DETAIL,20/11/2017,GI,2464128,475,HC104761,Herefordshire Marches Federation-Lord Scudamore,201808,Dedicated Schools Grant,Support Services
INSERTED DETAIL,20/11/2017,GI,2464132,475,HC110648,BAE Trust T/A The Hereford Academy,201808,Dedicated Schools Grant,Support Services
INSERTED DETAIL,20/11/2017,GI,2464134,475,HC104739,John Masefield High School (Academy),201808,Dedicated Schools Grant,Support Services
INSERTED DETAIL,20/11/2017,GI,2464135,475,HC104739,John Masefield High School (Academy),201808,Dedicated Schools Grant,Support Services
INSERTED DETAIL,20/11/2017,GI,2464136,475,HC104739,John Masefield High School (Academy),201808,Dedicated Schools Grant,Support Services
INSERTED DETAIL,20/11/2017,GI,2464139,475,HC113960,Barrs Court Academy,201808,Dedicated Schools Grant,Support Services
INSERTED DETAIL,20/11/2017,GI,2464140,475,HC113960,Barrs Court Academy,201808,Dedicated Schools Grant,Support Services
INSERTED DETAIL,20/11/2017,GI,2464141,475,HC113960,Barrs Court Academy,201808,Dedicated Schools Grant,Support Services
INSERTED DETAIL,20/11/2017,GI,2464142,"1,079.17",HC113960,Barrs Court Academy,201808,Dedicated Schools Grant,Support Services
INSERTED DETAIL,20/11/2017,GI,2464143,"1,079.17",HC113960,Barrs Court Academy,201808,Dedicated Schools Grant,Support Services
INSERTED DETAIL,20/11/2017,GI,2464144,"1,079.17",HC113960,Barrs Court Academy,201808,Dedicated Schools Grant,Support Services
INSERTED DETAIL,20/11/2017,GI,2464145,475,HC113960,Barrs Court Academy,201808,Dedicated Schools Grant,Support Services
INSERTED DETAIL,20/11/2017,GI,2464146,475,HC113960,Barrs Court Academy,201808,Dedicated Schools Grant,Support Services
INSERTED DETAIL,20/11/2017,GI,2464147,764.17,HC113960,Barrs Court Academy,201808,Dedicated Schools Grant,Support Services
INSERTED DETAIL,20/11/2017,GI,2464148,475,HC108716,Stretton Sugwas CE Academy,201808,Dedicated Schools Grant,Support Services
INSERTED DETAIL,20/11/2017,GI,2464149,475,HC122135,BAET T/A Bodenham St Michael's CE Primary School,201808,Dedicated Schools Grant,Support Services
INSERTED DETAIL,20/11/2017,GI,2464151,475,HC105714,QEHC Academy Trust T/A Queen Elizabeth Humanities College,201808,Dedicated Schools Grant,Support Services
INSERTED DETAIL,20/11/2017,GI,2464153,475,HC117835,The Brookfield School (Academy),201808,Dedicated Schools Grant,Support Services
INSERTED DETAIL,20/11/2017,GI,2464154,475,HC117835,The Brookfield School (Academy),201808,Dedicated Schools Grant,Support Services
INSERTED DETAIL,20/11/2017,GI,2464155,475,HC117835,The Brookfield School (Academy),201808,Dedicated Schools Grant,Support Services
INSERTED DETAIL,20/11/2017,GI,2464156,475,HC110794,The Steiner Academy Hereford,201808,Dedicated Schools Grant,Support Services
INSERTED DETAIL,20/11/2017,GI,2464157,475,HC117835,The Brookfield School (Academy),201808,Dedicated Schools Grant,Support Services
INSERTED DETAIL,20/11/2017,GI,2464158,475,HC117835,The Brookfield School (Academy),201808,Dedicated Schools Grant,Support Services
INSERTED DETAIL,20/11/2017,GI,2464159,475,HC105073,Kingstone & Thruxton Primary School (Academy),201808,Dedicated Schools Grant,Support Services
INSERTED DETAIL,20/11/2017,GI,2464160,475,HC102076,Herefordshire Marches Federation Sutton Primary Academy,201808,Dedicated Schools Grant,Support Services
INSERTED DETAIL,20/11/2017,GI,2464161,764.17,HC110648,BAE Trust T/A The Hereford Academy,201808,Dedicated Schools Grant,Support Services
INSERTED DETAIL,20/11/2017,GI,2464163,475,HC113960,Barrs Court Academy,201808,Dedicated Schools Grant,Support Services
INSERTED DETAIL,20/11/2017,GI,2464164,475,HC105073,Kingstone & Thruxton Primary School (Academy),201808,Dedicated Schools Grant,Support Services
INSERTED DETAIL,20/11/2017,GI,2464166,764.17,HC104727,John Kyrle High School,201808,Dedicated Schools Grant,Support Services
INSERTED DETAIL,20/11/2017,GI,2464167,475,HC110648,BAE Trust T/A The Hereford Academy,201808,Dedicated Schools Grant,Support Services
INSERTED DETAIL,20/11/2017,GI,2464168,764.17,HC117835,The Brookfield School (Academy),201808,Dedicated Schools Grant,Support Services
INSERTED DETAIL,20/11/2017,GI,2464169,475,HC117835,The Brookfield School (Academy),201808,Dedicated Schools Grant,Support Services
INSERTED DETAIL,20/11/2017,GI,2464170,764.17,HC117215,Robert Owen Academey,201808,Dedicated Schools Grant,Support Services
INSERTED DETAIL,20/11/2017,GI,2464172,764.17,HC107656,St Pauls Church of England Primary School,201808,Dedicated Schools Grant,Support Services
INSERTED DETAIL,20/11/2017,GI,2464173,764.17,HC117835,The Brookfield School (Academy),201808,Dedicated Schools Grant,Support Services
INSERTED DETAIL,20/11/2017,GI,2464175,475,HC117835,The Brookfield School (Academy),201808,Dedicated Schools Grant,Support Services
INSERTED DETAIL,20/11/2017,GI,2464176,475,HC117835,The Brookfield School (Academy),201808,Dedicated Schools Grant,Support Services
INSERTED DETAIL,20/11/2017,GI,2464177,764.17,HC117835,The Brookfield School (Academy),201808,Dedicated Schools Grant,Support Services
INSERTED DETAIL,20/11/2017,GI,2464179,764.17,HC104739,John Masefield High School (Academy),201808,Dedicated Schools Grant,Support Services
INSERTED DETAIL,20/11/2017,GI,2464180,764.17,HC107656,St Pauls Church of England Primary School,201808,Dedicated Schools Grant,Support Services
INSERTED DETAIL,20/11/2017,GI,2464183,475,HC103935,Herefordshire & Ludlow College,201808,Dedicated Schools Grant,Support Services
INSERTED DETAIL,20/11/2017,GI,2464188,764.17,HC103935,Herefordshire & Ludlow College,201808,Dedicated Schools Grant,Support Services
INSERTED DETAIL,20/11/2017,GI,2464189,475,HC103935,Herefordshire & Ludlow College,201808,Dedicated Schools Grant,Support Services
INSERTED DETAIL,20/11/2017,GI,2464190,475,HC103935,Herefordshire & Ludlow College,201808,Dedicated Schools Grant,Support Services
INSERTED DETAIL,20/11/2017,GI,2464191,475,HC103935,Herefordshire & Ludlow College,201808,Dedicated Schools Grant,Support Services
INSERTED DETAIL,20/11/2017,GI,2464193,475,HC103935,Herefordshire & Ludlow College,201808,Dedicated Schools Grant,Support Services
INSERTED DETAIL,20/11/2017,GI,2464194,613.33,HC103935,Herefordshire & Ludlow College,201808,Dedicated Schools Grant,Support Services
INSERTED DETAIL,20/11/2017,GI,2464195,975,HC103935,Herefordshire & Ludlow College,201808,Dedicated Schools Grant,Support Services
INSERTED DETAIL,20/11/2017,GI,2464196,975,HC103935,Herefordshire & Ludlow College,201808,Dedicated Schools Grant,Support Services
INSERTED DETAIL,20/11/2017,GI,2464197,975,HC103935,Herefordshire & Ludlow College,201808,Dedicated Schools Grant,Support Services
INSERTED DETAIL,20/11/2017,GI,2464198,613.33,HC103935,Herefordshire & Ludlow College,201808,Dedicated Schools Grant,Support Services
INSERTED DETAIL,20/11/2017,GI,2464199,975,HC103935,Herefordshire & Ludlow College,201808,Dedicated Schools Grant,Support Services
INSERTED DETAIL,20/11/2017,GI,2464200,613.33,HC103935,Herefordshire & Ludlow College,201808,Dedicated Schools Grant,Support Services
INSERTED DETAIL,20/11/2017,GI,2464201,975,HC103935,Herefordshire & Ludlow College,201808,Dedicated Schools Grant,Support Services
INSERTED DETAIL,20/11/2017,GI,2464202,975,HC103935,Herefordshire & Ludlow College,201808,Dedicated Schools Grant,Support Services
INSERTED DETAIL,20/11/2017,GI,2464203,613.33,HC103935,Herefordshire & Ludlow College,201808,Dedicated Schools Grant,Support Services
INSERTED DETAIL,20/11/2017,GI,2464204,778.33,HC103935,Herefordshire & Ludlow College,201808,Dedicated Schools Grant,Support Services
INSERTED DETAIL,20/11/2017,GI,2464205,778.33,HC103935,Herefordshire & Ludlow College,201808,Dedicated Schools Grant,Support Services
INSERTED DETAIL,20/11/2017,GI,2464206,975,HC103935,Herefordshire & Ludlow College,201808,Dedicated Schools Grant,Support Services
INSERTED DETAIL,20/11/2017,GI,2464207,975,HC103935,Herefordshire & Ludlow College,201808,Dedicated Schools Grant,Support Services
INSERTED DETAIL,20/11/2017,GI,2464208,613.33,HC103935,Herefordshire & Ludlow College,201808,Dedicated Schools Grant,Support Services
INSERTED DETAIL,20/11/2017,GI,2464209,778.33,HC103935,Herefordshire & Ludlow College,201808,Dedicated Schools Grant,Support Services
INSERTED DETAIL,20/11/2017,GI,2464210,"1,079.17",HC106975,Hoople Ltd,201808,Dedicated Schools Grant,Support Services
INSERTED DETAIL,20/11/2017,GI,2464212,"1,264.17",HC106975,Hoople Ltd,201808,Dedicated Schools Grant,Support Services
INSERTED DETAIL,20/11/2017,GI,2464213,"1,264.17",HC106975,Hoople Ltd,201808,Dedicated Schools Grant,Support Services
INSERTED DETAIL,20/11/2017,GI,2464214,"1,264.17",HC106975,Hoople Ltd,201808,Dedicated Schools Grant,Support Services
INSERTED DETAIL,20/11/2017,GI,2464215,"1,264.17",HC106975,Hoople Ltd,201808,Dedicated Schools Grant,Support Services
INSERTED DETAIL,20/11/2017,GI,2464216,"1,264.17",HC106975,Hoople Ltd,201808,Dedicated Schools Grant,Support Services
INSERTED DETAIL,20/11/2017,GI,2464217,975,HC106975,Hoople Ltd,201808,Dedicated Schools Grant,Support Services
INSERTED DETAIL,20/11/2017,GI,2464218,475,HC106975,Hoople Ltd,201808,Dedicated Schools Grant,Support Services
INSERTED DETAIL,20/11/2017,GI,2464219,475,HC106975,Hoople Ltd,201808,Dedicated Schools Grant,Support Services
INSERTED DETAIL,20/11/2017,GI,2464220,"1,264.17",HC120103,The Plylimon Trust-Horizon Training,201808,Dedicated Schools Grant,Support Services
INSERTED DETAIL,20/11/2017,GI,2464221,613.33,HC120103,The Plylimon Trust-Horizon Training,201808,Dedicated Schools Grant,Support Services
INSERTED DETAIL,20/11/2017,GI,2464222,778.33,HC120103,The Plylimon Trust-Horizon Training,201808,Dedicated Schools Grant,Support Services
INSERTED DETAIL,20/11/2017,GI,2464223,778.33,HC120103,The Plylimon Trust-Horizon Training,201808,Dedicated Schools Grant,Support Services
INSERTED DETAIL,20/11/2017,GI,2464224,975,HC120103,The Plylimon Trust-Horizon Training,201808,Dedicated Schools Grant,Support Services
INSERTED DETAIL,20/11/2017,GI,2464225,975,HC120103,The Plylimon Trust-Horizon Training,201808,Dedicated Schools Grant,Support Services
INSERTED DETAIL,20/11/2017,GI,2464228,"1,264.17",HC122375,Warwickshire College Group,201808,Dedicated Schools Grant,Support Services
INSERTED DETAIL,20/11/2017,GI,2464229,764.17,HC111701,Whitecross Hereford Academy,201808,Dedicated Schools Grant,Support Services
INSERTED DETAIL,20/11/2017,GI,2464230,461.24,HC114613,National Star College,201808,Dedicated Schools Grant,Support Services
INSERTED DETAIL,20/11/2017,GI,2464231,554.24,HC114613,National Star College,201808,Dedicated Schools Grant,Support Services
INSERTED DETAIL,20/11/2017,GI,2464233,724.74,HC114613,National Star College,201808,Dedicated Schools Grant,Support Services
INSERTED DETAIL,20/11/2017,GI,2464234,724.69,HC114613,National Star College,201808,Dedicated Schools Grant,Support Services
INSERTED DETAIL,20/11/2017,GI,2464235,801.8,HC114613,National Star College,201808,Dedicated Schools Grant,Support Services
INSERTED DETAIL,20/11/2017,GI,2464237,475,HC113733,Canon Pyon CE Academy,201808,Dedicated Schools Grant,Support Services
INSERTED DETAIL,20/11/2017,GI,2464239,883.83,HC112582,Royal National College,201808,Dedicated Schools Grant,Support Services
INSERTED DETAIL,20/11/2017,GI,2464240,"1,650.33",HC112582,Royal National College,201808,Dedicated Schools Grant,Support Services
INSERTED DETAIL,20/11/2017,GI,2464241,961.25,HC112582,Royal National College,201808,Dedicated Schools Grant,Support Services
INSERTED DETAIL,20/11/2017,GI,2464242,"1,992.25",HC112582,Royal National College,201808,Dedicated Schools Grant,Support Services
INSERTED DETAIL,20/11/2017,GI,2464243,"3,095.92",HC114613,National Star College,201808,Dedicated Schools Grant,Support Services
INSERTED DETAIL,20/11/2017,GI,2464244,803.46,HC114613,National Star College,201808,Dedicated Schools Grant,Support Services
INSERTED DETAIL,20/11/2017,GI,2464245,"1,113.27",HC114613,National Star College,201808,Dedicated Schools Grant,Support Services
INSERTED DETAIL,20/11/2017,GI,2464247,"1,264.17",HC116830,Nova Training,201808,Dedicated Schools Grant,Support Services
INSERTED DETAIL,20/11/2017,GI,2464248,975,HC116830,Nova Training,201808,Dedicated Schools Grant,Support Services
INSERTED DETAIL,20/11/2017,GI,2464249,975,HC116830,Nova Training,201808,Dedicated Schools Grant,Support Services
INSERTED DETAIL,20/11/2017,GI,2464250,576.75,HC114595,Derwen College,201808,Dedicated Schools Grant,Support Services
INSERTED DETAIL,20/11/2017,GI,2464251,629.49,HC114595,Derwen College,201808,Dedicated Schools Grant,Support Services
INSERTED DETAIL,20/11/2017,GI,2464252,"1,240.92",HC114595,Derwen College,201808,Dedicated Schools Grant,Support Services
INSERTED DETAIL,20/11/2017,GI,2464253,"1,470.58",HC114595,Derwen College,201808,Dedicated Schools Grant,Support Services
INSERTED DETAIL,20/11/2017,GI,2464254,741.75,HC114595,Derwen College,201808,Dedicated Schools Grant,Support Services
INSERTED DETAIL,20/11/2017,GI,2464255,629.49,HC114595,Derwen College,201808,Dedicated Schools Grant,Support Services
INSERTED DETAIL,20/11/2017,GI,2464256,629.49,HC114595,Derwen College,201808,Dedicated Schools Grant,Support Services
INSERTED DETAIL,20/11/2017,GI,2464257,629.49,HC114595,Derwen College,201808,Dedicated Schools Grant,Support Services
INSERTED DETAIL,20/11/2017,GI,2464258,"1,015.83",HC114595,Derwen College,201808,Dedicated Schools Grant,Support Services
INSERTED DETAIL,20/11/2017,GI,2464259,629.49,HC114595,Derwen College,201808,Dedicated Schools Grant,Support Services
INSERTED DETAIL,20/11/2017,GI,2464260,"1,911.68",HC114596,William Morris Camphill Community,201808,Dedicated Schools Grant,Support Services
INSERTED DETAIL,20/11/2017,GI,2464262,"3,800.00",HC116854,Fairfield High School (Academy),201808,Dedicated Schools Grant,Support Services
INSERTED DETAIL,20/11/2017,GI,2464263,"3,800.00",HC110648,BAE Trust T/A The Hereford Academy,201808,Dedicated Schools Grant,Support Services
INSERTED DETAIL,20/11/2017,GI,2464264,505.65,HC113960,Barrs Court Academy,201808,Dedicated Schools Grant,Support Services
INSERTED DETAIL,20/11/2017,GI,2464268,834.99,HC110794,The Steiner Academy Hereford,201808,Dedicated Schools Grant,Support Services
INSERTED DETAIL,20/11/2017,GI,2464269,"3,237.51",HC113960,Barrs Court Academy,201808,Dedicated Schools Grant,Support Services
INSERTED DETAIL,20/11/2017,GI,2464270,"11,542.16",HC114611,Farleigh Further Education College Frome,201808,Dedicated Schools Grant,Support Services
INSERTED DETAIL,20/11/2017,GI,2464271,"4,475.36",HC114613,National Star College,201808,Dedicated Schools Grant,Support Services
INSERTED DETAIL,20/11/2017,GI,2464272,"1,546.96",HC114613,National Star College,201808,Dedicated Schools Grant,Support Services
INSERTED DETAIL,20/11/2017,GI,2464273,"5,320.16",HC114613,National Star College,201808,Dedicated Schools Grant,Support Services
INSERTED DETAIL,20/11/2017,GI,2464275,"2,453.32",HC103854,Hereford College Of Arts,201808,Dedicated Schools Grant,Support Services
INSERTED DETAIL,20/11/2017,GI,2464291,"1,107.00",HC118940,Earl Mortimer College & Sixth Form HCC,201808,Children & Young People Capital,Capital Income
INSERTED DETAIL,20/11/2017,GI,2464297,426,HC107661,Little Dewchurch CE Primary School,201808,Children & Young People Capital,Capital Income
INSERTED DETAIL,20/11/2017,GI,2464303,816,HC105841,Marlbrook  Primary School,201808,Children & Young People Capital,Capital Income
INSERTED DETAIL,20/11/2017,GI,2464309,650,HC100677,Ashfield Park Primary School,201808,Children & Young People Capital,Capital Income
INSERTED DETAIL,20/11/2017,GI,2464315,433,HC116432,Ewyas Harold Primary School-A/C 63712842,201808,Children & Young People Capital,Capital Income
INSERTED DETAIL,20/11/2017,GI,2464321,834,HC118939,Riverside Primary School - HCC,201808,Children & Young People Capital,Capital Income
INSERTED DETAIL,20/11/2017,GI,2464326,483,HC121892,Colwall C of E Primary School,201808,Children & Young People Capital,Capital Income
INSERTED DETAIL,20/11/2017,GI,2464331,663,HC110078,St Martins Primary School,201808,Children & Young People Capital,Capital Income
INSERTED DETAIL,20/11/2017,GI,2464337,"23,189.00",HC100109,HM Revenue & Customs,201808,Holding Codes,Holding Codes
INSERTED DETAIL,20/11/2017,WM,2464419,570.22,HC108443,West Mercia Energy,201808,Schools,Premises-Related Expenditure
INSERTED DETAIL,20/11/2017,WM,2464424,651.7,HC108443,West Mercia Energy,201808,Environment and Place,Premises-Related Expenditure
INSERTED DETAIL,20/11/2017,WM,2464425,485.53,HC108443,West Mercia Energy,201808,Schools,Premises-Related Expenditure
INSERTED DETAIL,20/11/2017,WM,2464437,831.26,HC108443,West Mercia Energy,201808,Schools,Premises-Related Expenditure
INSERTED DETAIL,20/11/2017,WM,2464442,659.3,HC108443,West Mercia Energy,201808,Environment and Place,Premises-Related Expenditure
INSERTED DETAIL,20/11/2017,WM,2464448,661.87,HC108443,West Mercia Energy,201808,Environment and Place,Premises-Related Expenditure
INSERTED DETAIL,20/11/2017,WM,2464449,423.47,HC108443,West Mercia Energy,201808,Environment and Place,Premises-Related Expenditure
INSERTED DETAIL,20/11/2017,WM,2464451,894.52,HC108443,West Mercia Energy,201808,Environment and Place,Premises-Related Expenditure
INSERTED DETAIL,20/11/2017,WM,2464453,689.34,HC108443,West Mercia Energy,201808,Environment and Place,Premises-Related Expenditure
INSERTED DETAIL,20/11/2017,WM,2464458,435.39,HC108443,West Mercia Energy,201808,Schools,Premises-Related Expenditure
INSERTED DETAIL,20/11/2017,WM,2464461,482.76,HC108443,West Mercia Energy,201808,Schools,Premises-Related Expenditure
INSERTED DETAIL,20/11/2017,WM,2464462,427.23,HC108443,West Mercia Energy,201808,Schools,Premises-Related Expenditure
INSERTED DETAIL,20/11/2017,WM,2464463,853.89,HC108443,West Mercia Energy,201808,Schools,Premises-Related Expenditure
INSERTED DETAIL,20/11/2017,WM,2464467,420.2,HC108443,West Mercia Energy,201808,Environment and Place,Premises-Related Expenditure
INSERTED DETAIL,20/11/2017,WM,2464475,421.79,HC108443,West Mercia Energy,201808,Schools,Premises-Related Expenditure
INSERTED DETAIL,20/11/2017,WM,2464476,458.13,HC108443,West Mercia Energy,201808,Environment and Place,Premises-Related Expenditure
INSERTED DETAIL,20/11/2017,WM,2464484,553.72,HC108443,West Mercia Energy,201808,Schools,Premises-Related Expenditure
INSERTED DETAIL,20/11/2017,WM,2464486,949.56,HC108443,West Mercia Energy,201808,Environment and Place,Premises-Related Expenditure
INSERTED DETAIL,20/11/2017,WM,2464493,711.93,HC108443,West Mercia Energy,201808,Environment and Place,Premises-Related Expenditure
INSERTED DETAIL,20/11/2017,WM,2464502,478.97,HC108443,West Mercia Energy,201808,Environment and Place,Premises-Related Expenditure
INSERTED DETAIL,20/11/2017,WM,2464504,716.36,HC108443,West Mercia Energy,201808,Schools,Premises-Related Expenditure
INSERTED DETAIL,20/11/2017,WM,2464508,462.84,HC108443,West Mercia Energy,201808,Schools,Premises-Related Expenditure
INSERTED DETAIL,20/11/2017,WM,2464526,873.64,HC108443,West Mercia Energy,201808,Environment and Place,Premises-Related Expenditure
INSERTED DETAIL,20/11/2017,WM,2464527,477.44,HC108443,West Mercia Energy,201808,Schools,Premises-Related Expenditure
INSERTED DETAIL,20/11/2017,WM,2464530,427.73,HC108443,West Mercia Energy,201808,Environment and Place,Premises-Related Expenditure
INSERTED DETAIL,20/11/2017,WM,2464533,877.04,HC108443,West Mercia Energy,201808,Environment and Place,Premises-Related Expenditure
INSERTED DETAIL,20/11/2017,WM,2464534,823.95,HC108443,West Mercia Energy,201808,Environment and Place,Premises-Related Expenditure
INSERTED DETAIL,20/11/2017,WM,2464535,"11,259.50",HC108443,West Mercia Energy,201808,Environment and Place,Premises-Related Expenditure
INSERTED DETAIL,20/11/2017,WM,2464536,"1,372.13",HC108443,West Mercia Energy,201808,Schools,Premises-Related Expenditure
INSERTED DETAIL,20/11/2017,WM,2464537,"1,400.52",HC108443,West Mercia Energy,201808,Schools,Premises-Related Expenditure
INSERTED DETAIL,20/11/2017,WM,2464538,"2,126.93",HC108443,West Mercia Energy,201808,Environment and Place,Premises-Related Expenditure
INSERTED DETAIL,20/11/2017,WM,2464539,964.41,HC108443,West Mercia Energy,201808,Environment and Place,Premises-Related Expenditure
INSERTED DETAIL,20/11/2017,WM,2464540,418.16,HC108443,West Mercia Energy,201808,Environment and Place,Premises-Related Expenditure
INSERTED DETAIL,20/11/2017,WM,2464541,516.01,HC108443,West Mercia Energy,201808,Environment and Place,Premises-Related Expenditure
INSERTED DETAIL,20/11/2017,WM,2464542,433.22,HC108443,West Mercia Energy,201808,Environment and Place,Premises-Related Expenditure
INSERTED DETAIL,20/11/2017,WM,2464543,425.19,HC108443,West Mercia Energy,201808,Schools,Premises-Related Expenditure
INSERTED DETAIL,20/11/2017,WM,2464545,"1,007.21",HC108443,West Mercia Energy,201808,Environment and Place,Premises-Related Expenditure
INSERTED DETAIL,20/11/2017,WM,2464548,664.36,HC108443,West Mercia Energy,201808,Environment and Place,Premises-Related Expenditure
INSERTED DETAIL,20/11/2017,WM,2464549,"1,203.57",HC108443,West Mercia Energy,201808,Schools,Premises-Related Expenditure
INSERTED DETAIL,20/11/2017,WM,2464550,618.08,HC108443,West Mercia Energy,201808,Environment and Place,Premises-Related Expenditure
INSERTED DETAIL,20/11/2017,WM,2464551,"1,565.81",HC108443,West Mercia Energy,201808,Environment and Place,Premises-Related Expenditure
INSERTED DETAIL,20/11/2017,WM,2464552,844.57,HC108443,West Mercia Energy,201808,Environment and Place,Premises-Related Expenditure
INSERTED DETAIL,20/11/2017,WM,2464554,"20,536.26",HC108443,West Mercia Energy,201808,Environment and Place,Premises-Related Expenditure
INSERTED DETAIL,20/11/2017,WM,2464573,"1,243.22",HC108443,West Mercia Energy,201808,Environment and Place,Premises-Related Expenditure
INSERTED DETAIL,21/11/2017,GI,2464741,463.5,HC123711,REDACTED,201808,Safeguarding and Family Support,Third Party Payments
INSERTED DETAIL,22/11/2017,GI,2464855,842.35,HC118944,REDACTED,201808,Communities,Supplies & Services
INSERTED DETAIL,22/11/2017,GI,2464895,"1,110.71",HC101182,Bridstow C.E. Primary School Imprest A/C,201808,Schools,Supplies & Services
INSERTED DETAIL,22/11/2017,GI,2464896,687.65,HC111402,Weobley High School Petty Cash,201808,Schools,Employees
INSERTED DETAIL,22/11/2017,GI,2464896,"2,585.66",HC111402,Weobley High School Petty Cash,201808,Schools,Supplies & Services
INSERTED DETAIL,23/11/2017,GI,2468164,"11,211.16",HC121175,Matrix SCM Ltd,201808,Adults Operations,Employees
INSERTED DETAIL,23/11/2017,GI,2468164,"11,682.11",HC121175,Matrix SCM Ltd,201808,Mental Health,Employees
INSERTED DETAIL,23/11/2017,GI,2468164,"5,411.42",HC121175,Matrix SCM Ltd,201808,Safeguarding and Family Support,Employees
INSERTED DETAIL,23/11/2017,GI,2468164,"2,620.48",HC121175,REDACTED,201808,Safeguarding and Family Support,Employees
INSERTED DETAIL,23/11/2017,GI,2468165,425,HC123294,REDACTED,201808,Safeguarding and Family Support,Supplies & Services
INSERTED DETAIL,23/11/2017,GI,2468166,433.33,HC121017,REDACTED,201808,Safeguarding and Family Support,Supplies & Services
INSERTED DETAIL,23/11/2017,GI,2468168,433.33,HC103959,REDACTED,201808,Safeguarding and Family Support,Supplies & Services
INSERTED DETAIL,23/11/2017,GI,2468169,460,HC123322,REDACTED,201808,Safeguarding and Family Support,Supplies & Services
INSERTED DETAIL,23/11/2017,GI,2468170,433.33,HC123323,REDACTED,201808,Safeguarding and Family Support,Supplies & Services
INSERTED DETAIL,23/11/2017,GI,2468172,"1,375.00",HC109651,REDACTED,201808,Safeguarding and Family Support,Supplies & Services
INSERTED DETAIL,24/11/2017,GI,2468321,"1,122.30",HC117000,REDACTED,201808,Safeguarding and Family Support,Third Party Payments
INSERTED DETAIL,24/11/2017,WM,2468338,577.13,HC108443,West Mercia Energy,201808,Schools,Premises-Related Expenditure
INSERTED DETAIL,24/11/2017,WM,2468340,519.92,HC108443,West Mercia Energy,201808,Environment and Place,Premises-Related Expenditure
INSERTED DETAIL,24/11/2017,WM,2468341,932.75,HC108443,West Mercia Energy,201808,Schools,Premises-Related Expenditure
INSERTED DETAIL,24/11/2017,WM,2468344,450.05,HC108443,West Mercia Energy,201808,Schools,Premises-Related Expenditure
INSERTED DETAIL,24/11/2017,WM,2468348,"2,046.45",HC108443,West Mercia Energy,201808,Environment and Place,Premises-Related Expenditure
INSERTED DETAIL,24/11/2017,WM,2468349,448.14,HC108443,West Mercia Energy,201808,Schools,Premises-Related Expenditure
INSERTED DETAIL,24/11/2017,WM,2468351,553.21,HC108443,West Mercia Energy,201808,Environment and Place,Premises-Related Expenditure
INSERTED DETAIL,24/11/2017,WM,2468352,512.05,HC108443,West Mercia Energy,201808,Environment and Place,Premises-Related Expenditure
INSERTED DETAIL,24/11/2017,WM,2468357,"1,298.63",HC108443,West Mercia Energy,201808,Environment and Place,Premises-Related Expenditure
INSERTED DETAIL,24/11/2017,WM,2468390,"1,240.10",HC108443,West Mercia Energy,201808,Environment and Place,Premises-Related Expenditure
INSERTED DETAIL,24/11/2017,WM,2468403,"2,103.20",HC108443,West Mercia Energy,201808,Environment and Place,Premises-Related Expenditure
INSERTED DETAIL,27/11/2017,GI,2468482,"1,765.63",HC110093,St Peters C P School Imprest,201808,Schools,Supplies & Services
INSERTED DETAIL,27/11/2017,GI,2468485,"13,933.51",HC105275,Ledbury Primary School Imprest,201808,Schools,Supplies & Services
INSERTED DETAIL,28/11/2017,GI,2468807,536.62,HC110101,St Weonards CP School Imprest,201808,Schools,Supplies & Services
INSERTED DETAIL,28/11/2017,GI,2468809,"1,412.23",HC108278,Orleton C.E. Primary School Imprest,201808,Schools,Premises-Related Expenditure
INSERTED DETAIL,28/11/2017,GI,2468809,"1,213.16",HC108278,Orleton C.E. Primary School Imprest,201808,Schools,Supplies & Services
INSERTED DETAIL,30/11/2017,GI,2469936,"5,443.71",HC121175,Matrix SCM Ltd,201808,Adults Operations,Employees
INSERTED DETAIL,30/11/2017,GI,2469936,"5,628.24",HC121175,Matrix SCM Ltd,201808,Mental Health,Employees
INSERTED DETAIL,30/11/2017,GI,2469936,"6,382.68",HC121175,Matrix SCM Ltd,201808,Safeguarding and Family Support,Employees
INSERTED DETAIL,30/11/2017,GI,2469936,"2,498.50",HC121175,REDACTED,201808,Safeguarding and Family Support,Employees
INSERTED DETAIL,30/11/2017,GI,2469940,"7,781.91",HC108793,REDACTED,201808,Adults Operations,Supplies & Services
INSERTED DETAIL,04/12/2017,GI,2470906,475,HC105573,Luston C P School Imprest,201809,Schools,Employees
INSERTED DETAIL,04/12/2017,GI,2470906,"1,772.18",HC105573,Luston C P School Imprest,201809,Schools,Supplies & Services
INSERTED DETAIL,06/12/2017,GI,2473254,"1,610.89",HC100786,Aylestone School Imprest A/C,201809,Schools,Supplies & Services
INSERTED DETAIL,06/12/2017,GI,2473256,"1,118.76",HC102369,Madley Primary School Imprest A/C,201809,Schools,Supplies & Services
INSERTED DETAIL,06/12/2017,GI,2473257,"15,510.87",HC111380,Welsh Water,201809,Environment and Place,Premises-Related Expenditure
INSERTED DETAIL,07/12/2017,GI,2473454,"11,000.81",HC121175,Matrix SCM Ltd,201809,Adults Operations,Employees
INSERTED DETAIL,07/12/2017,GI,2473454,"3,667.94",HC121175,Matrix SCM Ltd,201809,Mental Health,Employees
INSERTED DETAIL,07/12/2017,GI,2473454,"5,108.78",HC121175,Matrix SCM Ltd,201809,Safeguarding and Family Support,Employees
INSERTED DETAIL,07/12/2017,GI,2473454,"2,507.96",HC121175,REDACTED,201809,Safeguarding and Family Support,Employees
INSERTED DETAIL,07/12/2017,GI,2473746,417.01,HC105091,Kington Primary School Imprest A/C,201809,Schools,Supplies & Services
INSERTED DETAIL,08/12/2017,GI,2473880,574.56,HC119939,REDACTED,201809,Safeguarding and Family Support,Third Party Payments
INSERTED DETAIL,08/12/2017,GI,2473882,448.56,HC119939,REDACTED,201809,Safeguarding and Family Support,Third Party Payments
INSERTED DETAIL,11/12/2017,GI,2473952,499.98,HC103506,Goodrich C E Primary Sch Imprest,201809,Schools,Supplies & Services
INSERTED DETAIL,11/12/2017,GI,2473953,672.74,HC103627,H C Westfield School Imprest,201809,Schools,Supplies & Services
INSERTED DETAIL,11/12/2017,GI,2474006,"1,394.62",HC111924,Bromyard Community Transport Ltd,201809,Environment and Place,Supplies & Services
INSERTED DETAIL,11/12/2017,GI,2474007,"1,768.13",HC112080,CVS Ledbury & District (Ledbury Ring & Ride)Standing Order,201809,Environment and Place,Supplies & Services
INSERTED DETAIL,11/12/2017,GI,2474008,"1,426.29",HC102478,Dore Community Transport,201809,Environment and Place,Supplies & Services
INSERTED DETAIL,11/12/2017,GI,2474009,684.47,HC101381,Hay & District Dial a Ride,201809,Environment and Place,Supplies & Services
INSERTED DETAIL,11/12/2017,GI,2474010,"3,092.60",HC103982,HVOSS,201809,Environment and Place,Supplies & Services
INSERTED DETAIL,11/12/2017,GI,2474011,792.96,HC101379,Ross Country Cars (Standing Order),201809,Environment and Place,Supplies & Services
INSERTED DETAIL,11/12/2017,GI,2474012,"2,150.83",HC110743,The Plynlimon Trust Community Car Scheme,201809,Environment and Place,Supplies & Services
INSERTED DETAIL,11/12/2017,GI,2474013,"115,806.29",HC107466,Worcestershire Health & Care NHS Trust,201809,Public Health,Third Party Payments
INSERTED DETAIL,11/12/2017,GI,2474014,"147,313.06",HC120328,Addaction,201809,Public Health,Third Party Payments
INSERTED DETAIL,11/12/2017,GI,2474016,"16,524.00",HC122767,"H3 (The Hub, Hospital & Home Teaching Team)",201809,Dedicated Schools Grant,Third Party Payments
INSERTED DETAIL,11/12/2017,GI,2474017,"60,000.00",HC120107,Hereford Integrated Behaviour Outreach Service,201809,Dedicated Schools Grant,Third Party Payments
INSERTED DETAIL,11/12/2017,GI,2474018,"30,875.00",HC120107,Hereford Integrated Behaviour Outreach Service,201809,Dedicated Schools Grant,Third Party Payments
INSERTED DETAIL,11/12/2017,GI,2474019,630,HC106870,REDACTED,201809,Adults Operations,Premises-Related Expenditure
INSERTED DETAIL,11/12/2017,GI,2474020,630,HC106870,REDACTED,201809,Adults Operations,Premises-Related Expenditure
INSERTED DETAIL,11/12/2017,GI,2474021,625,HC106831,REDACTED,201809,Adults Operations,Premises-Related Expenditure
INSERTED DETAIL,11/12/2017,GI,2474022,450,HC109865,REDACTED,201809,Adults Operations,Premises-Related Expenditure
INSERTED DETAIL,11/12/2017,GI,2474023,450,HC109865,REDACTED,201809,Adults Operations,Premises-Related Expenditure
INSERTED DETAIL,11/12/2017,GI,2474025,550,HC108221,REDACTED,201809,Adults Operations,Premises-Related Expenditure
INSERTED DETAIL,11/12/2017,GI,2474026,520,HC108905,REDACTED,201809,Adults Operations,Premises-Related Expenditure
INSERTED DETAIL,11/12/2017,GI,2474027,475,HC109338,REDACTED,201809,Adults Operations,Premises-Related Expenditure
INSERTED DETAIL,11/12/2017,GI,2474030,"4,333.33",HC106816,REDACTED,201809,Adults Operations,Premises-Related Expenditure
INSERTED DETAIL,11/12/2017,GI,2474031,650,HC110272,REDACTED,201809,Adults Operations,Premises-Related Expenditure
INSERTED DETAIL,11/12/2017,GI,2474032,420,HC106104,REDACTED,201809,Adults Operations,Premises-Related Expenditure
INSERTED DETAIL,11/12/2017,GI,2474033,600,HC115622,REDACTED,201809,Adults Operations,Premises-Related Expenditure
INSERTED DETAIL,11/12/2017,GI,2474034,625,HC119280,REDACTED,201809,Adults Operations,Premises-Related Expenditure
INSERTED DETAIL,11/12/2017,GI,2474035,587.43,HC121622,REDACTED,201809,Adults Operations,Premises-Related Expenditure
INSERTED DETAIL,11/12/2017,GI,2474036,600,HC121325,REDACTED,201809,Adults Operations,Premises-Related Expenditure
INSERTED DETAIL,11/12/2017,GI,2474037,525,HC116314,REDACTED,201809,Adults Operations,Premises-Related Expenditure
INSERTED DETAIL,11/12/2017,GI,2474038,550,HC121939,REDACTED,201809,Adults Operations,Premises-Related Expenditure
INSERTED DETAIL,11/12/2017,GI,2474039,650,HC122259,REDACTED,201809,Adults Operations,Premises-Related Expenditure
INSERTED DETAIL,11/12/2017,GI,2474040,550,HC122996,REDACTED,201809,Adults Operations,Premises-Related Expenditure
INSERTED DETAIL,12/12/2017,GI,2474106,"1,191.92",HC102068,Cradley Primary School Imprest,201809,Schools,Supplies & Services
INSERTED DETAIL,13/12/2017,GI,2474239,494.92,HC107771,REDACTED,201809,Safeguarding and Family Support,Supplies & Services
INSERTED DETAIL,13/12/2017,GI,2474281,546.49,HC110093,St Peters C P School Imprest,201809,Schools,Supplies & Services
INSERTED DETAIL,14/12/2017,GI,2474332,"2,392.22",HC108278,Orleton C.E. Primary School Imprest,201809,Schools,Supplies & Services
INSERTED DETAIL,14/12/2017,GI,2474332,550,HC108278,Orleton C.E. Primary School Imprest,201809,Schools,Transport-Related Expenditure
INSERTED DETAIL,14/12/2017,GI,2474333,"8,749.11",HC121175,Matrix SCM Ltd,201809,Adults Operations,Employees
INSERTED DETAIL,14/12/2017,GI,2474333,"9,111.12",HC121175,Matrix SCM Ltd,201809,Safeguarding and Family Support,Employees
INSERTED DETAIL,14/12/2017,GI,2474333,"3,162.10",HC121175,REDACTED,201809,Safeguarding and Family Support,Employees
INSERTED DETAIL,15/12/2017,GI,2474761,684,HC123711,REDACTED,201809,Safeguarding and Family Support,Third Party Payments
INSERTED DETAIL,15/12/2017,GI,2474786,"1,107.00",HC118940,Earl Mortimer College & Sixth Form HCC,201809,Children & Young People Capital,Capital Income
INSERTED DETAIL,15/12/2017,GI,2474792,426,HC107661,Little Dewchurch CE Primary School,201809,Children & Young People Capital,Capital Income
INSERTED DETAIL,15/12/2017,GI,2474798,816,HC105841,Marlbrook  Primary School,201809,Children & Young People Capital,Capital Income
INSERTED DETAIL,15/12/2017,GI,2474804,650,HC100677,Ashfield Park Primary School,201809,Children & Young People Capital,Capital Income
INSERTED DETAIL,15/12/2017,GI,2474810,433,HC116432,Ewyas Harold Primary School-A/C 63712842,201809,Children & Young People Capital,Capital Income
INSERTED DETAIL,15/12/2017,GI,2474816,834,HC118939,Riverside Primary School - HCC,201809,Children & Young People Capital,Capital Income
INSERTED DETAIL,15/12/2017,GI,2474821,483,HC121892,Colwall C of E Primary School,201809,Children & Young People Capital,Capital Income
INSERTED DETAIL,15/12/2017,GI,2474826,663,HC110078,St Martins Primary School,201809,Children & Young People Capital,Capital Income
INSERTED DETAIL,18/12/2017,GI,2474885,"3,305.84",HC108793,REDACTED,201809,Adults Operations,Supplies & Services
INSERTED DETAIL,19/12/2017,WM,2474940,884.04,HC108443,West Mercia Energy,201809,Environment and Place,Premises-Related Expenditure
INSERTED DETAIL,19/12/2017,WM,2474952,486.49,HC108443,West Mercia Energy,201809,Schools,Premises-Related Expenditure
INSERTED DETAIL,19/12/2017,WM,2474955,507.97,HC108443,West Mercia Energy,201809,Schools,Premises-Related Expenditure
INSERTED DETAIL,19/12/2017,WM,2474958,635.72,HC108443,West Mercia Energy,201809,Schools,Premises-Related Expenditure
INSERTED DETAIL,19/12/2017,WM,2474959,716.92,HC108443,West Mercia Energy,201809,Schools,Premises-Related Expenditure
INSERTED DETAIL,19/12/2017,WM,2474973,582.09,HC108443,West Mercia Energy,201809,Environment and Place,Premises-Related Expenditure
INSERTED DETAIL,19/12/2017,WM,2474974,798.14,HC108443,West Mercia Energy,201809,Schools,Premises-Related Expenditure
INSERTED DETAIL,19/12/2017,WM,2474978,697,HC108443,West Mercia Energy,201809,Schools,Premises-Related Expenditure
INSERTED DETAIL,19/12/2017,WM,2474984,"1,337.96",HC108443,West Mercia Energy,201809,Environment and Place,Premises-Related Expenditure
INSERTED DETAIL,19/12/2017,WM,2474986,520.27,HC108443,West Mercia Energy,201809,Schools,Premises-Related Expenditure
INSERTED DETAIL,19/12/2017,WM,2474990,453.63,HC108443,West Mercia Energy,201809,Environment and Place,Premises-Related Expenditure
INSERTED DETAIL,19/12/2017,WM,2474995,620.9,HC108443,West Mercia Energy,201809,Environment and Place,Premises-Related Expenditure
INSERTED DETAIL,19/12/2017,WM,2474996,570.24,HC108443,West Mercia Energy,201809,Schools,Premises-Related Expenditure
INSERTED DETAIL,19/12/2017,WM,2474999,"1,051.07",HC108443,West Mercia Energy,201809,Environment and Place,Premises-Related Expenditure
INSERTED DETAIL,19/12/2017,WM,2475002,565.23,HC108443,West Mercia Energy,201809,Schools,Premises-Related Expenditure
INSERTED DETAIL,19/12/2017,WM,2475004,483.93,HC108443,West Mercia Energy,201809,Environment and Place,Premises-Related Expenditure
INSERTED DETAIL,19/12/2017,WM,2475006,"1,152.75",HC108443,West Mercia Energy,201809,Schools,Premises-Related Expenditure
INSERTED DETAIL,19/12/2017,WM,2475007,482.71,HC108443,West Mercia Energy,201809,Schools,Premises-Related Expenditure
INSERTED DETAIL,19/12/2017,WM,2475008,626.01,HC108443,West Mercia Energy,201809,Schools,Premises-Related Expenditure
INSERTED DETAIL,19/12/2017,WM,2475010,598.25,HC108443,West Mercia Energy,201809,Schools,Premises-Related Expenditure
INSERTED DETAIL,19/12/2017,WM,2475013,"1,162.48",HC108443,West Mercia Energy,201809,Environment and Place,Premises-Related Expenditure
INSERTED DETAIL,19/12/2017,WM,2475015,471.86,HC108443,West Mercia Energy,201809,Schools,Premises-Related Expenditure
INSERTED DETAIL,19/12/2017,WM,2475016,"1,268.68",HC108443,West Mercia Energy,201809,Environment and Place,Premises-Related Expenditure
INSERTED DETAIL,19/12/2017,WM,2475017,535.45,HC108443,West Mercia Energy,201809,Schools,Premises-Related Expenditure
INSERTED DETAIL,19/12/2017,WM,2475018,472.47,HC108443,West Mercia Energy,201809,Environment and Place,Premises-Related Expenditure
INSERTED DETAIL,19/12/2017,WM,2475019,851.81,HC108443,West Mercia Energy,201809,Environment and Place,Premises-Related Expenditure
INSERTED DETAIL,19/12/2017,WM,2475024,591.99,HC108443,West Mercia Energy,201809,Schools,Premises-Related Expenditure
INSERTED DETAIL,19/12/2017,WM,2475027,714.75,HC108443,West Mercia Energy,201809,Environment and Place,Premises-Related Expenditure
INSERTED DETAIL,19/12/2017,WM,2475029,591.61,HC108443,West Mercia Energy,201809,Schools,Premises-Related Expenditure
INSERTED DETAIL,19/12/2017,WM,2475032,"1,023.65",HC108443,West Mercia Energy,201809,Schools,Premises-Related Expenditure
INSERTED DETAIL,19/12/2017,WM,2475036,517.64,HC108443,West Mercia Energy,201809,Schools,Premises-Related Expenditure
INSERTED DETAIL,19/12/2017,WM,2475039,554.62,HC108443,West Mercia Energy,201809,Schools,Premises-Related Expenditure
INSERTED DETAIL,19/12/2017,WM,2475047,571.89,HC108443,West Mercia Energy,201809,Schools,Premises-Related Expenditure
INSERTED DETAIL,19/12/2017,WM,2475052,491.03,HC108443,West Mercia Energy,201809,Environment and Place,Premises-Related Expenditure
INSERTED DETAIL,19/12/2017,WM,2475054,"1,050.06",HC108443,West Mercia Energy,201809,Environment and Place,Premises-Related Expenditure
INSERTED DETAIL,19/12/2017,WM,2475063,424.56,HC108443,West Mercia Energy,201809,Schools,Premises-Related Expenditure
INSERTED DETAIL,19/12/2017,WM,2475064,461.4,HC108443,West Mercia Energy,201809,Schools,Premises-Related Expenditure
INSERTED DETAIL,19/12/2017,WM,2475066,428.49,HC108443,West Mercia Energy,201809,Schools,Premises-Related Expenditure
INSERTED DETAIL,19/12/2017,WM,2475068,838.43,HC108443,West Mercia Energy,201809,Environment and Place,Premises-Related Expenditure
INSERTED DETAIL,19/12/2017,WM,2475070,767.4,HC108443,West Mercia Energy,201809,Environment and Place,Premises-Related Expenditure
INSERTED DETAIL,19/12/2017,WM,2475074,568.6,HC108443,West Mercia Energy,201809,Schools,Premises-Related Expenditure
INSERTED DETAIL,19/12/2017,WM,2475079,464.79,HC108443,West Mercia Energy,201809,Schools,Premises-Related Expenditure
INSERTED DETAIL,19/12/2017,WM,2475080,559.51,HC108443,West Mercia Energy,201809,Schools,Premises-Related Expenditure
INSERTED DETAIL,19/12/2017,WM,2475103,"1,040.02",HC108443,West Mercia Energy,201809,Environment and Place,Premises-Related Expenditure
INSERTED DETAIL,19/12/2017,WM,2475104,"1,008.65",HC108443,West Mercia Energy,201809,Environment and Place,Premises-Related Expenditure
INSERTED DETAIL,19/12/2017,WM,2475105,542.03,HC108443,West Mercia Energy,201809,Environment and Place,Premises-Related Expenditure
INSERTED DETAIL,19/12/2017,WM,2475107,666.67,HC108443,West Mercia Energy,201809,Environment and Place,Premises-Related Expenditure
INSERTED DETAIL,19/12/2017,WM,2475109,"1,535.09",HC108443,West Mercia Energy,201809,Environment and Place,Premises-Related Expenditure
INSERTED DETAIL,19/12/2017,WM,2475110,567.27,HC108443,West Mercia Energy,201809,Schools,Premises-Related Expenditure
INSERTED DETAIL,19/12/2017,WM,2475111,"1,028.77",HC108443,West Mercia Energy,201809,Environment and Place,Premises-Related Expenditure
INSERTED DETAIL,19/12/2017,WM,2475113,655.96,HC108443,West Mercia Energy,201809,Environment and Place,Premises-Related Expenditure
INSERTED DETAIL,19/12/2017,WM,2475114,"1,457.76",HC108443,West Mercia Energy,201809,Schools,Premises-Related Expenditure
INSERTED DETAIL,19/12/2017,WM,2475115,644.77,HC108443,West Mercia Energy,201809,Environment and Place,Premises-Related Expenditure
INSERTED DETAIL,19/12/2017,WM,2475116,"1,821.43",HC108443,West Mercia Energy,201809,Environment and Place,Premises-Related Expenditure
INSERTED DETAIL,19/12/2017,WM,2475117,874.82,HC108443,West Mercia Energy,201809,Environment and Place,Premises-Related Expenditure
INSERTED DETAIL,19/12/2017,WM,2475118,"2,096.09",HC108443,West Mercia Energy,201809,Environment and Place,Premises-Related Expenditure
INSERTED DETAIL,19/12/2017,WM,2475119,"1,912.42",HC108443,West Mercia Energy,201809,Schools,Premises-Related Expenditure
INSERTED DETAIL,19/12/2017,WM,2475120,"1,603.40",HC108443,West Mercia Energy,201809,Schools,Premises-Related Expenditure
INSERTED DETAIL,19/12/2017,WM,2475121,"10,253.67",HC108443,West Mercia Energy,201809,Environment and Place,Premises-Related Expenditure
INSERTED DETAIL,19/12/2017,WM,2475122,"1,014.13",HC108443,West Mercia Energy,201809,Environment and Place,Premises-Related Expenditure
INSERTED DETAIL,19/12/2017,WM,2475159,749.67,HC108443,West Mercia Energy,201809,Schools,Premises-Related Expenditure
INSERTED DETAIL,19/12/2017,WM,2475163,830.85,HC108443,West Mercia Energy,201809,Environment and Place,Premises-Related Expenditure
INSERTED DETAIL,19/12/2017,WM,2475165,"1,449.25",HC108443,West Mercia Energy,201809,Schools,Premises-Related Expenditure
INSERTED DETAIL,19/12/2017,WM,2475167,832.86,HC108443,West Mercia Energy,201809,Schools,Premises-Related Expenditure
INSERTED DETAIL,19/12/2017,WM,2475168,504.44,HC108443,West Mercia Energy,201809,Environment and Place,Premises-Related Expenditure
INSERTED DETAIL,19/12/2017,WM,2475169,591.56,HC108443,West Mercia Energy,201809,Environment and Place,Premises-Related Expenditure
INSERTED DETAIL,19/12/2017,WM,2475172,490.37,HC108443,West Mercia Energy,201809,Environment and Place,Premises-Related Expenditure
INSERTED DETAIL,19/12/2017,WM,2475175,478.82,HC108443,West Mercia Energy,201809,Environment and Place,Premises-Related Expenditure
INSERTED DETAIL,19/12/2017,WM,2475176,"2,347.88",HC108443,West Mercia Energy,201809,Environment and Place,Premises-Related Expenditure
INSERTED DETAIL,19/12/2017,WM,2475178,"2,499.89",HC108443,West Mercia Energy,201809,Environment and Place,Premises-Related Expenditure
INSERTED DETAIL,19/12/2017,WM,2475182,802.2,HC108443,West Mercia Energy,201809,Schools,Premises-Related Expenditure
INSERTED DETAIL,19/12/2017,WM,2475183,424.8,HC108443,West Mercia Energy,201809,Environment and Place,Premises-Related Expenditure
INSERTED DETAIL,19/12/2017,WM,2475184,751.85,HC108443,West Mercia Energy,201809,Schools,Premises-Related Expenditure
INSERTED DETAIL,19/12/2017,WM,2475185,"1,102.26",HC108443,West Mercia Energy,201809,Environment and Place,Premises-Related Expenditure
INSERTED DETAIL,19/12/2017,WM,2475186,901.49,HC108443,West Mercia Energy,201809,Environment and Place,Premises-Related Expenditure
INSERTED DETAIL,19/12/2017,WM,2475187,423.31,HC108443,West Mercia Energy,201809,Environment and Place,Premises-Related Expenditure
INSERTED DETAIL,19/12/2017,GI,2475220,475,HC106103,Holmer C of E Academy,201809,Dedicated Schools Grant,Support Services
INSERTED DETAIL,19/12/2017,GI,2475222,475,HC115716,Mordiford Church of England Primary School,201809,Dedicated Schools Grant,Support Services
INSERTED DETAIL,19/12/2017,GI,2475223,475,HC107656,St Pauls Church of England Primary School,201809,Dedicated Schools Grant,Support Services
INSERTED DETAIL,19/12/2017,GI,2475225,475,HC105572,Lady Hawkins School (Academy),201809,Dedicated Schools Grant,Support Services
INSERTED DETAIL,19/12/2017,GI,2475230,475,HC110794,The Steiner Academy Hereford,201809,Dedicated Schools Grant,Support Services
INSERTED DETAIL,19/12/2017,GI,2475231,"1,079.17",HC113960,Barrs Court Academy,201809,Dedicated Schools Grant,Support Services
INSERTED DETAIL,19/12/2017,GI,2475232,"1,079.17",HC113960,Barrs Court Academy,201809,Dedicated Schools Grant,Support Services
INSERTED DETAIL,19/12/2017,GI,2475233,"1,079.17",HC113960,Barrs Court Academy,201809,Dedicated Schools Grant,Support Services
INSERTED DETAIL,19/12/2017,GI,2475234,475,HC113960,Barrs Court Academy,201809,Dedicated Schools Grant,Support Services
INSERTED DETAIL,19/12/2017,GI,2475235,764.17,HC113960,Barrs Court Academy,201809,Dedicated Schools Grant,Support Services
INSERTED DETAIL,19/12/2017,GI,2475236,764.17,HC113960,Barrs Court Academy,201809,Dedicated Schools Grant,Support Services
INSERTED DETAIL,19/12/2017,GI,2475237,475,HC113960,Barrs Court Academy,201809,Dedicated Schools Grant,Support Services
INSERTED DETAIL,19/12/2017,GI,2475238,764.17,HC113960,Barrs Court Academy,201809,Dedicated Schools Grant,Support Services
INSERTED DETAIL,19/12/2017,GI,2475239,"1,079.17",HC113960,Barrs Court Academy,201809,Dedicated Schools Grant,Support Services
INSERTED DETAIL,19/12/2017,GI,2475240,"1,079.17",HC113960,Barrs Court Academy,201809,Dedicated Schools Grant,Support Services
INSERTED DETAIL,19/12/2017,GI,2475241,764.17,HC113960,Barrs Court Academy,201809,Dedicated Schools Grant,Support Services
INSERTED DETAIL,19/12/2017,GI,2475242,"1,079.17",HC113960,Barrs Court Academy,201809,Dedicated Schools Grant,Support Services
INSERTED DETAIL,19/12/2017,GI,2475243,475,HC113960,Barrs Court Academy,201809,Dedicated Schools Grant,Support Services
INSERTED DETAIL,19/12/2017,GI,2475244,"1,438.33",HC113960,Barrs Court Academy,201809,Dedicated Schools Grant,Support Services
INSERTED DETAIL,19/12/2017,GI,2475245,764.17,HC113960,Barrs Court Academy,201809,Dedicated Schools Grant,Support Services
INSERTED DETAIL,19/12/2017,GI,2475246,764.17,HC113960,Barrs Court Academy,201809,Dedicated Schools Grant,Support Services
INSERTED DETAIL,19/12/2017,GI,2475247,"1,079.17",HC113960,Barrs Court Academy,201809,Dedicated Schools Grant,Support Services
INSERTED DETAIL,19/12/2017,GI,2475248,764.17,HC113960,Barrs Court Academy,201809,Dedicated Schools Grant,Support Services
INSERTED DETAIL,19/12/2017,GI,2475249,764.17,HC113960,Barrs Court Academy,201809,Dedicated Schools Grant,Support Services
INSERTED DETAIL,19/12/2017,GI,2475250,475,HC113960,Barrs Court Academy,201809,Dedicated Schools Grant,Support Services
INSERTED DETAIL,19/12/2017,GI,2475251,"1,079.17",HC113960,Barrs Court Academy,201809,Dedicated Schools Grant,Support Services
INSERTED DETAIL,19/12/2017,GI,2475252,764.17,HC113960,Barrs Court Academy,201809,Dedicated Schools Grant,Support Services
INSERTED DETAIL,19/12/2017,GI,2475253,764.17,HC113960,Barrs Court Academy,201809,Dedicated Schools Grant,Support Services
INSERTED DETAIL,19/12/2017,GI,2475254,"1,079.17",HC113960,Barrs Court Academy,201809,Dedicated Schools Grant,Support Services
INSERTED DETAIL,19/12/2017,GI,2475255,"1,079.17",HC113960,Barrs Court Academy,201809,Dedicated Schools Grant,Support Services
INSERTED DETAIL,19/12/2017,GI,2475256,"1,079.17",HC113960,Barrs Court Academy,201809,Dedicated Schools Grant,Support Services
INSERTED DETAIL,19/12/2017,GI,2475257,764.17,HC113960,Barrs Court Academy,201809,Dedicated Schools Grant,Support Services
INSERTED DETAIL,19/12/2017,GI,2475258,764.17,HC113960,Barrs Court Academy,201809,Dedicated Schools Grant,Support Services
INSERTED DETAIL,19/12/2017,GI,2475259,764.17,HC113960,Barrs Court Academy,201809,Dedicated Schools Grant,Support Services
INSERTED DETAIL,19/12/2017,GI,2475260,"1,079.17",HC113960,Barrs Court Academy,201809,Dedicated Schools Grant,Support Services
INSERTED DETAIL,19/12/2017,GI,2475261,"1,079.17",HC113960,Barrs Court Academy,201809,Dedicated Schools Grant,Support Services
INSERTED DETAIL,19/12/2017,GI,2475262,"1,079.17",HC113960,Barrs Court Academy,201809,Dedicated Schools Grant,Support Services
INSERTED DETAIL,19/12/2017,GI,2475263,"1,079.17",HC113960,Barrs Court Academy,201809,Dedicated Schools Grant,Support Services
INSERTED DETAIL,19/12/2017,GI,2475264,"1,438.33",HC113960,Barrs Court Academy,201809,Dedicated Schools Grant,Support Services
INSERTED DETAIL,19/12/2017,GI,2475265,"1,079.17",HC113960,Barrs Court Academy,201809,Dedicated Schools Grant,Support Services
INSERTED DETAIL,19/12/2017,GI,2475266,"1,079.17",HC113960,Barrs Court Academy,201809,Dedicated Schools Grant,Support Services
INSERTED DETAIL,19/12/2017,GI,2475267,"1,438.33",HC113960,Barrs Court Academy,201809,Dedicated Schools Grant,Support Services
INSERTED DETAIL,19/12/2017,GI,2475268,764.17,HC113960,Barrs Court Academy,201809,Dedicated Schools Grant,Support Services
INSERTED DETAIL,19/12/2017,GI,2475269,764.17,HC113960,Barrs Court Academy,201809,Dedicated Schools Grant,Support Services
INSERTED DETAIL,19/12/2017,GI,2475270,764.17,HC113960,Barrs Court Academy,201809,Dedicated Schools Grant,Support Services
INSERTED DETAIL,19/12/2017,GI,2475271,764.17,HC113960,Barrs Court Academy,201809,Dedicated Schools Grant,Support Services
INSERTED DETAIL,19/12/2017,GI,2475272,764.17,HC117835,The Brookfield School (Academy),201809,Dedicated Schools Grant,Support Services
INSERTED DETAIL,19/12/2017,GI,2475273,764.17,HC117835,The Brookfield School (Academy),201809,Dedicated Schools Grant,Support Services
INSERTED DETAIL,19/12/2017,GI,2475274,475,HC117835,The Brookfield School (Academy),201809,Dedicated Schools Grant,Support Services
INSERTED DETAIL,19/12/2017,GI,2475275,475,HC117835,The Brookfield School (Academy),201809,Dedicated Schools Grant,Support Services
INSERTED DETAIL,19/12/2017,GI,2475276,764.17,HC117835,The Brookfield School (Academy),201809,Dedicated Schools Grant,Support Services
INSERTED DETAIL,19/12/2017,GI,2475277,764.17,HC117835,The Brookfield School (Academy),201809,Dedicated Schools Grant,Support Services
INSERTED DETAIL,19/12/2017,GI,2475278,764.17,HC117835,The Brookfield School (Academy),201809,Dedicated Schools Grant,Support Services
INSERTED DETAIL,19/12/2017,GI,2475279,475,HC117835,The Brookfield School (Academy),201809,Dedicated Schools Grant,Support Services
INSERTED DETAIL,19/12/2017,GI,2475280,764.17,HC117835,The Brookfield School (Academy),201809,Dedicated Schools Grant,Support Services
INSERTED DETAIL,19/12/2017,GI,2475281,475,HC111701,Whitecross Hereford Academy,201809,Dedicated Schools Grant,Support Services
INSERTED DETAIL,19/12/2017,GI,2475287,475,HC110648,BAE Trust T/A The Hereford Academy,201809,Dedicated Schools Grant,Support Services
INSERTED DETAIL,19/12/2017,GI,2475288,764.17,HC117835,The Brookfield School (Academy),201809,Dedicated Schools Grant,Support Services
INSERTED DETAIL,19/12/2017,GI,2475289,764.17,HC117835,The Brookfield School (Academy),201809,Dedicated Schools Grant,Support Services
INSERTED DETAIL,19/12/2017,GI,2475290,475,HC113960,Barrs Court Academy,201809,Dedicated Schools Grant,Support Services
INSERTED DETAIL,19/12/2017,GI,2475291,"1,079.17",HC113960,Barrs Court Academy,201809,Dedicated Schools Grant,Support Services
INSERTED DETAIL,19/12/2017,GI,2475292,"1,438.33",HC113960,Barrs Court Academy,201809,Dedicated Schools Grant,Support Services
INSERTED DETAIL,19/12/2017,GI,2475293,"1,079.17",HC113960,Barrs Court Academy,201809,Dedicated Schools Grant,Support Services
INSERTED DETAIL,19/12/2017,GI,2475294,764.17,HC113960,Barrs Court Academy,201809,Dedicated Schools Grant,Support Services
INSERTED DETAIL,19/12/2017,GI,2475295,764.17,HC113960,Barrs Court Academy,201809,Dedicated Schools Grant,Support Services
INSERTED DETAIL,19/12/2017,GI,2475296,"1,079.17",HC113960,Barrs Court Academy,201809,Dedicated Schools Grant,Support Services
INSERTED DETAIL,19/12/2017,GI,2475297,475,HC113960,Barrs Court Academy,201809,Dedicated Schools Grant,Support Services
INSERTED DETAIL,19/12/2017,GI,2475298,475,HC113960,Barrs Court Academy,201809,Dedicated Schools Grant,Support Services
INSERTED DETAIL,19/12/2017,GI,2475299,475,HC113960,Barrs Court Academy,201809,Dedicated Schools Grant,Support Services
INSERTED DETAIL,19/12/2017,GI,2475300,"1,079.17",HC113960,Barrs Court Academy,201809,Dedicated Schools Grant,Support Services
INSERTED DETAIL,19/12/2017,GI,2475301,"1,079.17",HC113960,Barrs Court Academy,201809,Dedicated Schools Grant,Support Services
INSERTED DETAIL,19/12/2017,GI,2475302,"1,433.33",HC117835,The Brookfield School (Academy),201809,Dedicated Schools Grant,Support Services
INSERTED DETAIL,19/12/2017,GI,2475304,475,HC117835,The Brookfield School (Academy),201809,Dedicated Schools Grant,Support Services
INSERTED DETAIL,19/12/2017,GI,2475305,475,HC113960,Barrs Court Academy,201809,Dedicated Schools Grant,Support Services
INSERTED DETAIL,19/12/2017,GI,2475306,764.17,HC113960,Barrs Court Academy,201809,Dedicated Schools Grant,Support Services
INSERTED DETAIL,19/12/2017,GI,2475307,764.17,HC113960,Barrs Court Academy,201809,Dedicated Schools Grant,Support Services
INSERTED DETAIL,19/12/2017,GI,2475308,475,HC102152,Ashperton Primary Academy,201809,Dedicated Schools Grant,Support Services
INSERTED DETAIL,19/12/2017,GI,2475311,475,HC104761,Herefordshire Marches Federation-Lord Scudamore,201809,Dedicated Schools Grant,Support Services
INSERTED DETAIL,19/12/2017,GI,2475312,475,HC105572,Lady Hawkins School (Academy),201809,Dedicated Schools Grant,Support Services
INSERTED DETAIL,19/12/2017,GI,2475313,475,HC113960,Barrs Court Academy,201809,Dedicated Schools Grant,Support Services
INSERTED DETAIL,19/12/2017,GI,2475315,764.17,HC117835,The Brookfield School (Academy),201809,Dedicated Schools Grant,Support Services
INSERTED DETAIL,19/12/2017,GI,2475316,475,HC117835,The Brookfield School (Academy),201809,Dedicated Schools Grant,Support Services
INSERTED DETAIL,19/12/2017,GI,2475317,475,HC117835,The Brookfield School (Academy),201809,Dedicated Schools Grant,Support Services
INSERTED DETAIL,19/12/2017,GI,2475318,475,HC117835,The Brookfield School (Academy),201809,Dedicated Schools Grant,Support Services
INSERTED DETAIL,19/12/2017,GI,2475319,764.17,HC117835,The Brookfield School (Academy),201809,Dedicated Schools Grant,Support Services
INSERTED DETAIL,19/12/2017,GI,2475320,475,HC110794,The Steiner Academy Hereford,201809,Dedicated Schools Grant,Support Services
INSERTED DETAIL,19/12/2017,GI,2475321,"1,079.17",HC113960,Barrs Court Academy,201809,Dedicated Schools Grant,Support Services
INSERTED DETAIL,19/12/2017,GI,2475323,475,HC102183,Herefordshire Marches Federation-Kings Caple,201809,Dedicated Schools Grant,Support Services
INSERTED DETAIL,19/12/2017,GI,2475325,475,HC115884,St Thomas Cantilupe CE Academy,201809,Dedicated Schools Grant,Support Services
INSERTED DETAIL,19/12/2017,GI,2475331,475,HC113960,Barrs Court Academy,201809,Dedicated Schools Grant,Support Services
INSERTED DETAIL,19/12/2017,GI,2475332,475,HC113960,Barrs Court Academy,201809,Dedicated Schools Grant,Support Services
INSERTED DETAIL,19/12/2017,GI,2475333,475,HC113960,Barrs Court Academy,201809,Dedicated Schools Grant,Support Services
INSERTED DETAIL,19/12/2017,GI,2475334,"1,079.17",HC113960,Barrs Court Academy,201809,Dedicated Schools Grant,Support Services
INSERTED DETAIL,19/12/2017,GI,2475336,475,HC117835,The Brookfield School (Academy),201809,Dedicated Schools Grant,Support Services
INSERTED DETAIL,19/12/2017,GI,2475339,475,HC113960,Barrs Court Academy,201809,Dedicated Schools Grant,Support Services
INSERTED DETAIL,19/12/2017,GI,2475341,"1,079.17",HC113960,Barrs Court Academy,201809,Dedicated Schools Grant,Support Services
INSERTED DETAIL,19/12/2017,GI,2475342,475,HC113960,Barrs Court Academy,201809,Dedicated Schools Grant,Support Services
INSERTED DETAIL,19/12/2017,GI,2475343,475,HC113960,Barrs Court Academy,201809,Dedicated Schools Grant,Support Services
INSERTED DETAIL,19/12/2017,GI,2475344,475,HC117835,The Brookfield School (Academy),201809,Dedicated Schools Grant,Support Services
INSERTED DETAIL,19/12/2017,GI,2475345,475,HC117835,The Brookfield School (Academy),201809,Dedicated Schools Grant,Support Services
INSERTED DETAIL,19/12/2017,GI,2475348,475,HC104739,John Masefield High School (Academy),201809,Dedicated Schools Grant,Support Services
INSERTED DETAIL,19/12/2017,GI,2475349,475,HC113960,Barrs Court Academy,201809,Dedicated Schools Grant,Support Services
INSERTED DETAIL,19/12/2017,GI,2475350,475,HC113960,Barrs Court Academy,201809,Dedicated Schools Grant,Support Services
INSERTED DETAIL,19/12/2017,GI,2475351,475,HC113960,Barrs Court Academy,201809,Dedicated Schools Grant,Support Services
INSERTED DETAIL,19/12/2017,GI,2475354,475,HC111701,Whitecross Hereford Academy,201809,Dedicated Schools Grant,Support Services
INSERTED DETAIL,19/12/2017,GI,2475355,475,HC117835,The Brookfield School (Academy),201809,Dedicated Schools Grant,Support Services
INSERTED DETAIL,19/12/2017,GI,2475356,475,HC102152,Ashperton Primary Academy,201809,Dedicated Schools Grant,Support Services
INSERTED DETAIL,19/12/2017,GI,2475357,475,HC108716,Stretton Sugwas CE Academy,201809,Dedicated Schools Grant,Support Services
INSERTED DETAIL,19/12/2017,GI,2475358,475,HC115716,Mordiford Church of England Primary School,201809,Dedicated Schools Grant,Support Services
INSERTED DETAIL,19/12/2017,GI,2475360,475,HC117835,The Brookfield School (Academy),201809,Dedicated Schools Grant,Support Services
INSERTED DETAIL,19/12/2017,GI,2475361,475,HC117835,The Brookfield School (Academy),201809,Dedicated Schools Grant,Support Services
INSERTED DETAIL,19/12/2017,GI,2475363,475,HC102524,Brockhampton Primary School (Academy),201809,Dedicated Schools Grant,Support Services
INSERTED DETAIL,19/12/2017,GI,2475364,475,HC117835,The Brookfield School (Academy),201809,Dedicated Schools Grant,Support Services
INSERTED DETAIL,19/12/2017,GI,2475365,475,HC117835,The Brookfield School (Academy),201809,Dedicated Schools Grant,Support Services
INSERTED DETAIL,19/12/2017,GI,2475366,475,HC115884,St Thomas Cantilupe CE Academy,201809,Dedicated Schools Grant,Support Services
INSERTED DETAIL,19/12/2017,GI,2475367,"1,079.17",HC117835,The Brookfield School (Academy),201809,Dedicated Schools Grant,Support Services
INSERTED DETAIL,19/12/2017,GI,2475368,764.17,HC117835,The Brookfield School (Academy),201809,Dedicated Schools Grant,Support Services
INSERTED DETAIL,19/12/2017,GI,2475369,764.17,HC117835,The Brookfield School (Academy),201809,Dedicated Schools Grant,Support Services
INSERTED DETAIL,19/12/2017,GI,2475370,764.17,HC117835,The Brookfield School (Academy),201809,Dedicated Schools Grant,Support Services
INSERTED DETAIL,19/12/2017,GI,2475371,764.17,HC117835,The Brookfield School (Academy),201809,Dedicated Schools Grant,Support Services
INSERTED DETAIL,19/12/2017,GI,2475372,764.17,HC117835,The Brookfield School (Academy),201809,Dedicated Schools Grant,Support Services
INSERTED DETAIL,19/12/2017,GI,2475373,475,HC113733,Canon Pyon CE Academy,201809,Dedicated Schools Grant,Support Services
INSERTED DETAIL,19/12/2017,GI,2475374,475,HC113960,Barrs Court Academy,201809,Dedicated Schools Grant,Support Services
INSERTED DETAIL,19/12/2017,GI,2475375,475,HC117835,The Brookfield School (Academy),201809,Dedicated Schools Grant,Support Services
INSERTED DETAIL,19/12/2017,GI,2475377,475,HC104739,John Masefield High School (Academy),201809,Dedicated Schools Grant,Support Services
INSERTED DETAIL,19/12/2017,GI,2475378,475,HC117835,The Brookfield School (Academy),201809,Dedicated Schools Grant,Support Services
INSERTED DETAIL,19/12/2017,GI,2475379,475,HC117835,The Brookfield School (Academy),201809,Dedicated Schools Grant,Support Services
INSERTED DETAIL,19/12/2017,GI,2475380,475,HC117835,The Brookfield School (Academy),201809,Dedicated Schools Grant,Support Services
INSERTED DETAIL,19/12/2017,GI,2475381,475,HC117835,The Brookfield School (Academy),201809,Dedicated Schools Grant,Support Services
INSERTED DETAIL,19/12/2017,GI,2475382,475,HC117835,The Brookfield School (Academy),201809,Dedicated Schools Grant,Support Services
INSERTED DETAIL,19/12/2017,GI,2475383,475,HC113960,Barrs Court Academy,201809,Dedicated Schools Grant,Support Services
INSERTED DETAIL,19/12/2017,GI,2475384,"1,079.17",HC113960,Barrs Court Academy,201809,Dedicated Schools Grant,Support Services
INSERTED DETAIL,19/12/2017,GI,2475385,764.17,HC113960,Barrs Court Academy,201809,Dedicated Schools Grant,Support Services
INSERTED DETAIL,19/12/2017,GI,2475387,475,HC116854,Fairfield High School (Academy),201809,Dedicated Schools Grant,Support Services
INSERTED DETAIL,19/12/2017,GI,2475390,475,HC102152,Ashperton Primary Academy,201809,Dedicated Schools Grant,Support Services
INSERTED DETAIL,19/12/2017,GI,2475392,475,HC117835,The Brookfield School (Academy),201809,Dedicated Schools Grant,Support Services
INSERTED DETAIL,19/12/2017,GI,2475393,475,HC106103,Holmer C of E Academy,201809,Dedicated Schools Grant,Support Services
INSERTED DETAIL,19/12/2017,GI,2475394,475,HC115884,St Thomas Cantilupe CE Academy,201809,Dedicated Schools Grant,Support Services
INSERTED DETAIL,19/12/2017,GI,2475397,764.17,HC110648,BAE Trust T/A The Hereford Academy,201809,Dedicated Schools Grant,Support Services
INSERTED DETAIL,19/12/2017,GI,2475398,764.17,HC117835,The Brookfield School (Academy),201809,Dedicated Schools Grant,Support Services
INSERTED DETAIL,19/12/2017,GI,2475399,764.17,HC117835,The Brookfield School (Academy),201809,Dedicated Schools Grant,Support Services
INSERTED DETAIL,19/12/2017,GI,2475400,764.17,HC111508,Wigmore High School (Academy),201809,Dedicated Schools Grant,Support Services
INSERTED DETAIL,19/12/2017,GI,2475401,475,HC113960,Barrs Court Academy,201809,Dedicated Schools Grant,Support Services
INSERTED DETAIL,19/12/2017,GI,2475402,475,HC117835,The Brookfield School (Academy),201809,Dedicated Schools Grant,Support Services
INSERTED DETAIL,19/12/2017,GI,2475404,475,HC117835,The Brookfield School (Academy),201809,Dedicated Schools Grant,Support Services
INSERTED DETAIL,19/12/2017,GI,2475406,475,HC110648,BAE Trust T/A The Hereford Academy,201809,Dedicated Schools Grant,Support Services
INSERTED DETAIL,19/12/2017,GI,2475407,764.17,HC117835,The Brookfield School (Academy),201809,Dedicated Schools Grant,Support Services
INSERTED DETAIL,19/12/2017,GI,2475408,"1,438.33",HC113960,Barrs Court Academy,201809,Dedicated Schools Grant,Support Services
INSERTED DETAIL,19/12/2017,GI,2475409,475,HC113960,Barrs Court Academy,201809,Dedicated Schools Grant,Support Services
INSERTED DETAIL,19/12/2017,GI,2475412,475,HC117215,Robert Owen Academey,201809,Dedicated Schools Grant,Support Services
INSERTED DETAIL,19/12/2017,GI,2475413,475,HC102076,Herefordshire Marches Federation Sutton Primary Academy,201809,Dedicated Schools Grant,Support Services
INSERTED DETAIL,19/12/2017,GI,2475415,764.17,HC105571,Wigmore Primary School (Academy),201809,Dedicated Schools Grant,Support Services
INSERTED DETAIL,19/12/2017,GI,2475416,475,HC117835,The Brookfield School (Academy),201809,Dedicated Schools Grant,Support Services
INSERTED DETAIL,19/12/2017,GI,2475417,475,HC117835,The Brookfield School (Academy),201809,Dedicated Schools Grant,Support Services
INSERTED DETAIL,19/12/2017,GI,2475418,764.17,HC117835,The Brookfield School (Academy),201809,Dedicated Schools Grant,Support Services
INSERTED DETAIL,19/12/2017,GI,2475419,764.17,HC117835,The Brookfield School (Academy),201809,Dedicated Schools Grant,Support Services
INSERTED DETAIL,19/12/2017,GI,2475420,475,HC104739,John Masefield High School (Academy),201809,Dedicated Schools Grant,Support Services
INSERTED DETAIL,19/12/2017,GI,2475421,764.17,HC117835,The Brookfield School (Academy),201809,Dedicated Schools Grant,Support Services
INSERTED DETAIL,19/12/2017,GI,2475425,764.17,HC113960,Barrs Court Academy,201809,Dedicated Schools Grant,Support Services
INSERTED DETAIL,19/12/2017,GI,2475426,475,HC105572,Lady Hawkins School (Academy),201809,Dedicated Schools Grant,Support Services
INSERTED DETAIL,19/12/2017,GI,2475429,764.17,HC106103,Holmer C of E Academy,201809,Dedicated Schools Grant,Support Services
INSERTED DETAIL,19/12/2017,GI,2475430,475,HC117835,The Brookfield School (Academy),201809,Dedicated Schools Grant,Support Services
INSERTED DETAIL,19/12/2017,GI,2475431,475,HC117835,The Brookfield School (Academy),201809,Dedicated Schools Grant,Support Services
INSERTED DETAIL,19/12/2017,GI,2475432,"1,079.17",HC113960,Barrs Court Academy,201809,Dedicated Schools Grant,Support Services
INSERTED DETAIL,19/12/2017,GI,2475433,475,HC111508,Wigmore High School (Academy),201809,Dedicated Schools Grant,Support Services
INSERTED DETAIL,19/12/2017,GI,2475434,475,HC117835,The Brookfield School (Academy),201809,Dedicated Schools Grant,Support Services
INSERTED DETAIL,19/12/2017,GI,2475435,764.17,HC113960,Barrs Court Academy,201809,Dedicated Schools Grant,Support Services
INSERTED DETAIL,19/12/2017,GI,2475436,764.17,HC113960,Barrs Court Academy,201809,Dedicated Schools Grant,Support Services
INSERTED DETAIL,19/12/2017,GI,2475437,"1,079.17",HC113960,Barrs Court Academy,201809,Dedicated Schools Grant,Support Services
INSERTED DETAIL,19/12/2017,GI,2475438,764.17,HC113960,Barrs Court Academy,201809,Dedicated Schools Grant,Support Services
INSERTED DETAIL,19/12/2017,GI,2475439,"1,079.17",HC113960,Barrs Court Academy,201809,Dedicated Schools Grant,Support Services
INSERTED DETAIL,19/12/2017,GI,2475440,"1,079.17",HC113960,Barrs Court Academy,201809,Dedicated Schools Grant,Support Services
INSERTED DETAIL,19/12/2017,GI,2475441,"1,079.17",HC113960,Barrs Court Academy,201809,Dedicated Schools Grant,Support Services
INSERTED DETAIL,19/12/2017,GI,2475442,764.17,HC113960,Barrs Court Academy,201809,Dedicated Schools Grant,Support Services
INSERTED DETAIL,19/12/2017,GI,2475444,475,HC117835,The Brookfield School (Academy),201809,Dedicated Schools Grant,Support Services
INSERTED DETAIL,19/12/2017,GI,2475445,475,HC117835,The Brookfield School (Academy),201809,Dedicated Schools Grant,Support Services
INSERTED DETAIL,19/12/2017,GI,2475446,475,HC115884,St Thomas Cantilupe CE Academy,201809,Dedicated Schools Grant,Support Services
INSERTED DETAIL,19/12/2017,GI,2475450,764.17,HC110794,The Steiner Academy Hereford,201809,Dedicated Schools Grant,Support Services
INSERTED DETAIL,19/12/2017,GI,2475452,475,HC107656,St Pauls Church of England Primary School,201809,Dedicated Schools Grant,Support Services
INSERTED DETAIL,19/12/2017,GI,2475454,475,HC117835,The Brookfield School (Academy),201809,Dedicated Schools Grant,Support Services
INSERTED DETAIL,19/12/2017,GI,2475455,"1,079.17",HC117835,The Brookfield School (Academy),201809,Dedicated Schools Grant,Support Services
INSERTED DETAIL,19/12/2017,GI,2475456,475,HC117835,The Brookfield School (Academy),201809,Dedicated Schools Grant,Support Services
INSERTED DETAIL,19/12/2017,GI,2475457,764.17,HC117835,The Brookfield School (Academy),201809,Dedicated Schools Grant,Support Services
INSERTED DETAIL,19/12/2017,GI,2475459,475,HC102076,Herefordshire Marches Federation Sutton Primary Academy,201809,Dedicated Schools Grant,Support Services
INSERTED DETAIL,19/12/2017,GI,2475460,475,HC117835,The Brookfield School (Academy),201809,Dedicated Schools Grant,Support Services
INSERTED DETAIL,19/12/2017,GI,2475463,764.17,HC117835,The Brookfield School (Academy),201809,Dedicated Schools Grant,Support Services
INSERTED DETAIL,19/12/2017,GI,2475464,475,HC113961,Burghill Community Academy,201809,Dedicated Schools Grant,Support Services
INSERTED DETAIL,19/12/2017,GI,2475465,475,HC116854,Fairfield High School (Academy),201809,Dedicated Schools Grant,Support Services
INSERTED DETAIL,19/12/2017,GI,2475466,475,HC104727,John Kyrle High School,201809,Dedicated Schools Grant,Support Services
INSERTED DETAIL,19/12/2017,GI,2475468,475,HC117835,The Brookfield School (Academy),201809,Dedicated Schools Grant,Support Services
INSERTED DETAIL,19/12/2017,GI,2475469,"1,438.33",HC113960,Barrs Court Academy,201809,Dedicated Schools Grant,Support Services
INSERTED DETAIL,19/12/2017,GI,2475473,475,HC115716,Mordiford Church of England Primary School,201809,Dedicated Schools Grant,Support Services
INSERTED DETAIL,19/12/2017,GI,2475474,764.17,HC113960,Barrs Court Academy,201809,Dedicated Schools Grant,Support Services
INSERTED DETAIL,19/12/2017,GI,2475475,475,HC105571,Wigmore Primary School (Academy),201809,Dedicated Schools Grant,Support Services
INSERTED DETAIL,19/12/2017,GI,2475476,764.17,HC104727,John Kyrle High School,201809,Dedicated Schools Grant,Support Services
INSERTED DETAIL,19/12/2017,GI,2475477,"1,079.17",HC104739,John Masefield High School (Academy),201809,Dedicated Schools Grant,Support Services
INSERTED DETAIL,19/12/2017,GI,2475478,475,HC111701,Whitecross Hereford Academy,201809,Dedicated Schools Grant,Support Services
INSERTED DETAIL,19/12/2017,GI,2475480,475,HC117835,The Brookfield School (Academy),201809,Dedicated Schools Grant,Support Services
INSERTED DETAIL,19/12/2017,GI,2475481,475,HC105571,Wigmore Primary School (Academy),201809,Dedicated Schools Grant,Support Services
INSERTED DETAIL,19/12/2017,GI,2475482,764.17,HC113960,Barrs Court Academy,201809,Dedicated Schools Grant,Support Services
INSERTED DETAIL,19/12/2017,GI,2475485,475,HC113733,Canon Pyon CE Academy,201809,Dedicated Schools Grant,Support Services
INSERTED DETAIL,19/12/2017,GI,2475490,475,HC113960,Barrs Court Academy,201809,Dedicated Schools Grant,Support Services
INSERTED DETAIL,19/12/2017,GI,2475491,475,HC122135,BAET T/A Bodenham St Michael's CE Primary School,201809,Dedicated Schools Grant,Support Services
INSERTED DETAIL,19/12/2017,GI,2475492,764.17,HC113960,Barrs Court Academy,201809,Dedicated Schools Grant,Support Services
INSERTED DETAIL,19/12/2017,GI,2475494,"1,079.17",HC113960,Barrs Court Academy,201809,Dedicated Schools Grant,Support Services
INSERTED DETAIL,19/12/2017,GI,2475495,"1,079.17",HC113960,Barrs Court Academy,201809,Dedicated Schools Grant,Support Services
INSERTED DETAIL,19/12/2017,GI,2475496,764.17,HC117835,The Brookfield School (Academy),201809,Dedicated Schools Grant,Support Services
INSERTED DETAIL,19/12/2017,GI,2475497,475,HC117835,The Brookfield School (Academy),201809,Dedicated Schools Grant,Support Services
INSERTED DETAIL,19/12/2017,GI,2475499,764.17,HC105714,QEHC Academy Trust T/A Queen Elizabeth Humanities College,201809,Dedicated Schools Grant,Support Services
INSERTED DETAIL,19/12/2017,GI,2475502,764.17,HC104739,John Masefield High School (Academy),201809,Dedicated Schools Grant,Support Services
INSERTED DETAIL,19/12/2017,GI,2475503,475,HC105571,Wigmore Primary School (Academy),201809,Dedicated Schools Grant,Support Services
INSERTED DETAIL,19/12/2017,GI,2475505,"1,079.17",HC113960,Barrs Court Academy,201809,Dedicated Schools Grant,Support Services
INSERTED DETAIL,19/12/2017,GI,2475506,475,HC113961,Burghill Community Academy,201809,Dedicated Schools Grant,Support Services
INSERTED DETAIL,19/12/2017,GI,2475507,475,HC115716,Mordiford Church of England Primary School,201809,Dedicated Schools Grant,Support Services
INSERTED DETAIL,19/12/2017,GI,2475508,475,HC111701,Whitecross Hereford Academy,201809,Dedicated Schools Grant,Support Services
INSERTED DETAIL,19/12/2017,GI,2475509,475,HC116854,Fairfield High School (Academy),201809,Dedicated Schools Grant,Support Services
INSERTED DETAIL,19/12/2017,GI,2475510,475,HC113960,Barrs Court Academy,201809,Dedicated Schools Grant,Support Services
INSERTED DETAIL,19/12/2017,GI,2475511,764.17,HC117835,The Brookfield School (Academy),201809,Dedicated Schools Grant,Support Services
INSERTED DETAIL,19/12/2017,GI,2475512,764.17,HC115884,St Thomas Cantilupe CE Academy,201809,Dedicated Schools Grant,Support Services
INSERTED DETAIL,19/12/2017,GI,2475517,475,HC104739,John Masefield High School (Academy),201809,Dedicated Schools Grant,Support Services
INSERTED DETAIL,19/12/2017,GI,2475518,475,HC110648,BAE Trust T/A The Hereford Academy,201809,Dedicated Schools Grant,Support Services
INSERTED DETAIL,19/12/2017,GI,2475519,475,HC113960,Barrs Court Academy,201809,Dedicated Schools Grant,Support Services
INSERTED DETAIL,19/12/2017,GI,2475520,475,HC104761,Herefordshire Marches Federation-Lord Scudamore,201809,Dedicated Schools Grant,Support Services
INSERTED DETAIL,19/12/2017,GI,2475524,475,HC110648,BAE Trust T/A The Hereford Academy,201809,Dedicated Schools Grant,Support Services
INSERTED DETAIL,19/12/2017,GI,2475526,475,HC104739,John Masefield High School (Academy),201809,Dedicated Schools Grant,Support Services
INSERTED DETAIL,19/12/2017,GI,2475527,475,HC104739,John Masefield High School (Academy),201809,Dedicated Schools Grant,Support Services
INSERTED DETAIL,19/12/2017,GI,2475528,475,HC104739,John Masefield High School (Academy),201809,Dedicated Schools Grant,Support Services
INSERTED DETAIL,19/12/2017,GI,2475531,475,HC113960,Barrs Court Academy,201809,Dedicated Schools Grant,Support Services
INSERTED DETAIL,19/12/2017,GI,2475532,475,HC113960,Barrs Court Academy,201809,Dedicated Schools Grant,Support Services
INSERTED DETAIL,19/12/2017,GI,2475533,475,HC113960,Barrs Court Academy,201809,Dedicated Schools Grant,Support Services
INSERTED DETAIL,19/12/2017,GI,2475534,"1,079.17",HC113960,Barrs Court Academy,201809,Dedicated Schools Grant,Support Services
INSERTED DETAIL,19/12/2017,GI,2475535,"1,079.17",HC113960,Barrs Court Academy,201809,Dedicated Schools Grant,Support Services
INSERTED DETAIL,19/12/2017,GI,2475536,"1,079.17",HC113960,Barrs Court Academy,201809,Dedicated Schools Grant,Support Services
INSERTED DETAIL,19/12/2017,GI,2475537,475,HC113960,Barrs Court Academy,201809,Dedicated Schools Grant,Support Services
INSERTED DETAIL,19/12/2017,GI,2475538,475,HC113960,Barrs Court Academy,201809,Dedicated Schools Grant,Support Services
INSERTED DETAIL,19/12/2017,GI,2475539,764.17,HC113960,Barrs Court Academy,201809,Dedicated Schools Grant,Support Services
INSERTED DETAIL,19/12/2017,GI,2475540,475,HC108716,Stretton Sugwas CE Academy,201809,Dedicated Schools Grant,Support Services
INSERTED DETAIL,19/12/2017,GI,2475541,475,HC122135,BAET T/A Bodenham St Michael's CE Primary School,201809,Dedicated Schools Grant,Support Services
INSERTED DETAIL,19/12/2017,GI,2475543,475,HC105714,QEHC Academy Trust T/A Queen Elizabeth Humanities College,201809,Dedicated Schools Grant,Support Services
INSERTED DETAIL,19/12/2017,GI,2475545,475,HC117835,The Brookfield School (Academy),201809,Dedicated Schools Grant,Support Services
INSERTED DETAIL,19/12/2017,GI,2475546,475,HC117835,The Brookfield School (Academy),201809,Dedicated Schools Grant,Support Services
INSERTED DETAIL,19/12/2017,GI,2475547,475,HC117835,The Brookfield School (Academy),201809,Dedicated Schools Grant,Support Services
INSERTED DETAIL,19/12/2017,GI,2475548,475,HC110794,The Steiner Academy Hereford,201809,Dedicated Schools Grant,Support Services
INSERTED DETAIL,19/12/2017,GI,2475549,475,HC117835,The Brookfield School (Academy),201809,Dedicated Schools Grant,Support Services
INSERTED DETAIL,19/12/2017,GI,2475550,475,HC117835,The Brookfield School (Academy),201809,Dedicated Schools Grant,Support Services
INSERTED DETAIL,19/12/2017,GI,2475551,475,HC105073,Kingstone & Thruxton Primary School (Academy),201809,Dedicated Schools Grant,Support Services
INSERTED DETAIL,19/12/2017,GI,2475552,475,HC102076,Herefordshire Marches Federation Sutton Primary Academy,201809,Dedicated Schools Grant,Support Services
INSERTED DETAIL,19/12/2017,GI,2475553,764.17,HC110648,BAE Trust T/A The Hereford Academy,201809,Dedicated Schools Grant,Support Services
INSERTED DETAIL,19/12/2017,GI,2475555,475,HC113960,Barrs Court Academy,201809,Dedicated Schools Grant,Support Services
INSERTED DETAIL,19/12/2017,GI,2475556,475,HC105073,Kingstone & Thruxton Primary School (Academy),201809,Dedicated Schools Grant,Support Services
INSERTED DETAIL,19/12/2017,GI,2475558,764.17,HC104727,John Kyrle High School,201809,Dedicated Schools Grant,Support Services
INSERTED DETAIL,19/12/2017,GI,2475559,475,HC110648,BAE Trust T/A The Hereford Academy,201809,Dedicated Schools Grant,Support Services
INSERTED DETAIL,19/12/2017,GI,2475560,764.17,HC117835,The Brookfield School (Academy),201809,Dedicated Schools Grant,Support Services
INSERTED DETAIL,19/12/2017,GI,2475561,475,HC117835,The Brookfield School (Academy),201809,Dedicated Schools Grant,Support Services
INSERTED DETAIL,19/12/2017,GI,2475562,764.17,HC117215,Robert Owen Academey,201809,Dedicated Schools Grant,Support Services
INSERTED DETAIL,19/12/2017,GI,2475564,764.17,HC107656,St Pauls Church of England Primary School,201809,Dedicated Schools Grant,Support Services
INSERTED DETAIL,19/12/2017,GI,2475565,764.17,HC117835,The Brookfield School (Academy),201809,Dedicated Schools Grant,Support Services
INSERTED DETAIL,19/12/2017,GI,2475567,475,HC117835,The Brookfield School (Academy),201809,Dedicated Schools Grant,Support Services
INSERTED DETAIL,19/12/2017,GI,2475568,475,HC117835,The Brookfield School (Academy),201809,Dedicated Schools Grant,Support Services
INSERTED DETAIL,19/12/2017,GI,2475569,764.17,HC117835,The Brookfield School (Academy),201809,Dedicated Schools Grant,Support Services
INSERTED DETAIL,19/12/2017,GI,2475571,764.17,HC104739,John Masefield High School (Academy),201809,Dedicated Schools Grant,Support Services
INSERTED DETAIL,19/12/2017,GI,2475572,764.17,HC107656,St Pauls Church of England Primary School,201809,Dedicated Schools Grant,Support Services
INSERTED DETAIL,19/12/2017,GI,2475575,475,HC103935,Herefordshire & Ludlow College,201809,Dedicated Schools Grant,Support Services
INSERTED DETAIL,19/12/2017,GI,2475580,764.17,HC103935,Herefordshire & Ludlow College,201809,Dedicated Schools Grant,Support Services
INSERTED DETAIL,19/12/2017,GI,2475581,475,HC103935,Herefordshire & Ludlow College,201809,Dedicated Schools Grant,Support Services
INSERTED DETAIL,19/12/2017,GI,2475582,475,HC103935,Herefordshire & Ludlow College,201809,Dedicated Schools Grant,Support Services
INSERTED DETAIL,19/12/2017,GI,2475583,475,HC103935,Herefordshire & Ludlow College,201809,Dedicated Schools Grant,Support Services
INSERTED DETAIL,19/12/2017,GI,2475585,475,HC103935,Herefordshire & Ludlow College,201809,Dedicated Schools Grant,Support Services
INSERTED DETAIL,19/12/2017,GI,2475586,613.33,HC103935,Herefordshire & Ludlow College,201809,Dedicated Schools Grant,Support Services
INSERTED DETAIL,19/12/2017,GI,2475587,975,HC103935,Herefordshire & Ludlow College,201809,Dedicated Schools Grant,Support Services
INSERTED DETAIL,19/12/2017,GI,2475588,975,HC103935,Herefordshire & Ludlow College,201809,Dedicated Schools Grant,Support Services
INSERTED DETAIL,19/12/2017,GI,2475589,975,HC103935,Herefordshire & Ludlow College,201809,Dedicated Schools Grant,Support Services
INSERTED DETAIL,19/12/2017,GI,2475590,613.33,HC103935,Herefordshire & Ludlow College,201809,Dedicated Schools Grant,Support Services
INSERTED DETAIL,19/12/2017,GI,2475591,975,HC103935,Herefordshire & Ludlow College,201809,Dedicated Schools Grant,Support Services
INSERTED DETAIL,19/12/2017,GI,2475592,613.33,HC103935,Herefordshire & Ludlow College,201809,Dedicated Schools Grant,Support Services
INSERTED DETAIL,19/12/2017,GI,2475593,975,HC103935,Herefordshire & Ludlow College,201809,Dedicated Schools Grant,Support Services
INSERTED DETAIL,19/12/2017,GI,2475594,975,HC103935,Herefordshire & Ludlow College,201809,Dedicated Schools Grant,Support Services
INSERTED DETAIL,19/12/2017,GI,2475595,613.33,HC103935,Herefordshire & Ludlow College,201809,Dedicated Schools Grant,Support Services
INSERTED DETAIL,19/12/2017,GI,2475596,778.33,HC103935,Herefordshire & Ludlow College,201809,Dedicated Schools Grant,Support Services
INSERTED DETAIL,19/12/2017,GI,2475597,778.33,HC103935,Herefordshire & Ludlow College,201809,Dedicated Schools Grant,Support Services
INSERTED DETAIL,19/12/2017,GI,2475598,975,HC103935,Herefordshire & Ludlow College,201809,Dedicated Schools Grant,Support Services
INSERTED DETAIL,19/12/2017,GI,2475599,975,HC103935,Herefordshire & Ludlow College,201809,Dedicated Schools Grant,Support Services
INSERTED DETAIL,19/12/2017,GI,2475601,778.33,HC103935,Herefordshire & Ludlow College,201809,Dedicated Schools Grant,Support Services
INSERTED DETAIL,19/12/2017,GI,2475602,"1,079.17",HC106975,Hoople Ltd,201809,Dedicated Schools Grant,Support Services
INSERTED DETAIL,19/12/2017,GI,2475604,"1,264.17",HC106975,Hoople Ltd,201809,Dedicated Schools Grant,Support Services
INSERTED DETAIL,19/12/2017,GI,2475605,"1,264.17",HC106975,Hoople Ltd,201809,Dedicated Schools Grant,Support Services
INSERTED DETAIL,19/12/2017,GI,2475606,"1,264.17",HC106975,Hoople Ltd,201809,Dedicated Schools Grant,Support Services
INSERTED DETAIL,19/12/2017,GI,2475607,"1,264.17",HC106975,Hoople Ltd,201809,Dedicated Schools Grant,Support Services
INSERTED DETAIL,19/12/2017,GI,2475608,"1,264.17",HC106975,Hoople Ltd,201809,Dedicated Schools Grant,Support Services
INSERTED DETAIL,19/12/2017,GI,2475609,975,HC106975,Hoople Ltd,201809,Dedicated Schools Grant,Support Services
INSERTED DETAIL,19/12/2017,GI,2475610,475,HC106975,Hoople Ltd,201809,Dedicated Schools Grant,Support Services
INSERTED DETAIL,19/12/2017,GI,2475611,475,HC106975,Hoople Ltd,201809,Dedicated Schools Grant,Support Services
INSERTED DETAIL,19/12/2017,GI,2475612,"1,264.17",HC120103,The Plylimon Trust-Horizon Training,201809,Dedicated Schools Grant,Support Services
INSERTED DETAIL,19/12/2017,GI,2475613,613.33,HC120103,The Plylimon Trust-Horizon Training,201809,Dedicated Schools Grant,Support Services
INSERTED DETAIL,19/12/2017,GI,2475614,778.33,HC120103,The Plylimon Trust-Horizon Training,201809,Dedicated Schools Grant,Support Services
INSERTED DETAIL,19/12/2017,GI,2475615,778.33,HC120103,The Plylimon Trust-Horizon Training,201809,Dedicated Schools Grant,Support Services
INSERTED DETAIL,19/12/2017,GI,2475616,975,HC120103,The Plylimon Trust-Horizon Training,201809,Dedicated Schools Grant,Support Services
INSERTED DETAIL,19/12/2017,GI,2475617,975,HC120103,The Plylimon Trust-Horizon Training,201809,Dedicated Schools Grant,Support Services
INSERTED DETAIL,19/12/2017,GI,2475620,"1,264.17",HC122375,Warwickshire College Group,201809,Dedicated Schools Grant,Support Services
INSERTED DETAIL,19/12/2017,GI,2475621,764.17,HC111701,Whitecross Hereford Academy,201809,Dedicated Schools Grant,Support Services
INSERTED DETAIL,19/12/2017,GI,2475622,461.24,HC114613,National Star College,201809,Dedicated Schools Grant,Support Services
INSERTED DETAIL,19/12/2017,GI,2475623,554.24,HC114613,National Star College,201809,Dedicated Schools Grant,Support Services
INSERTED DETAIL,19/12/2017,GI,2475625,724.74,HC114613,National Star College,201809,Dedicated Schools Grant,Support Services
INSERTED DETAIL,19/12/2017,GI,2475626,724.69,HC114613,National Star College,201809,Dedicated Schools Grant,Support Services
INSERTED DETAIL,19/12/2017,GI,2475627,801.8,HC114613,National Star College,201809,Dedicated Schools Grant,Support Services
INSERTED DETAIL,19/12/2017,GI,2475629,475,HC113733,Canon Pyon CE Academy,201809,Dedicated Schools Grant,Support Services
INSERTED DETAIL,19/12/2017,GI,2475631,883.83,HC112582,Royal National College,201809,Dedicated Schools Grant,Support Services
INSERTED DETAIL,19/12/2017,GI,2475632,"1,650.33",HC112582,Royal National College,201809,Dedicated Schools Grant,Support Services
INSERTED DETAIL,19/12/2017,GI,2475633,961.25,HC112582,Royal National College,201809,Dedicated Schools Grant,Support Services
INSERTED DETAIL,19/12/2017,GI,2475634,"1,992.25",HC112582,Royal National College,201809,Dedicated Schools Grant,Support Services
INSERTED DETAIL,19/12/2017,GI,2475635,"3,095.92",HC114613,National Star College,201809,Dedicated Schools Grant,Support Services
INSERTED DETAIL,19/12/2017,GI,2475636,803.46,HC114613,National Star College,201809,Dedicated Schools Grant,Support Services
INSERTED DETAIL,19/12/2017,GI,2475637,"1,113.27",HC114613,National Star College,201809,Dedicated Schools Grant,Support Services
INSERTED DETAIL,19/12/2017,GI,2475639,"1,264.17",HC116830,Nova Training,201809,Dedicated Schools Grant,Support Services
INSERTED DETAIL,19/12/2017,GI,2475640,975,HC116830,Nova Training,201809,Dedicated Schools Grant,Support Services
INSERTED DETAIL,19/12/2017,GI,2475641,975,HC116830,Nova Training,201809,Dedicated Schools Grant,Support Services
INSERTED DETAIL,19/12/2017,GI,2475642,576.75,HC114595,Derwen College,201809,Dedicated Schools Grant,Support Services
INSERTED DETAIL,19/12/2017,GI,2475643,629.49,HC114595,Derwen College,201809,Dedicated Schools Grant,Support Services
INSERTED DETAIL,19/12/2017,GI,2475644,"1,240.92",HC114595,Derwen College,201809,Dedicated Schools Grant,Support Services
INSERTED DETAIL,19/12/2017,GI,2475645,"1,470.58",HC114595,Derwen College,201809,Dedicated Schools Grant,Support Services
INSERTED DETAIL,19/12/2017,GI,2475646,741.75,HC114595,Derwen College,201809,Dedicated Schools Grant,Support Services
INSERTED DETAIL,19/12/2017,GI,2475647,629.49,HC114595,Derwen College,201809,Dedicated Schools Grant,Support Services
INSERTED DETAIL,19/12/2017,GI,2475648,629.49,HC114595,Derwen College,201809,Dedicated Schools Grant,Support Services
INSERTED DETAIL,19/12/2017,GI,2475649,629.49,HC114595,Derwen College,201809,Dedicated Schools Grant,Support Services
INSERTED DETAIL,19/12/2017,GI,2475650,"1,015.83",HC114595,Derwen College,201809,Dedicated Schools Grant,Support Services
INSERTED DETAIL,19/12/2017,GI,2475651,629.49,HC114595,Derwen College,201809,Dedicated Schools Grant,Support Services
INSERTED DETAIL,19/12/2017,GI,2475652,"1,911.68",HC114596,William Morris Camphill Community,201809,Dedicated Schools Grant,Support Services
INSERTED DETAIL,19/12/2017,GI,2475654,475,HC116854,Fairfield High School (Academy),201809,Dedicated Schools Grant,Support Services
INSERTED DETAIL,19/12/2017,GI,2475655,475,HC110648,BAE Trust T/A The Hereford Academy,201809,Dedicated Schools Grant,Support Services
INSERTED DETAIL,19/12/2017,GI,2475656,475,HC113960,Barrs Court Academy,201809,Dedicated Schools Grant,Support Services
INSERTED DETAIL,19/12/2017,GI,2475661,"1,079.17",HC113960,Barrs Court Academy,201809,Dedicated Schools Grant,Support Services
INSERTED DETAIL,19/12/2017,GI,2475662,"2,885.54",HC114611,Farleigh Further Education College Frome,201809,Dedicated Schools Grant,Support Services
INSERTED DETAIL,19/12/2017,GI,2475663,"1,118.84",HC114613,National Star College,201809,Dedicated Schools Grant,Support Services
INSERTED DETAIL,19/12/2017,GI,2475665,"1,330.04",HC114613,National Star College,201809,Dedicated Schools Grant,Support Services
INSERTED DETAIL,19/12/2017,GI,2475667,613.33,HC103854,Hereford College Of Arts,201809,Dedicated Schools Grant,Support Services
INSERTED DETAIL,19/12/2017,GI,2475668,"3,056.68",HC104739,John Masefield High School (Academy),201809,Dedicated Schools Grant,Support Services
INSERTED DETAIL,19/12/2017,GI,2475669,"4,875.00",HC121748,The Bridge Education Centre - Malvern Hills,201809,Dedicated Schools Grant,Support Services
INSERTED DETAIL,19/12/2017,GI,2475671,"2,344.35",HC104870,Kingstone High School (Academy),201809,Dedicated Schools Grant,Support Services
INSERTED DETAIL,19/12/2017,GI,2475673,417.5,HC106103,Holmer C of E Academy,201809,Dedicated Schools Grant,Support Services
INSERTED DETAIL,19/12/2017,GI,2475674,417.5,HC115716,Mordiford Church of England Primary School,201809,Dedicated Schools Grant,Support Services
INSERTED DETAIL,19/12/2017,GI,2475793,425,HC123294,REDACTED,201809,Safeguarding and Family Support,Supplies & Services
INSERTED DETAIL,19/12/2017,GI,2475794,433.33,HC121017,REDACTED,201809,Safeguarding and Family Support,Supplies & Services
INSERTED DETAIL,19/12/2017,GI,2475796,433.33,HC103959,REDACTED,201809,Safeguarding and Family Support,Supplies & Services
INSERTED DETAIL,19/12/2017,GI,2475797,433.33,HC123323,REDACTED,201809,Safeguarding and Family Support,Supplies & Services
INSERTED DETAIL,19/12/2017,GI,2475798,"2,586.08",HC123873,REDACTED,201809,Safeguarding and Family Support,Supplies & Services
INSERTED DETAIL,19/12/2017,GI,2475800,"1,280.00",HC111604,REDACTED,201809,Safeguarding and Family Support,Supplies & Services
INSERTED DETAIL,19/12/2017,GI,2475801,"1,375.00",HC109651,REDACTED,201809,Safeguarding and Family Support,Supplies & Services
INSERTED DETAIL,19/12/2017,GI,2475802,"1,730.00",HC124339,REDACTED,201809,Safeguarding and Family Support,Supplies & Services
INSERTED DETAIL,19/12/2017,GI,2478065,"23,255.00",HC100109,HM Revenue & Customs,201809,Holding Codes,Holding Codes
INSERTED DETAIL,20/12/2017,GI,2478262,584.25,HC124350,REDACTED,201809,Safeguarding and Family Support,Third Party Payments
INSERTED DETAIL,20/12/2017,GI,2478450,655.2,HC105573,Luston C P School Imprest,201809,Schools,Supplies & Services
INSERTED DETAIL,21/12/2017,GI,2479325,"7,764.63",HC121175,Matrix SCM Ltd,201809,Adults Operations,Employees
INSERTED DETAIL,21/12/2017,GI,2479325,"3,767.47",HC121175,Matrix SCM Ltd,201809,Safeguarding and Family Support,Employees
INSERTED DETAIL,21/12/2017,GI,2479325,"2,035.06",HC121175,REDACTED,201809,Safeguarding and Family Support,Employees
INSERTED DETAIL,21/12/2017,GI,2479367,603.75,HC124349,REDACTED,201809,Safeguarding and Family Support,Third Party Payments
INSERTED DETAIL,21/12/2017,GI,2479368,490.57,HC124349,REDACTED,201809,Safeguarding and Family Support,Third Party Payments
INSERTED DETAIL,27/12/2017,GI,2479635,785.22,HC108165,REDACTED,201809,Safeguarding and Family Support,Employees
INSERTED DETAIL,27/12/2017,GI,2479635,530.73,HC108165,REDACTED,201809,Safeguarding and Family Support,Transport-Related Expenditure
INSERTED DETAIL,28/12/2017,GI,2479713,"1,149.64",HC107953,REDACTED,201809,Adults Operations,Supplies & Services
INSERTED DETAIL,28/12/2017,GI,2479800,533.78,HC107953,REDACTED,201809,Adults Operations,Supplies & Services
INSERTED DETAIL,03/01/2018,GI,2480135,"475,000.00",HC119566,REDACTED,201809,Holding Codes,Holding Codes
INSERTED DETAIL,21/11/2017,II,3879755,534.6,HC120404,REDACTED,201808,Mental Health,Supplies & Services
INSERTED DETAIL,27/11/2017,II,3882705,470.32,HC109655,School Trends,201808,Schools,Supplies & Services
INSERTED DETAIL,11/10/2017,II,3883730,"837,480.06",HC104323,Integral UK Ltd,201807,Holding Codes,Holding Codes
INSERTED DETAIL,20/10/2017,II,3883876,"65,523.53",HC111332,Warwickshire County Council,201807,Communities,Supplies & Services
INSERTED DETAIL,05/10/2017,II,3884571,419.73,HC103526,Gough Bailey Wright,201807,Environment and Place,Supplies & Services
INSERTED DETAIL,05/10/2017,II,3884668,789.46,HC103526,Gough Bailey Wright,201807,Environment and Place,Supplies & Services
INSERTED DETAIL,06/10/2017,II,3885088,479,HC100385,Alliance In Partnership,201807,Schools,Supplies & Services
INSERTED DETAIL,04/10/2017,II,3885092,608.96,HC111054,Trustmarque Solutions Ltd,201807,Communities,Supplies & Services
INSERTED DETAIL,02/10/2017,II,3885113,431.9,HC111310,Walford Parish Council,201807,Environment and Place,Third Party Payments
INSERTED DETAIL,03/10/2017,II,3885170,"1,203.37",HC108319,Oxford University Press,201807,Schools,Supplies & Services
INSERTED DETAIL,03/10/2017,II,3885374,987.74,HC111941,Yorkshire Purchasing,201807,Schools,Supplies & Services
INSERTED DETAIL,05/10/2017,II,3885427,"1,550.00",HC111157,Updata Infrastructure UK Ltd,201807,Communities,Supplies & Services
INSERTED DETAIL,04/10/2017,II,3885471,"2,300.00",HC114180,SLS School Improvement Ltd,201807,Schools,Supplies & Services
INSERTED DETAIL,02/10/2017,II,3885498,738.33,HC105926,Mavis Russell Cleaning Ltd,201807,Schools,Premises-Related Expenditure
INSERTED DETAIL,02/10/2017,II,3885511,"6,130.00",HC103660,REDACTED,201807,Safeguarding and Family Support,Supplies & Services
INSERTED DETAIL,05/10/2017,II,3885526,"14,785.26",HC108307,Owen Pell Ltd,201807,Growth Capital,Capital Expenditure
INSERTED DETAIL,29/09/2017,II,3885530,"1,270.61",HC122509,Bridges Business Spaces LLP01 t/a Flexspace,201807,Growth,Premises-Related Expenditure
INSERTED DETAIL,02/10/2017,II,3885532,"23,750.24",HC108307,Owen Pell Ltd,201807,Growth Capital,Capital Expenditure
INSERTED DETAIL,02/10/2017,II,3885535,685,HC108307,Owen Pell Ltd,201807,Growth Capital,Capital Expenditure
INSERTED DETAIL,13/10/2017,II,3885536,"4,999.00",HC103599,eduFOCUS Ltd,201807,Communities,Supplies & Services
INSERTED DETAIL,12/10/2017,II,3885540,837.14,HC102482,Dormington & Mordiford G.P.C.,201807,Environment and Place,Third Party Payments
INSERTED DETAIL,29/09/2017,II,3885560,"8,660.16",HC103981,Herefordshire Vision Links,201807,Commissioning Adults,Supplies & Services
INSERTED DETAIL,29/09/2017,II,3885561,"8,660.16",HC103981,Herefordshire Vision Links,201807,Commissioning Adults,Supplies & Services
INSERTED DETAIL,29/09/2017,II,3885563,"1,080.20",HC104352,J P Catering,201807,Schools,Supplies & Services
INSERTED DETAIL,03/10/2017,II,3885564,"33,068.72",HC105440,Livability,201807,Physical Disabilities,Third Party Payments
INSERTED DETAIL,03/10/2017,II,3885565,"34,132.41",HC105440,Livability,201807,Physical Disabilities,Third Party Payments
INSERTED DETAIL,04/10/2017,II,3885594,652.9,HC117492,Davitt Jones Bould,201807,Communities,Supplies & Services
INSERTED DETAIL,03/10/2017,II,3885615,537,HC104194,IDN Supplies Ltd,201807,Schools,Supplies & Services
INSERTED DETAIL,03/10/2017,II,3885620,630,HC104194,IDN Supplies Ltd,201807,Schools,Supplies & Services
INSERTED DETAIL,02/10/2017,II,3885627,518.64,HC111378,Welsh Newton & Llanrothal G.P.C.,201807,Environment and Place,Third Party Payments
INSERTED DETAIL,03/10/2017,II,3885643,"1,500.00",HC111685,Yeomans Travel Ltd,201807,Environment and Place,Supplies & Services
INSERTED DETAIL,02/10/2017,II,3885683,"262,325.10",HC109769,Shaw Healthcare (Herefordshire) Ltd,201807,Physical Disabilities,Third Party Payments
INSERTED DETAIL,02/10/2017,II,3885684,"50,202.90",HC109769,Shaw Healthcare (Herefordshire) Ltd,201807,Physical Disabilities,Third Party Payments
INSERTED DETAIL,02/10/2017,II,3885685,"3,566.20",HC109769,Shaw Healthcare (Herefordshire) Ltd,201807,Physical Disabilities,Third Party Payments
INSERTED DETAIL,03/10/2017,II,3885746,557.72,HC100617,REDACTED,201807,Safeguarding and Family Support,Supplies & Services
INSERTED DETAIL,03/10/2017,II,3885752,"2,626.03",HC101472,Capita Business Services Ltd,201807,Corporate,Supplies & Services
INSERTED DETAIL,04/10/2017,II,3885757,951.5,HC110573,The Courtyard Trust,201807,Schools,Supplies & Services
INSERTED DETAIL,03/10/2017,II,3885774,"135,994.00",HC109962,Kier Construction - Central Div of Kier Construction Ltd,201807,Resources Capital,Capital Expenditure
INSERTED DETAIL,04/10/2017,II,3885784,800,HC112326,Lyndon Scaffolding Plc,201807,Environment and Place,Premises-Related Expenditure
INSERTED DETAIL,03/10/2017,II,3885802,684.28,HC105512,Lord Combustion Services Ltd,201807,Schools,Premises-Related Expenditure
INSERTED DETAIL,02/10/2017,II,3885828,478.5,HC108022,Newsquest Media Group Ltd,201807,Schools,Supplies & Services
INSERTED DETAIL,02/10/2017,II,3885831,696,HC107608,Waveney Publishing Ltd,201807,Schools,Supplies & Services
INSERTED DETAIL,02/10/2017,II,3885850,494,HC122751,Essential Papers Ltd,201807,Schools,Premises-Related Expenditure
INSERTED DETAIL,02/10/2017,II,3885857,795.92,HC100635,Arrow County Supplies,201807,Schools,Premises-Related Expenditure
INSERTED DETAIL,02/10/2017,II,3885868,"2,370.00",HC102156,D & D Network Services Ltd,201807,Schools,Supplies & Services
INSERTED DETAIL,02/10/2017,II,3885870,"1,500.00",HC106975,Hoople Ltd,201807,Schools,Employees
INSERTED DETAIL,03/10/2017,II,3885880,536.09,HC109997,Spa Gas Ltd,201807,Schools,Premises-Related Expenditure
INSERTED DETAIL,02/10/2017,II,3885881,678.04,HC116277,Chelsea & Westminster Hosp NHS FT,201807,Public Health,Third Party Payments
INSERTED DETAIL,03/10/2017,II,3885889,430,HC122949,Behaviour Support Team (BST),201807,Schools,Supplies & Services
INSERTED DETAIL,03/10/2017,II,3885891,"7,689.75",HC107858,MVF Builders Ltd,201807,Housing & Independent Living Capital,Capital Expenditure
INSERTED DETAIL,04/10/2017,II,3885898,"347,984.92",HC106384,Western Power Distribution,201807,Growth Capital,Capital Expenditure
INSERTED DETAIL,03/10/2017,II,3885901,700,HC102595,DRM (Bromyard) Ltd,201807,Schools,Transport-Related Expenditure
INSERTED DETAIL,03/10/2017,II,3885904,466.37,HC108443,West Mercia Energy,201807,Schools,Premises-Related Expenditure
INSERTED DETAIL,03/10/2017,II,3885905,"1,253.57",HC108443,West Mercia Energy,201807,Schools,Premises-Related Expenditure
INSERTED DETAIL,03/10/2017,II,3885910,"1,722.00",HC101975,Complete Security & Fire Protection Ltd,201807,Schools,Supplies & Services
INSERTED DETAIL,03/10/2017,II,3885911,"1,739.00",HC101975,Complete Security & Fire Protection Ltd,201807,Schools,Supplies & Services
INSERTED DETAIL,03/10/2017,II,3885929,"6,066.53",HC103268,G B Electrical And Building Services Ltd,201807,Housing & Independent Living Capital,Capital Expenditure
INSERTED DETAIL,03/10/2017,II,3885934,"10,629.00",HC123894,Wellington Tennis Club,201807,Commissioning Capital,Capital Income
INSERTED DETAIL,03/10/2017,II,3885936,498.56,HC110583,Apogee Corporation Ltd,201807,Schools,Supplies & Services
INSERTED DETAIL,06/10/2017,II,3885938,430.5,HC111805,REDACTED,201807,Safeguarding and Family Support,Supplies & Services
INSERTED DETAIL,04/10/2017,II,3885941,"6,075.00",HC105172,Lambert Smith Hampton Group Ltd,201807,Environment and Place,Third Party Payments
INSERTED DETAIL,04/10/2017,II,3885948,"18,884.50",HC104284,Insight Direct (UK) Ltd,201807,Communities,Supplies & Services
INSERTED DETAIL,03/10/2017,II,3885954,"4,761.91",HC103158,Marlowe Child & Family Services Ltd,201807,Dedicated Schools Grant,Supplies & Services
INSERTED DETAIL,03/10/2017,II,3885955,"5,142.87",HC103158,Marlowe Child & Family Services Ltd,201807,Dedicated Schools Grant,Supplies & Services
INSERTED DETAIL,03/10/2017,II,3885956,"4,952.39",HC103158,Marlowe Child & Family Services Ltd,201807,Dedicated Schools Grant,Supplies & Services
INSERTED DETAIL,03/10/2017,II,3885957,"2,476.21",HC103158,Marlowe Child & Family Services Ltd,201807,Dedicated Schools Grant,Supplies & Services
INSERTED DETAIL,03/10/2017,II,3885961,461.5,HC112412,Forward Products,201807,Schools,Supplies & Services
INSERTED DETAIL,03/10/2017,II,3885971,"1,635.93",HC104568,NPOWER (Electricity),201807,Schools,Premises-Related Expenditure
INSERTED DETAIL,03/10/2017,II,3885972,"1,349.03",HC104568,NPOWER (Electricity),201807,Schools,Premises-Related Expenditure
INSERTED DETAIL,03/10/2017,II,3885979,525.6,HC105926,Mavis Russell Cleaning Ltd,201807,Schools,Premises-Related Expenditure
INSERTED DETAIL,09/10/2017,II,3885982,529.62,112354,REDACTED,201807,Dedicated Schools Grant,Supplies & Services
INSERTED DETAIL,04/10/2017,II,3885983,495,HC103165,Alere  Forensics,201807,Communities,Supplies & Services
INSERTED DETAIL,03/10/2017,II,3885985,"1,154.20",HC103905,South Shropshire Leisure Ltd,201807,Schools,Supplies & Services
INSERTED DETAIL,04/10/2017,II,3885990,"181,833.00",HC103869,Wye Valley NHS Trust,201807,Public Health,Third Party Payments
INSERTED DETAIL,04/10/2017,II,3885991,"42,780.00",HC103869,Wye Valley NHS Trust,201807,Public Health,Third Party Payments
INSERTED DETAIL,03/10/2017,II,3885999,"1,431.00",HC110958,TPG Disable Aids Ltd,201807,Housing & Independent Living Capital,Capital Expenditure
INSERTED DETAIL,03/10/2017,II,3886011,"1,300.00",HC123905,REDACTED,201807,Housing & Independent Living Capital,Capital Expenditure
INSERTED DETAIL,04/10/2017,II,3886015,"1,050.00",HC109826,Shropshire Council,201807,Safeguarding and Family Support,Supplies & Services
INSERTED DETAIL,03/10/2017,II,3886016,829.47,HC108593,Peters Bookselling Services,201807,Communities,Supplies & Services
INSERTED DETAIL,03/10/2017,II,3886023,"1,186.50",HC111363,Weightmans LLP,201807,Communities,Supplies & Services
INSERTED DETAIL,03/10/2017,II,3886026,687.4,HC105926,Mavis Russell Cleaning Ltd,201807,Schools,Premises-Related Expenditure
INSERTED DETAIL,06/10/2017,II,3886033,"1,119.23",HC101861,Clearview Cleaning Services,201807,Schools,Premises-Related Expenditure
